{"text_format":"1","workbook":"xlsx","n_sheets":5,"sheets":["تسجيل_الموظفين","التغذية","تنسيق التعليم الإعدادي","مكتب المدير العام","شئون الطلبة والامتحانات"],"not_rendered":{"charts":0,"images":0,"macros":1,"external_links":1,"defined_names":16,"comments":1,"pivot_tables":0},"unopened":[],"bounds":{"document_bytes":16777216,"sheet_cells":100000,"rows_first":2000,"rows_last":500,"rows_between":2000,"halvings":0,"cell_chars":16384,"cell_head_chars":4096},"cells_cut":0,"cells_raw":0,"read":"whole","date_system":"1900"}

{"sheet":"تسجيل_الموظفين","index":0,"n_rows":1100,"n_cols":57,"rows_kept":1100,"cut":false,"hidden":false,"merged":[[3,39,3,43],[4,6,4,8],[2,21,2,23],[4,21,4,23]]}
["إدارة ……………………. التعليميـة"]
["قسم شئون الطلبة والامتحانات"]
["بيانات العاملين بقسم شئون الطلبة والامتحانات",null,null,null,null,null,null,null,null,null,null,null,null,null,null,null,null,null,null,null,null,{"$f":"TODAY()","v":"2020-12-25"}]
[null,null,null,null,null,null,"\" يــــوم \"","\" شهـــر \"","\" سنــة \"",null,{"$f":"60*365.25","v":21915},null,null,null,null,null,null,null,null,null,null," \" يوم \"  "," \" شهر \"  "," \" سنة \"  ",null,null,null,null,null,null,null,null,null,null,null,null,null,null,null,"مؤهلات أعلى .. "]
["مسلسل","جهــــــــــة العمـــــــــــــل","المرحلــــة المقيد عليهــــــا","كـــــــــود المعلــــــــــــم","الرقـــــــــــم القــــــومـــي","الاســــــــــــــــــــــــــــــم","تاريـــــــخ الميــــــلاد",null,null,"تاريـــــــخ الميـــــــــــــلاد","تاريـــــــخ المعـــــــــــــاش","محافظــــــة الميـــــــــــلاد","النـــــــــــــــــــــــــــــــوع","الديــــــــــــــــــــــــانـــة","الجنسيــــــــــــــــــــــــــة","الحــــالـــة الاجتمــــاعية","محافظـــــة العنـــــــــــوان","العنـــــــــــــــــــــــــــــوان","رقـــــــم الهـــــــــــــــــاتف","المجمـــــــوعة النوعيــــــة","تاريـــــــــخ التعــــــــــيين","سنــــــوات الخبـــــــرة",null,null,"المـوقف مـــن العمـــــــــــل","تاريخ استـــلام العمــــــــل","الوظيفــــــة الحــــاليـــــة","رقـــــــم القــــــــــــــــــرار","تاريــــخ الوظيفـــــــــــــة","الدرجـــــــة الماليـــــــــــة","رقـــــــم القــــــــــــــــــرار","تاريـــــــــخ القــــــــــــرار","مــــــادة التــدريــــــــــس","التخصص على الكــــــادر","نــــــــوع المـــؤهــــــــــــــل","اســــــم المــــــؤهـــــــــــــل","جهـــــــــة الحصـــــــــــول ","تقديــــــر المــــؤهــــــــــل","تاريــــــــخ المـــــؤهـــــــــل","نوع المؤهل","اسم المؤهل","جهة الحصول","تاريخ الحصول","تقدير المؤهل"]
[{"$f":"A5","v":"مسلسل"},"جهــــــــــة العمـــــــــــــل","المرحلــــة المقيد عليهــــــا","كـــــــــود المعلــــــــــــم","الرقـــــــــــم القــــــومـــي","الاســــــــــــــــــــــــــــــم",{"$f":"G5& G4","v":"تاريـــــــخ الميــــــلاد\" يــــوم \""},{"$f":"G5& H4","v":"تاريـــــــخ الميــــــلاد\" شهـــر \""},{"$f":"G5& I4","v":"تاريـــــــخ الميــــــلاد\" سنــة \""},{"$f":"J5","v":"تاريـــــــخ الميـــــــــــــلاد"},{"$f":"K5","v":"تاريـــــــخ المعـــــــــــــاش"},{"$f":"L5","v":"محافظــــــة الميـــــــــــلاد"},"النـــــــــــــــــــــــــــــــوع","الديــــــــــــــــــــــــانـــة","الجنسيــــــــــــــــــــــــــة","الحــــالـــة الاجتمــــاعية","محافظـــــة العنـــــــــــوان","العنـــــــــــــــــــــــــــــوان","رقـــــــم الهـــــــــــــــــاتف","المجمـــــــوعة النوعيــــــة","تاريـــــــــخ التعــــــــــيين",{"$f":"V5 &  V4","v":"سنــــــوات الخبـــــــرة \" يوم \"  "},{"$f":"V5 & W4","v":"سنــــــوات الخبـــــــرة \" شهر \"  "},{"$f":"V5 & X4","v":"سنــــــوات الخبـــــــرة \" سنة \"  "},"المـوقف مـــن العمـــــــــــل","تاريخ استـــلام العمــــــــل","الوظيفــــــة الحــــاليـــــة","رقـــــــم القــــــــــــــــــرار","تاريــــخ الوظيفـــــــــــــة","الدرجـــــــة الماليـــــــــــة","رقـــــــم القــــــــــــــــــرار","تاريـــــــــخ القــــــــــــرار","مــــــادة التــدريــــــــــس","التخصص على الكــــــادر","نــــــــوع المـــؤهــــــــــــــل","اســــــم المــــــؤهـــــــــــــل","جهـــــــــة الحصـــــــــــول ","تقديــــــر المــــؤهــــــــــل",{"$f":"AM5","v":"تاريــــــــخ المـــــؤهـــــــــل"},{"$f":"AN4& AN5","v":"مؤهلات أعلى .. نوع المؤهل"},{"$f":"AN4& AO5","v":"مؤهلات أعلى .. اسم المؤهل"},{"$f":"AN4& AP5","v":"مؤهلات أعلى .. جهة الحصول"},{"$f":"AN4& AQ5","v":"مؤهلات أعلى .. تاريخ الحصول"},{"$f":"AN4& AR5","v":"مؤهلات أعلى .. تقدير المؤهل"}]
[1,"شئون الطلبة والامتحانات","ابتدائي",123456,28509181600510,"حاتم 1",{"$f":"RIGHT(LEFT(E7,7),2)","v":"18"},{"$f":"RIGHT(LEFT(E7,5),2)","v":"09"},{"$f":"IF(E7=\"\",\"\",IF(ISODD(MID(E7,1,1)),MID(E7,2,2)+2000,MID(E7,2,2)+1900))","v":1985},{"$f":"IF(E7=\"\",\"\",DATE(I7,H7,G7))","v":"1985-09-18"},{"$f":"IF(J7=\"\",\"\",$K$4+J7-1)","v":"2045-09-17"},{"$f":"Kh_Date_Sex_Province($E7,3)","v":{"$error":"#NAME?"}},{"$f":"IF(E7=\"\",\"\",IF(ISODD(MID(E7,13,1)),\"ذكر\",\"أنثى\"))","v":"ذكر"},"مسلم","مصري","متزوج + 3",{"$f":"IF(F7=\"\",\"\",\"الغربية\")","v":"الغربية"},"طنطا - محافظة الغربية","012345678910","المجموعة النوعية لوظائف كادر المعلم","1996-12-28",{"$f":"IF(U7=\"\",\"\",DATEDIF(U7,$V$3,\"md\"))","v":27},{"$f":"IF(U7=\"\",\"\",DATEDIF(U7,$V$3,\"ym\"))","v":11},{"$f":"IF(U7=\"\",\"\",DATEDIF(U7,$V$3,\"y\"))","v":23},"منتدب داخل الوزارة",null,"معلم خبير","5109","2018-10-18","-----","ــــــــــ","ــــــــــ","اللغة العربية","معلم فصل ابتدائي","عليا","بكالوريوس تربية","جامعة طنطا","مقبول",null,"بدون","بدون","بدون","بدون","بدون"]
[2,"شئون الطلبة والامتحانات","ابتدائي",123457,28509181600510,"حاتم 2",{"$f":"RIGHT(LEFT(E8,7),2)","v":"18"},{"$f":"RIGHT(LEFT(E8,5),2)","v":"09"},{"$f":"IF(E8=\"\",\"\",IF(ISODD(MID(E8,1,1)),MID(E8,2,2)+2000,MID(E8,2,2)+1900))","v":1985},{"$f":"IF(E8=\"\",\"\",DATE(I8,H8,G8))","v":"1985-09-18"},{"$f":"IF(J8=\"\",\"\",$K$4+J8-1)","v":"2045-09-17"},{"$f":"Kh_Date_Sex_Province($E8,3)","v":{"$error":"#NAME?"}},{"$f":"IF(E8=\"\",\"\",IF(ISODD(MID(E8,13,1)),\"ذكر\",\"أنثى\"))","v":"ذكر"},"مسلم","مصري","متزوج + 3",{"$f":"IF(F8=\"\",\"\",\"الغربية\")","v":"الغربية"},"طنطا - محافظة الغربية","012345678910","المجموعة النوعية لوظائف كادر المعلم","1997-07-03",{"$f":"IF(U8=\"\",\"\",DATEDIF(U8,$V$3,\"md\"))","v":22},{"$f":"IF(U8=\"\",\"\",DATEDIF(U8,$V$3,\"ym\"))","v":5},{"$f":"IF(U8=\"\",\"\",DATEDIF(U8,$V$3,\"y\"))","v":23},"منتدب داخل الوزارة","2002-02-07","معلم خبير","5109","2018-10-18","ــــــــــ","ــــــــــ","ــــــــــ","حاسب آلي متفرغ","معلم الحاسب الآلي","عليا","بكالوريوس تربية","جامعة طنطا","مقبول","2000-11-01","بدون","بدون","بدون","بدون","بدون"]
[3,"مكتب المدير العام","ابتدائي",123458,28509181600510,"حاتم 3",{"$f":"RIGHT(LEFT(E9,7),2)","v":"18"},{"$f":"RIGHT(LEFT(E9,5),2)","v":"09"},{"$f":"IF(E9=\"\",\"\",IF(ISODD(MID(E9,1,1)),MID(E9,2,2)+2000,MID(E9,2,2)+1900))","v":1985},{"$f":"IF(E9=\"\",\"\",DATE(I9,H9,G9))","v":"1985-09-18"},"2045-09-17",{"$f":"Kh_Date_Sex_Province($E9,3)","v":{"$error":"#NAME?"}},{"$f":"IF(E9=\"\",\"\",IF(ISODD(MID(E9,13,1)),\"ذكر\",\"أنثى\"))","v":"ذكر"},"مسلم","مصري","متزوج + 3","الغربية","طنطا - محافظة الغربية","012345678910","المجموعة النوعية لوظائف كادر المعلم","2000-03-20",5,9,20,"منتدب داخل الوزارة","2005-04-19","معلم أول أ","6210","2014-10-20","ــــــــــ","ــــــــــ","ــــــــــ","اللغة العربية والتربية الاسلامية","مدرس ابتدائي","عليا","ليسانس آداب وتربية","جامعة طنطا","جيد جدا","2002-07-01","بدون","بدون","بدون","بدون","بدون"]
[{"$f":"IF(F10=\"\",\"\",A9+1)","v":4},"شئون الطلبة والامتحانات","ثانوي عام",123459,28509181600510,"حاتم 4","18","09",1985,"1985-09-18","2045-09-17",{"$f":"Kh_Date_Sex_Province($E10,3)","v":{"$error":"#NAME?"}},"ذكر","مسلم","مصري","متزوج + 3","الغربية","طنطا - محافظة الغربية","012345678910","المجموعة النوعية للوظائف المكتبية","1984-12-01",24,0,36,"منتدب داخل الوزارة","1985-03-23","رئيس وحدة","6311","2003-12-08","الأولى","6665","2014-10-01","ــــــــــ","ــــــــــ","متوسطة","ثانوية تجارية","وزارة التربية والتعليم","ـــــ","1980-05-01","بدون","بدون","بدون","بدون","بدون"]
[5,"شئون الطلبة والامتحانات","ـــــ",123460,28509181600510,"حاتم 5","18","09",1985,"1985-09-18","2045-09-17",{"$error":"#NAME?"},"ذكر","مسلم","مصري","متزوج ","الغربية","طنطا - محافظة الغربية","012345678910","المجموعة النوعية للوظائف المكتبية","1994-03-26",29,8,26,"على رأس العمل","1994-06-06","رئيس وحدة","6313","2003-12-08","الأولى","5646","2014-12-01","ــــــــــ","ــــــــــ","فوق المتوسطة","شهادة إعداد فنيين تجاريين","وزارة التعليم العالي","ـــــ","1983-09-01","بدون","بدون","بدون","بدون","بدون"]
[6,"شئون الطلبة والامتحانات","ـــــ",123461,28509181600510,"حاتم 6","18","09",1985,"1985-09-18","2045-09-17",{"$error":"#NAME?"},"ذكر","مسلم","مصري","متزوج ","الغربية","طنطا - محافظة الغربية","012345678910","المجموعة النوعية للوظائف المكتبية","1994-11-12",13,1,26,"على رأس العمل","1995-02-11","رئيس وحدة","6486","2005-11-17","الأولى","5646","2016-07-01","ــــــــــ","ــــــــــ","متوسطة","ثانوية تجارية","وزارة التربية والتعليم","ـــــ","1983-06-15","بدون","بدون","بدون","بدون","بدون"]
[7,"شئون الطلبة والامتحانات","ـــــ",123462,28509181600510,"حاتم 7","18","09",1985,"1985-09-18","2045-09-17",{"$error":"#NAME?"},"ذكر","مسلم","مصري","متزوج + 3","الغربية","طنطا - محافظة الغربية","012345678910","المجموعة النوعية للوظائف المكتبية","1989-06-30",25,5,31,"على رأس العمل","1991-06-06","رئيس وحدة","121","2004-03-14","الأولى",6665,"2014-10-01","ــــــــــ","ــــــــــ","متوسطة","ثانوية تجارية","وزارة التربية والتعليم","ـــــ","1982-01-07","بدون","بدون","بدون","بدون","بدون"]
[8,"شئون الطلبة والامتحانات","ـــــ",123463,28509181600510,"حاتم 8","18","09",1985,"1985-09-18","2045-09-17",{"$error":"#NAME?"},"ذكر","مسلم","مصري","أرمل","الغربية","طنطا - محافظة الغربية","012345678910","المجموعة النوعية للوظائف المكتبية","1994-11-12",13,1,26,"على رأس العمل","1994-12-05","رئيس وحدة","6486","2005-11-12","الأولى","5646","2016-07-01","ــــــــــ","ــــــــــ","متوسطة","ثانوية تجارية","وزارة التربية والتعليم","ـــــ","1983-07-01","بدون","بدون","بدون","بدون","بدون"]
[9,"شئون الطلبة والامتحانات","ـــــ",123464,28509181600510,"حاتم 9","18","09",1985,"1985-09-18","2045-09-17",{"$error":"#NAME?"},"ذكر","مسلم","مصري","متزوج","الغربية","طنطا - محافظة الغربية","012345678910","المجموعة النوعية للوظائف المكتبية","1994-03-26",29,8,26,"على رأس العمل","1994-04-16","رئيس وحدة","6486","2005-11-17","الأولى","5646","2016-07-01","ــــــــــ","ــــــــــ","متوسطة","ثانوية تجارية","وزارة التربية والتعليم","ـــــ","1983-06-01","بدون","بدون","بدون","بدون","بدون"]
[10,"شئون الطلبة والامتحانات","---------",123465,28509181600510,"حاتم 10",{"$f":"RIGHT(LEFT(E16,7),2)","v":"18"},{"$f":"RIGHT(LEFT(E16,5),2)","v":"09"},{"$f":"IF(E16=\"\",\"\",IF(ISODD(MID(E16,1,1)),MID(E16,2,2)+2000,MID(E16,2,2)+1900))","v":1985},{"$f":"IF(E16=\"\",\"\",DATE(I16,H16,G16))","v":"1985-09-18"},"2045-09-17",{"$error":"#NAME?"},{"$f":"IF(E16=\"\",\"\",IF(ISODD(MID(E16,13,1)),\"ذكر\",\"أنثى\"))","v":"ذكر"},"مسلم","مصري","متزوج","الغربية","طنطا - محافظة الغربية","012345678910","المجموعة النوعية للوظائف المكتبية","2013-01-30",25,10,7,"على رأس العمل","2013-08-14","كاتب رابع - سكرتير رابع","2391","2013-07-28","الرابعة","2391","2013-01-30","------","-------","متوسطة","دبلوم صناعة ثانوي","وزارة التربية والتعليم","-----","1995-05-01","بدون","بدون","بدون","بدون","بدون"]
[11,"شئون الطلبة والامتحانات","------",123466,28509181600510,"حاتم 11",{"$f":"RIGHT(LEFT(E17,7),2)","v":"18"},{"$f":"RIGHT(LEFT(E17,5),2)","v":"09"},{"$f":"IF(E17=\"\",\"\",IF(ISODD(MID(E17,1,1)),MID(E17,2,2)+2000,MID(E17,2,2)+1900))","v":1985},{"$f":"IF(E17=\"\",\"\",DATE(I17,H17,G17))","v":"1985-09-18"},"2045-09-17",{"$error":"#NAME?"},{"$f":"IF(E17=\"\",\"\",IF(ISODD(MID(E17,13,1)),\"ذكر\",\"أنثى\"))","v":"ذكر"},"مسلم","مصري","متزوج","الغربية","طنطا - محافظة الغربية","012345678910","المجموعة النوعية للوظائف المكتبية","1994-11-12",13,1,26,"على رأس العمل","1994-12-03","رئيس وحدة","6486","2005-11-12","الأولى","5646","2011-07-01","------","------","متوسطة","ثانوية تجارية","وزارة التربية والتعليم","------","1983-07-01","بدون","بدون","بدون","بدون","بدون"]
[12,"شئون الطلبة والامتحانات","ـــــ",123467,28509181600510,"حاتم 12",{"$f":"RIGHT(LEFT(E18,7),2)","v":"18"},{"$f":"RIGHT(LEFT(E18,5),2)","v":"09"},{"$f":"IF(E18=\"\",\"\",IF(ISODD(MID(E18,1,1)),MID(E18,2,2)+2000,MID(E18,2,2)+1900))","v":1985},{"$f":"IF(E18=\"\",\"\",DATE(I18,H18,G18))","v":"1985-09-18"},"2045-09-17",{"$f":"Kh_Date_Sex_Province($E18,3)","v":{"$error":"#NAME?"}},{"$f":"IF(E18=\"\",\"\",IF(ISODD(MID(E18,13,1)),\"ذكر\",\"أنثى\"))","v":"ذكر"},"مسلم","مصري","متزوج","الغربية","طنطا - محافظة الغربية","012345678910","المجموعة النوعية لوظائف الهندسة","2015-08-27",28,3,5,"منتدب داخل الوزارة","2017-07-11","فني رابع","911","2017-05-17","الرابعة","911","2015-08-27","ــــــــــ","ــــــــــ","متوسطة","دبلوم صناعة ثانوي","وزارة التربية والتعليم",null,"1995-05-01","بدون","بدون","بدون","بدون","بدون"]
[13,"شئون الطلبة والامتحانات","ـــــ",123468,28509181600510,"حاتم 13",{"$f":"RIGHT(LEFT(E19,7),2)","v":"18"},{"$f":"RIGHT(LEFT(E19,5),2)","v":"09"},{"$f":"IF(E19=\"\",\"\",IF(ISODD(MID(E19,1,1)),MID(E19,2,2)+2000,MID(E19,2,2)+1900))","v":1985},{"$f":"IF(E19=\"\",\"\",DATE(I19,H19,G19))","v":"1985-09-18"},"2045-09-17",{"$error":"#NAME?"},{"$f":"IF(E19=\"\",\"\",IF(ISODD(MID(E19,13,1)),\"ذكر\",\"أنثى\"))","v":"ذكر"},"مسلم","مصري","متزوج + 2","الغربية","طنطا - محافظة الغربية","012345678910","المجموعة النوعية لوظائف كادر المعلم","1988-09-01",24,3,32,"منتدب داخل الوزارة","1988-09-21","معلم أول أ","6210","2014-10-20","ــــــــــ","ــــــــــ","ــــــــــ","مدرس فصل","معلم لغة عربية ابتدائي","فوق المتوسطة","دبلوم المعلمين و المعلمات","وزارة التربية والتعليم","------","1988-05-01","بدون","بدون","بدون","بدون","بدون"]
[14,"شئون الطلبة والامتحانات","ـــــ",123469,28509181600510,"حاتم 14","18","09",1985,"1985-09-18","2045-09-17",{"$f":"Kh_Date_Sex_Province($E20,3)","v":{"$error":"#NAME?"}},"ذكر","مسلم","مصري","متزوج + 1","الغربية","طنطا - محافظة الغربية","012345678910","المجموعة النوعية للوظتئف المكتبية","1987-05-01",24,7,33,"على رأس العمل","1987-10-01","رئيس وحدة","6313","2003-12-08","الأولى","6665","2014-07-01","ــــــــــ","ــــــــــ","متوسطة","ثانوية تجارية","وزارة التربية والتعليم","------","1981-06-01","بدون","بدون","بدون","بدون","بدون"]
[15,"مكتب المدير العام","------",123470,28509181600510,"حاتم 15",{"$f":"RIGHT(LEFT(E21,7),2)","v":"18"},{"$f":"RIGHT(LEFT(E21,5),2)","v":"09"},{"$f":"IF(E21=\"\",\"\",IF(ISODD(MID(E21,1,1)),MID(E21,2,2)+2000,MID(E21,2,2)+1900))","v":1985},{"$f":"IF(E21=\"\",\"\",DATE(I21,H21,G21))","v":"1985-09-18"},"2045-09-17",{"$error":"#NAME?"},{"$f":"IF(E21=\"\",\"\",IF(ISODD(MID(E21,13,1)),\"ذكر\",\"أنثى\"))","v":"ذكر"},"مسلم","مصري","أعزب","الغربية","طنطا - محافظة الغربية","012345678910","المجموعة النوعية للوظائف المكتبية","2015-07-28",27,4,5,"على رأس العمل","2017-05-28","كاتب رابع - سكرتير رابع","911","2017-05-17","الرابعة","911","2015-07-28","------","------","متوسطة","ثانوية تجارية","وزارة التربية و التعليم","------","1994-05-01","بدون","بدون","بدون","بدون","بدون"]
[16,"مكتب المدير العام","------",123471,28509181600510,"حاتم 16","18","09",1985,"1985-09-18","2045-09-17",{"$error":"#NAME?"},"ذكر","مسلم","مصري","متزوج","الغربية","طنطا - محافظة الغربية","012345678910","المجموعة النوعية للوظائف المكتبية","2015-08-27",28,3,5,"على رأس العمل","2017-05-28","كاتب رابع - سكرتير رابع","911","2017-05-17","الرابعة","911","2015-08-27","------","------","متوسطة","ثانوية تجارية","وزارة التربية و التعليم","------","1989-05-01","بدون","بدون","بدون","بدون","بدون"]
[17,"مكتب المدير العام","------",123472,28509181600510,"حاتم 17","18","09",1985,"1985-09-18","2045-09-17",{"$error":"#NAME?"},"ذكر","مسلم","مصري","متزوج","الغربية","طنطا - محافظة الغربية","012345678910","المجموعة النوعية للوظائف المكتبية","1994-03-26",{"$f":"IF(U23=\"\",\"\",DATEDIF(U23,$V$3,\"md\"))","v":29},{"$f":"IF(U23=\"\",\"\",DATEDIF(U23,$V$3,\"ym\"))","v":8},{"$f":"IF(U23=\"\",\"\",DATEDIF(U23,$V$3,\"y\"))","v":26},"على رأس العمل","1994-05-15","رئيس وحدة","6468","2005-11-25","الأولى","5646","2016-12-13","------","------","متوسطة","ثانوية تجارية","وزارة التربية والتعليم","------","1983-06-30","بدون","بدون","بدون","بدون","بدون"]
[18,"مكتب المدير العام","------",123473,28509181600510,"حاتم 18","18","09",1985,"1985-09-18","2045-09-17",{"$error":"#NAME?"},"ذكر","مسلم","مصري","متزوج","الغربية","طنطا - محافظة الغربية","012345678910","المجموعة النوعية للوظائف المكتبية","1994-11-12",13,1,26,"على رأس العمل","1995-01-18","رئيس وحدة","213","2005-11-17","الأولى","5646","2016-07-01","------","------","متوسطة","ثانوية تجارية","وزارة التربية و التعليم","------","1983-09-01","بدون","بدون","بدون","بدون","بدون"]
[19,"مكتب المدير العام","------",123474,28509181600510,"حاتم 19","18","09",1985,"1985-09-18","2045-09-17",{"$error":"#NAME?"},"ذكر","مسلم","مصري","متزوج + 3","الغربية","طنطا - محافظة الغربية","012345678910","وظائف الخدمات المعاونة","1994-02-12",13,10,26,"على رأس العمل","1994-02-12","عامل خدمات ","80","1994-01-22","الثالثة","1876","2012-01-16","------","------","أقل من متوسطة","الابتدائية","وزارة التربية والتعليم","------","1983-12-01","بدون","بدون","بدون","بدون","بدون"]
[20,"مكتب المدير العام","------",123475,28509181600510,"حاتم 20","18","09",1985,"1985-09-18","2045-09-17",{"$error":"#NAME?"},"ذكر","مسلم","مصري","متزوج + 2","الغربية","طنطا - محافظة الغربية","012345678910","وظائف الخدمات المعاونة","1993-09-16",9,3,27,"على رأس العمل","1993-10-16","عامل خدمات","4336","1993-09-26","الثالثة","5487","2010-09-21","------","------","محو أمية","محو أمية","هيئة محو الأمية","------","1982-07-03","بدون","بدون","بدون","بدون","بدون"]
[21,"شئون الطلبة والامتحانات","------",123476,28509181600510,"حاتم 21","18","09",1985,"1985-09-18","2045-09-17",{"$error":"#NAME?"},"ذكر","مسلم","مصري","متزوج","الغربية","طنطا - محافظة الغربية","012345678910","المجموعة النوعية للوظائف المكتبية","2013-01-30",25,10,7,"على رأس العمل","2013-08-28","كاتب رابع - سكرتير رابع","2391","2013-07-28","الرابعة","2391","2013-01-30","------","------","متوسطة","دبلوم صناعة ثانوي","وزارة التربية والتعليم","------","1993-05-01","بدون","بدون","بدون","بدون","بدون"]
[22,"تنسيق التعليم الإعدادي","إعدادي",123477,28509181600510,"حاتم 22","18","09",1985,"1985-09-18","2045-09-17",{"$f":"Kh_Date_Sex_Province($E28,3)","v":{"$error":"#NAME?"}},"ذكر","مسلم","مصري","متزوج",{"$f":"IF(F28=\"\",\"\",\"الغربية\")","v":"الغربية"},"طنطا - محافظة الغربية","012345678910","المجموعة النوعية لوظائف كادر المعلم","1991-09-01",24,3,29,"منتدب داخل الوزارة","1992-01-16","معلم خبير","6210","2014-10-20","------","------","------","لغة إنجليزية","معلم لغة إنجليزية إعدادي / ثانوي","عليا","ليسانس آداب وتربية","جامعة طنطا","مقبول","1991-05-01","بدون","بدون","بدون","بدون","بدون"]
[23,"تنسيق التعليم الإعدادي","------",123478,28509181600510,"حاتم 23","18","09",1985,"1985-09-18","2045-09-17",{"$error":"#NAME?"},"ذكر","مسلم","مصري","متزوج + أكثر من 3","الغربية","طنطا - محافظة الغربية","012345678910","المجموعة النوعية للوظائف المكتبية","1993-06-06",19,6,27,"على رأس العمل","1993-07-10","رئيس وحدة","6313","2003-12-08","الأولى","6665","2014-12-11","------","------","فوق المتوسطة","شهادة إعداد فنيين تجاريين","وزارة التعليم العالي","------","1983-06-30","بدون","بدون","بدون","بدون","بدون"]
[24,"التغذية","ابتدائي",123479,28509181600510,"حاتم 24","18","09",1985,"1985-09-18","2045-09-17",{"$error":"#NAME?"},"ذكر","مسلم","مصري","متزوج + أكثر من 3","الغربية","طنطا - محافظة الغربية","012345678910","المجموعة النوعية لوظائف كادر المعلم","1995-12-04",21,0,25,"منتدب داخل الوزارة","2001-02-04","معلم خبير","5109","2018-10-18","------","------","------","لغة عربية ودين","معلم لغة عربية ابتدائي","عليا","ليسانس آداب وتربية","جامعة طنطا","جيد جدا","1996-06-03","بدون","بدون","بدون","بدون","بدون"]
[25,"التغذية","------",123480,28509181600510,"حاتم 25",{"$f":"RIGHT(LEFT(E31,7),2)","v":"18"},{"$f":"RIGHT(LEFT(E31,5),2)","v":"09"},{"$f":"IF(E31=\"\",\"\",IF(ISODD(MID(E31,1,1)),MID(E31,2,2)+2000,MID(E31,2,2)+1900))","v":1985},{"$f":"IF(E31=\"\",\"\",DATE(I31,H31,G31))","v":"1985-09-18"},{"$f":"IF(J31=\"\",\"\",$K$4+J31-1)","v":"2045-09-17"},{"$error":"#NAME?"},{"$f":"IF(E31=\"\",\"\",IF(ISODD(MID(E31,13,1)),\"ذكر\",\"أنثى\"))","v":"ذكر"},"مسلم","مصري","متزوج + 2",{"$f":"IF(F31=\"\",\"\",\"الغربية\")","v":"الغربية"},"طنطا - محافظة الغربية","012345678910","المجموعة النوعية لوظائف الهندسة","2012-07-22",{"$f":"IF(U31=\"\",\"\",DATEDIF(U31,$V$3,\"md\"))","v":3},{"$f":"IF(U31=\"\",\"\",DATEDIF(U31,$V$3,\"ym\"))","v":5},{"$f":"IF(U31=\"\",\"\",DATEDIF(U31,$V$3,\"y\"))","v":8},"على رأس العمل","2012-08-27","امين معمل - مرافق زراعية رابع","3886","2012-08-09","الثالثة",5038,"2019-10-29","------","------","متوسطة","دبلوم زراعة متوسطة","وزارة التربية والتعليم","------","2009-05-01","------","------","------","------","------"]
["",null,null,null,null,null,"","","","","",{"$error":"#NAME?"},"",null,null,null,"",null,null,null,null,"","",""]
["",null,null,null,null,null,"","","","","",{"$error":"#NAME?"},"",null,null,null,"",null,null,null,null,"","",""]
["",null,null,null,null,null,"","","","","",{"$error":"#NAME?"},"",null,null,null,"",null,null,null,null,"","",""]
["",null,null,null,null,null,"","","","","",{"$error":"#NAME?"},"",null,null,null,"",null,null,null,null,"","",""]
["",null,null,null,null,null,"","","","","",{"$error":"#NAME?"},"",null,null,null,"",null,null,null,null,"","",""]
["",null,null,null,null,null,"","","","","",{"$error":"#NAME?"},"",null,null,null,"",null,null,null,null,"","",""]
["",null,null,null,null,null,"","","","","",{"$error":"#NAME?"},"",null,null,null,"",null,null,null,null,"","",""]
["",null,null,null,null,null,"","","","","",{"$error":"#NAME?"},"",null,null,null,"",null,null,null,null,"","",""]
["",null,null,null,null,null,"","","","","",{"$error":"#NAME?"},"",null,null,null,"",null,null,null,null,"","",""]
["",null,null,null,null,null,"","","","","",{"$error":"#NAME?"},"",null,null,null,"",null,null,null,null,"","",""]
["",null,null,null,null,null,"","","","","",{"$error":"#NAME?"},"",null,null,null,"",null,null,null,null,"","",""]
["",null,null,null,null,null,"","","","","",{"$error":"#NAME?"},"",null,null,null,"",null,null,null,null,"","",""]
["",null,null,null,null,null,"","","","","",{"$error":"#NAME?"},"",null,null,null,"",null,null,null,null,"","",""]
["",null,null,null,null,null,"","","","","",{"$error":"#NAME?"},"",null,null,null,"",null,null,null,null,"","",""]
["",null,null,null,null,null,"","","","","",{"$error":"#NAME?"},"",null,null,null,"",null,null,null,null,"","",""]
["",null,null,null,null,null,"","","","","",{"$error":"#NAME?"},"",null,null,null,"",null,null,null,null,"","",""]
["",null,null,null,null,null,"","","","","",{"$error":"#NAME?"},"",null,null,null,"",null,null,null,null,"","",""]
["",null,null,null,null,null,"","","","","",{"$error":"#NAME?"},"",null,null,null,"",null,null,null,null,"","",""]
["",null,null,null,null,null,"","","","","",{"$error":"#NAME?"},"",null,null,null,"",null,null,null,null,"","",""]
["",null,null,null,null,null,"","","","","",{"$error":"#NAME?"},"",null,null,null,"",null,null,null,null,"","",""]
["",null,null,null,null,null,"","","","","",{"$error":"#NAME?"},"",null,null,null,"",null,null,null,null,"","",""]
["",null,null,null,null,null,"","","","","",{"$error":"#NAME?"},"",null,null,null,"",null,null,null,null,"","",""]
["",null,null,null,null,null,"","","","","",{"$error":"#NAME?"},"",null,null,null,"",null,null,null,null,"","",""]
["",null,null,null,null,null,"","","","","",{"$error":"#NAME?"},"",null,null,null,"",null,null,null,null,"","",""]
["",null,null,null,null,null,"","","","","",{"$error":"#NAME?"},"",null,null,null,"",null,null,null,null,"","",""]
["",null,null,null,null,null,"","","","","",{"$error":"#NAME?"},"",null,null,null,"",null,null,null,null,"","",""]
["",null,null,null,null,null,"","","","","",{"$error":"#NAME?"},"",null,null,null,"",null,null,null,null,"","","",null,null,null,null,null,null,null,null,null,null,null,null,null,null,null,null,null,null,null,null,null,null,{"$f":"IF(U58=\"\",\"\",DATEDIF(U58,$AU$3,\"md\"))","v":""},{"$f":"IF(U58=\"\",\"\",DATEDIF(U58,$AU$3,\"ym\"))","v":""},{"$f":"IF(U58=\"\",\"\",DATEDIF(U58,$AU$3,\"y\"))","v":""},{"$f":"IF(J58=\"\",\"\",$AX$3+J58-1)","v":""},null,null,null,null,{"$f":"IF(A58=\"\",\"\",A58)","v":""},{"$f":"IF(D58=\"\",\"\",D58)","v":""},{"$f":"IF(F58=\"\",\"\",F58)","v":""}]
["",null,null,null,null,null,"","","","","",{"$error":"#NAME?"},"",null,null,null,"",null,null,null,null,"","","",null,null,null,null,null,null,null,null,null,null,null,null,null,null,null,null,null,null,null,null,null,null,"","","","",null,null,null,null,"","",""]
["",null,null,null,null,null,"","","","","",{"$error":"#NAME?"},"",null,null,null,"",null,null,null,null,"","","",null,null,null,null,null,null,null,null,null,null,null,null,null,null,null,null,null,null,null,null,null,null,"","","","",null,null,null,null,"","",""]
["",null,null,null,null,null,"","","","","",{"$error":"#NAME?"},"",null,null,null,"",null,null,null,null,"","","",null,null,null,null,null,null,null,null,null,null,null,null,null,null,null,null,null,null,null,null,null,null,"","","","",null,null,null,null,"","",""]
["",null,null,null,null,null,"","","","","",{"$error":"#NAME?"},"",null,null,null,"",null,null,null,null,"","","",null,null,null,null,null,null,null,null,null,null,null,null,null,null,null,null,null,null,null,null,null,null,"","","","",null,null,null,null,"","",""]
["",null,null,null,null,null,"","","","","",{"$error":"#NAME?"},"",null,null,null,"",null,null,null,null,"","","",null,null,null,null,null,null,null,null,null,null,null,null,null,null,null,null,null,null,null,null,null,null,"","","","",null,null,null,null,"","",""]
["",null,null,null,null,null,"","","","","",{"$error":"#NAME?"},"",null,null,null,"",null,null,null,null,"","","",null,null,null,null,null,null,null,null,null,null,null,null,null,null,null,null,null,null,null,null,null,null,"","","","",null,null,null,null,"","",""]
["",null,null,null,null,null,"","","","","",{"$error":"#NAME?"},"",null,null,null,"",null,null,null,null,"","","",null,null,null,null,null,null,null,null,null,null,null,null,null,null,null,null,null,null,null,null,null,null,"","","","",null,null,null,null,"","",""]
["",null,null,null,null,null,"","","","","",{"$error":"#NAME?"},"",null,null,null,"",null,null,null,null,"","","",null,null,null,null,null,null,null,null,null,null,null,null,null,null,null,null,null,null,null,null,null,null,"","","","",null,null,null,null,"","",""]
["",null,null,null,null,null,"","","","","",{"$error":"#NAME?"},"",null,null,null,"",null,null,null,null,"","","",null,null,null,null,null,null,null,null,null,null,null,null,null,null,null,null,null,null,null,null,null,null,"","","","",null,null,null,null,"","",""]
["",null,null,null,null,null,"","","","","",{"$error":"#NAME?"},"",null,null,null,"",null,null,null,null,"","","",null,null,null,null,null,null,null,null,null,null,null,null,null,null,null,null,null,null,null,null,null,null,"","","","",null,null,null,null,"","",""]
["",null,null,null,null,null,"","","","","",{"$error":"#NAME?"},"",null,null,null,"",null,null,null,null,"","","",null,null,null,null,null,null,null,null,null,null,null,null,null,null,null,null,null,null,null,null,null,null,"","","","",null,null,null,null,"","",""]
["",null,null,null,null,null,"","","","","",{"$error":"#NAME?"},"",null,null,null,"",null,null,null,null,"","","",null,null,null,null,null,null,null,null,null,null,null,null,null,null,null,null,null,null,null,null,null,null,"","","","",null,null,null,null,"","",""]
["",null,null,null,null,null,"","","",{"$f":"IF(E71=\"\",\"\",DATE(I71,H71,G71))","v":""},"",{"$f":"Kh_Date_Sex_Province($E71,3)","v":{"$error":"#NAME?"}},{"$f":"IF(E71=\"\",\"\",IF(ISODD(MID(E71,13,1)),\"ذكر\",\"أنثى\"))","v":""},null,null,null,"",null,null,null,null,"","","",null,null,null,null,null,null,null,null,null,null,null,null,null,null,null,null,null,null,null,null,null,null,"","","","",null,null,null,null,"","",""]
[{"$f":"IF(F72=\"\",\"\",A71+1)","v":""},null,null,null,null,null,{"$f":"RIGHT(LEFT(E72,7),2)","v":""},{"$f":"RIGHT(LEFT(E72,5),2)","v":""},{"$f":"IF(E72=\"\",\"\",IF(ISODD(MID(E72,1,1)),MID(E72,2,2)+2000,MID(E72,2,2)+1900))","v":""},"",{"$f":"IF(J72=\"\",\"\",$K$4+J72-1)","v":""},{"$error":"#NAME?"},"",null,null,null,{"$f":"IF(F72=\"\",\"\",\"الغربية\")","v":""},null,null,null,null,{"$f":"IF(U72=\"\",\"\",DATEDIF(U72,$V$3,\"md\"))","v":""},{"$f":"IF(U72=\"\",\"\",DATEDIF(U72,$V$3,\"ym\"))","v":""},{"$f":"IF(U72=\"\",\"\",DATEDIF(U72,$V$3,\"y\"))","v":""},null,null,null,null,null,null,null,null,null,null,null,null,null,null,null,null,null,null,null,null,null,null,{"$f":"IF(U72=\"\",\"\",DATEDIF(U72,$AU$3,\"md\"))","v":""},{"$f":"IF(U72=\"\",\"\",DATEDIF(U72,$AU$3,\"ym\"))","v":""},{"$f":"IF(U72=\"\",\"\",DATEDIF(U72,$AU$3,\"y\"))","v":""},"",null,null,null,null,{"$f":"IF(A72=\"\",\"\",A72)","v":""},{"$f":"IF(D72=\"\",\"\",D72)","v":""},{"$f":"IF(F72=\"\",\"\",F72)","v":""}]
["",null,null,null,null,null,"","","","","",{"$error":"#NAME?"},"",null,null,null,"",null,null,null,null,"","","",null,null,null,null,null,null,null,null,null,null,null,null,null,null,null,null,null,null,null,null,null,null,"","","",{"$f":"IF(J73=\"\",\"\",$AX$3+J73-1)","v":""},null,null,null,null,"","",""]
["",null,null,null,null,null,"","","","","",{"$error":"#NAME?"},"",null,null,null,"",null,null,null,null,"","","",null,null,null,null,null,null,null,null,null,null,null,null,null,null,null,null,null,null,null,null,null,null,"","","","",null,null,null,null,"","",""]
["",null,null,null,null,null,"","","","","",{"$error":"#NAME?"},"",null,null,null,"",null,null,null,null,"","","",null,null,null,null,null,null,null,null,null,null,null,null,null,null,null,null,null,null,null,null,null,null,"","","","",null,null,null,null,"","",""]
["",null,null,null,null,null,"","","","","",{"$error":"#NAME?"},"",null,null,null,"",null,null,null,null,"","","",null,null,null,null,null,null,null,null,null,null,null,null,null,null,null,null,null,null,null,null,null,null,"","","","",null,null,null,null,"","",""]
["",null,null,null,null,null,"","","","","",{"$error":"#NAME?"},"",null,null,null,"",null,null,null,null,"","","",null,null,null,null,null,null,null,null,null,null,null,null,null,null,null,null,null,null,null,null,null,null,"","","","",null,null,null,null,"","",""]
["",null,null,null,null,null,"","","","","",{"$error":"#NAME?"},"",null,null,null,"",null,null,null,null,"","","",null,null,null,null,null,null,null,null,null,null,null,null,null,null,null,null,null,null,null,null,null,null,"","","","",null,null,null,null,"","",""]
["",null,null,null,null,null,"","","","","",{"$error":"#NAME?"},"",null,null,null,"",null,null,null,null,"","","",null,null,null,null,null,null,null,null,null,null,null,null,null,null,null,null,null,null,null,null,null,null,"","","","",null,null,null,null,"","",""]
["",null,null,null,null,null,"","","","","",{"$error":"#NAME?"},"",null,null,null,"",null,null,null,null,"","","",null,null,null,null,null,null,null,null,null,null,null,null,null,null,null,null,null,null,null,null,null,null,"","","","",null,null,null,null,"","",""]
["",null,null,null,null,null,"","","","","",{"$error":"#NAME?"},"",null,null,null,"",null,null,null,null,"","","",null,null,null,null,null,null,null,null,null,null,null,null,null,null,null,null,null,null,null,null,null,null,"","","","",null,null,null,null,"","",""]
["",null,null,null,null,null,"","","","","",{"$error":"#NAME?"},"",null,null,null,"",null,null,null,null,"","","",null,null,null,null,null,null,null,null,null,null,null,null,null,null,null,null,null,null,null,null,null,null,"","","","",null,null,null,null,"","",""]
["",null,null,null,null,null,"","","","","",{"$error":"#NAME?"},"",null,null,null,"",null,null,null,null,"","","",null,null,null,null,null,null,null,null,null,null,null,null,null,null,null,null,null,null,null,null,null,null,"","","","",null,null,null,null,"","",""]
["",null,null,null,null,null,"","","","","",{"$error":"#NAME?"},"",null,null,null,"",null,null,null,null,"","","",null,null,null,null,null,null,null,null,null,null,null,null,null,null,null,null,null,null,null,null,null,null,"","","","",null,null,null,null,"","",""]
["",null,null,null,null,null,"","","","","",{"$error":"#NAME?"},"",null,null,null,"",null,null,null,null,"","","",null,null,null,null,null,null,null,null,null,null,null,null,null,null,null,null,null,null,null,null,null,null,"","","","",null,null,null,null,"","",""]
["",null,null,null,null,null,"","","","","",{"$error":"#NAME?"},"",null,null,null,"",null,null,null,null,"","","",null,null,null,null,null,null,null,null,null,null,null,null,null,null,null,null,null,null,null,null,null,null,"","","","",null,null,null,null,"","",""]
["",null,null,null,null,null,"","","","","",{"$error":"#NAME?"},"",null,null,null,"",null,null,null,null,"","","",null,null,null,null,null,null,null,null,null,null,null,null,null,null,null,null,null,null,null,null,null,null,"","","","",null,null,null,null,"","",""]
["",null,null,null,null,null,"","","","","",{"$error":"#NAME?"},"",null,null,null,"",null,null,null,null,"","","",null,null,null,null,null,null,null,null,null,null,null,null,null,null,null,null,null,null,null,null,null,null,"","","","",null,null,null,null,"","",""]
["",null,null,null,null,null,"","","","","",{"$error":"#NAME?"},"",null,null,null,"",null,null,null,null,"","","",null,null,null,null,null,null,null,null,null,null,null,null,null,null,null,null,null,null,null,null,null,null,"","","","",null,null,null,null,"","",""]
["",null,null,null,null,null,"","","","","",{"$error":"#NAME?"},"",null,null,null,"",null,null,null,null,"","","",null,null,null,null,null,null,null,null,null,null,null,null,null,null,null,null,null,null,null,null,null,null,"","","","",null,null,null,null,"","",""]
["",null,null,null,null,null,"","","","","",{"$error":"#NAME?"},"",null,null,null,"",null,null,null,null,"","","",null,null,null,null,null,null,null,null,null,null,null,null,null,null,null,null,null,null,null,null,null,null,"","","","",null,null,null,null,"","",""]
["",null,null,null,null,null,"","","","","",{"$error":"#NAME?"},"",null,null,null,"",null,null,null,null,"","","",null,null,null,null,null,null,null,null,null,null,null,null,null,null,null,null,null,null,null,null,null,null,"","","","",null,null,null,null,"","",""]
["",null,null,null,null,null,"","","","","",{"$error":"#NAME?"},"",null,null,null,"",null,null,null,null,"","","",null,null,null,null,null,null,null,null,null,null,null,null,null,null,null,null,null,null,null,null,null,null,"","","","",null,null,null,null,"","",""]
["",null,null,null,null,null,"","","","","",{"$error":"#NAME?"},"",null,null,null,"",null,null,null,null,"","","",null,null,null,null,null,null,null,null,null,null,null,null,null,null,null,null,null,null,null,null,null,null,"","","","",null,null,null,null,"","",""]
["",null,null,null,null,null,"","","","","",{"$error":"#NAME?"},"",null,null,null,"",null,null,null,null,"","","",null,null,null,null,null,null,null,null,null,null,null,null,null,null,null,null,null,null,null,null,null,null,"","","","",null,null,null,null,"","",""]
["",null,null,null,null,null,"","","","","",{"$error":"#NAME?"},"",null,null,null,"",null,null,null,null,"","","",null,null,null,null,null,null,null,null,null,null,null,null,null,null,null,null,null,null,null,null,null,null,"","","","",null,null,null,null,"","",""]
["",null,null,null,null,null,"","","","","",{"$error":"#NAME?"},"",null,null,null,"",null,null,null,null,"","","",null,null,null,null,null,null,null,null,null,null,null,null,null,null,null,null,null,null,null,null,null,null,"","","","",null,null,null,null,"","",""]
["",null,null,null,null,null,"","","","","",{"$error":"#NAME?"},"",null,null,null,"",null,null,null,null,"","","",null,null,null,null,null,null,null,null,null,null,null,null,null,null,null,null,null,null,null,null,null,null,"","","","",null,null,null,null,"","",""]
["",null,null,null,null,null,"","","","","",{"$error":"#NAME?"},"",null,null,null,"",null,null,null,null,"","","",null,null,null,null,null,null,null,null,null,null,null,null,null,null,null,null,null,null,null,null,null,null,"","","","",null,null,null,null,"","",""]
["",null,null,null,null,null,"","","","","",{"$error":"#NAME?"},"",null,null,null,"",null,null,null,null,"","","",null,null,null,null,null,null,null,null,null,null,null,null,null,null,null,null,null,null,null,null,null,null,"","","","",null,null,null,null,"","",""]
["",null,null,null,null,null,"","","","","",{"$error":"#NAME?"},"",null,null,null,"",null,null,null,null,"","","",null,null,null,null,null,null,null,null,null,null,null,null,null,null,null,null,null,null,null,null,null,null,"","","","",null,null,null,null,"","",""]
["",null,null,null,null,null,"","","","","",{"$error":"#NAME?"},"",null,null,null,"",null,null,null,null,"","","",null,null,null,null,null,null,null,null,null,null,null,null,null,null,null,null,null,null,null,null,null,null,"","","","",null,null,null,null,"","",""]
["",null,null,null,null,null,"","","","","",{"$error":"#NAME?"},"",null,null,null,"",null,null,null,null,"","","",null,null,null,null,null,null,null,null,null,null,null,null,null,null,null,null,null,null,null,null,null,null,"","","","",null,null,null,null,"","",""]
["",null,null,null,null,null,"","","","","",{"$error":"#NAME?"},"",null,null,null,"",null,null,null,null,"","","",null,null,null,null,null,null,null,null,null,null,null,null,null,null,null,null,null,null,null,null,null,null,"","","","",null,null,null,null,"","",""]
["",null,null,null,null,null,"","","","","",{"$error":"#NAME?"},"",null,null,null,"",null,null,null,null,"","","",null,null,null,null,null,null,null,null,null,null,null,null,null,null,null,null,null,null,null,null,null,null,"","","","",null,null,null,null,"","",""]
["",null,null,null,null,null,"","","","","",{"$error":"#NAME?"},"",null,null,null,"",null,null,null,null,"","","",null,null,null,null,null,null,null,null,null,null,null,null,null,null,null,null,null,null,null,null,null,null,"","","","",null,null,null,null,"","",""]
["",null,null,null,null,null,"","","","","",{"$error":"#NAME?"},"",null,null,null,"",null,null,null,null,"","","",null,null,null,null,null,null,null,null,null,null,null,null,null,null,null,null,null,null,null,null,null,null,"","","","",null,null,null,null,"","",""]
["",null,null,null,null,null,"","","","","",{"$error":"#NAME?"},"",null,null,null,"",null,null,null,null,"","","",null,null,null,null,null,null,null,null,null,null,null,null,null,null,null,null,null,null,null,null,null,null,"","","","",null,null,null,null,"","",""]
["",null,null,null,null,null,"","","","","",{"$error":"#NAME?"},"",null,null,null,"",null,null,null,null,"","","",null,null,null,null,null,null,null,null,null,null,null,null,null,null,null,null,null,null,null,null,null,null,"","","","",null,null,null,null,"","",""]
["",null,null,null,null,null,"","","","","",{"$error":"#NAME?"},"",null,null,null,"",null,null,null,null,"","","",null,null,null,null,null,null,null,null,null,null,null,null,null,null,null,null,null,null,null,null,null,null,"","","","",null,null,null,null,"","",""]
["",null,null,null,null,null,"","","","","",{"$error":"#NAME?"},"",null,null,null,"",null,null,null,null,"","","",null,null,null,null,null,null,null,null,null,null,null,null,null,null,null,null,null,null,null,null,null,null,"","","","",null,null,null,null,"","",""]
["",null,null,null,null,null,"","","","","",{"$error":"#NAME?"},"",null,null,null,"",null,null,null,null,"","","",null,null,null,null,null,null,null,null,null,null,null,null,null,null,null,null,null,null,null,null,null,null,"","","","",null,null,null,null,"","",""]
["",null,null,null,null,null,"","","","","",{"$error":"#NAME?"},"",null,null,null,"",null,null,null,null,"","","",null,null,null,null,null,null,null,null,null,null,null,null,null,null,null,null,null,null,null,null,null,null,"","","","",null,null,null,null,"","",""]
["",null,null,null,null,null,"","","","","",{"$error":"#NAME?"},"",null,null,null,"",null,null,null,null,"","","",null,null,null,null,null,null,null,null,null,null,null,null,null,null,null,null,null,null,null,null,null,null,"","","","",null,null,null,null,"","",""]
["",null,null,null,null,null,"","","","","",{"$error":"#NAME?"},"",null,null,null,"",null,null,null,null,"","","",null,null,null,null,null,null,null,null,null,null,null,null,null,null,null,null,null,null,null,null,null,null,"","","","",null,null,null,null,"","",""]
["",null,null,null,null,null,"","","","","",{"$error":"#NAME?"},"",null,null,null,"",null,null,null,null,"","","",null,null,null,null,null,null,null,null,null,null,null,null,null,null,null,null,null,null,null,null,null,null,"","","","",null,null,null,null,"","",""]
["",null,null,null,null,null,"","","","","",{"$error":"#NAME?"},"",null,null,null,"",null,null,null,null,"","","",null,null,null,null,null,null,null,null,null,null,null,null,null,null,null,null,null,null,null,null,null,null,"","","","",null,null,null,null,"","",""]
["",null,null,null,null,null,"","","","","",{"$error":"#NAME?"},"",null,null,null,"",null,null,null,null,"","","",null,null,null,null,null,null,null,null,null,null,null,null,null,null,null,null,null,null,null,null,null,null,"","","","",null,null,null,null,"","",""]
["",null,null,null,null,null,"","","","","",{"$error":"#NAME?"},"",null,null,null,"",null,null,null,null,"","","",null,null,null,null,null,null,null,null,null,null,null,null,null,null,null,null,null,null,null,null,null,null,"","","","",null,null,null,null,"","",""]
["",null,null,null,null,null,"","","","","",{"$error":"#NAME?"},"",null,null,null,"",null,null,null,null,"","","",null,null,null,null,null,null,null,null,null,null,null,null,null,null,null,null,null,null,null,null,null,null,"","","","",null,null,null,null,"","",""]
["",null,null,null,null,null,"","","","","",{"$error":"#NAME?"},"",null,null,null,"",null,null,null,null,"","","",null,null,null,null,null,null,null,null,null,null,null,null,null,null,null,null,null,null,null,null,null,null,"","","","",null,null,null,null,"","",""]
["",null,null,null,null,null,"","","","","",{"$error":"#NAME?"},"",null,null,null,"",null,null,null,null,"","","",null,null,null,null,null,null,null,null,null,null,null,null,null,null,null,null,null,null,null,null,null,null,"","","","",null,null,null,null,"","",""]
["",null,null,null,null,null,"","","","","",{"$error":"#NAME?"},"",null,null,null,"",null,null,null,null,"","","",null,null,null,null,null,null,null,null,null,null,null,null,null,null,null,null,null,null,null,null,null,null,"","","","",null,null,null,null,"","",""]
["",null,null,null,null,null,"","","","","",{"$error":"#NAME?"},"",null,null,null,"",null,null,null,null,"","","",null,null,null,null,null,null,null,null,null,null,null,null,null,null,null,null,null,null,null,null,null,null,"","","","",null,null,null,null,"","",""]
["",null,null,null,null,null,"","","","","",{"$error":"#NAME?"},"",null,null,null,"",null,null,null,null,"","","",null,null,null,null,null,null,null,null,null,null,null,null,null,null,null,null,null,null,null,null,null,null,"","","","",null,null,null,null,"","",""]
["",null,null,null,null,null,"","","","","",{"$error":"#NAME?"},"",null,null,null,"",null,null,null,null,"","","",null,null,null,null,null,null,null,null,null,null,null,null,null,null,null,null,null,null,null,null,null,null,"","","","",null,null,null,null,"","",""]
["",null,null,null,null,null,"","","","","",{"$error":"#NAME?"},"",null,null,null,"",null,null,null,null,"","","",null,null,null,null,null,null,null,null,null,null,null,null,null,null,null,null,null,null,null,null,null,null,"","","","",null,null,null,null,"","",""]
["",null,null,null,null,null,"","","","","",{"$error":"#NAME?"},"",null,null,null,"",null,null,null,null,"","","",null,null,null,null,null,null,null,null,null,null,null,null,null,null,null,null,null,null,null,null,null,null,"","","","",null,null,null,null,"","",""]
["",null,null,null,null,null,"","","","","",{"$error":"#NAME?"},"",null,null,null,"",null,null,null,null,"","","",null,null,null,null,null,null,null,null,null,null,null,null,null,null,null,null,null,null,null,null,null,null,"","","","",null,null,null,null,"","",""]
["",null,null,null,null,null,"","","","","",{"$error":"#NAME?"},"",null,null,null,"",null,null,null,null,"","","",null,null,null,null,null,null,null,null,null,null,null,null,null,null,null,null,null,null,null,null,null,null,"","","","",null,null,null,null,"","",""]
["",null,null,null,null,null,"","","","","",{"$error":"#NAME?"},"",null,null,null,"",null,null,null,null,"","","",null,null,null,null,null,null,null,null,null,null,null,null,null,null,null,null,null,null,null,null,null,null,"","","","",null,null,null,null,"","",""]
["",null,null,null,null,null,"","","","","",{"$error":"#NAME?"},"",null,null,null,"",null,null,null,null,"","","",null,null,null,null,null,null,null,null,null,null,null,null,null,null,null,null,null,null,null,null,null,null,"","","","",null,null,null,null,"","",""]
["",null,null,null,null,null,"","","","","",{"$error":"#NAME?"},"",null,null,null,"",null,null,null,null,"","","",null,null,null,null,null,null,null,null,null,null,null,null,null,null,null,null,null,null,null,null,null,null,"","","","",null,null,null,null,"","",""]
["",null,null,null,null,null,"","","","","",{"$error":"#NAME?"},"",null,null,null,"",null,null,null,null,"","","",null,null,null,null,null,null,null,null,null,null,null,null,null,null,null,null,null,null,null,null,null,null,"","","","",null,null,null,null,"","",""]
["",null,null,null,null,null,"","","",{"$f":"IF(E135=\"\",\"\",DATE(I135,H135,G135))","v":""},"",{"$f":"Kh_Date_Sex_Province($E135,3)","v":{"$error":"#NAME?"}},{"$f":"IF(E135=\"\",\"\",IF(ISODD(MID(E135,13,1)),\"ذكر\",\"أنثى\"))","v":""},null,null,null,"",null,null,null,null,"","","",null,null,null,null,null,null,null,null,null,null,null,null,null,null,null,null,null,null,null,null,null,null,"","","","",null,null,null,null,"","",""]
[{"$f":"IF(F136=\"\",\"\",A135+1)","v":""},null,null,null,null,null,{"$f":"RIGHT(LEFT(E136,7),2)","v":""},{"$f":"RIGHT(LEFT(E136,5),2)","v":""},{"$f":"IF(E136=\"\",\"\",IF(ISODD(MID(E136,1,1)),MID(E136,2,2)+2000,MID(E136,2,2)+1900))","v":""},"",{"$f":"IF(J136=\"\",\"\",$K$4+J136-1)","v":""},{"$error":"#NAME?"},"",null,null,null,{"$f":"IF(F136=\"\",\"\",\"الغربية\")","v":""},null,null,null,null,{"$f":"IF(U136=\"\",\"\",DATEDIF(U136,$V$3,\"md\"))","v":""},{"$f":"IF(U136=\"\",\"\",DATEDIF(U136,$V$3,\"ym\"))","v":""},{"$f":"IF(U136=\"\",\"\",DATEDIF(U136,$V$3,\"y\"))","v":""},null,null,null,null,null,null,null,null,null,null,null,null,null,null,null,null,null,null,null,null,null,null,{"$f":"IF(U136=\"\",\"\",DATEDIF(U136,$AU$3,\"md\"))","v":""},{"$f":"IF(U136=\"\",\"\",DATEDIF(U136,$AU$3,\"ym\"))","v":""},{"$f":"IF(U136=\"\",\"\",DATEDIF(U136,$AU$3,\"y\"))","v":""},"",null,null,null,null,{"$f":"IF(A136=\"\",\"\",A136)","v":""},{"$f":"IF(D136=\"\",\"\",D136)","v":""},{"$f":"IF(F136=\"\",\"\",F136)","v":""}]
["",null,null,null,null,null,"","","","","",{"$error":"#NAME?"},"",null,null,null,"",null,null,null,null,"","","",null,null,null,null,null,null,null,null,null,null,null,null,null,null,null,null,null,null,null,null,null,null,"","","",{"$f":"IF(J137=\"\",\"\",$AX$3+J137-1)","v":""},null,null,null,null,"","",""]
["",null,null,null,null,null,"","","","","",{"$error":"#NAME?"},"",null,null,null,"",null,null,null,null,"","","",null,null,null,null,null,null,null,null,null,null,null,null,null,null,null,null,null,null,null,null,null,null,"","","","",null,null,null,null,"","",""]
["",null,null,null,null,null,"","","","","",{"$error":"#NAME?"},"",null,null,null,"",null,null,null,null,"","","",null,null,null,null,null,null,null,null,null,null,null,null,null,null,null,null,null,null,null,null,null,null,"","","","",null,null,null,null,"","",""]
["",null,null,null,null,null,"","","","","",{"$error":"#NAME?"},"",null,null,null,"",null,null,null,null,"","","",null,null,null,null,null,null,null,null,null,null,null,null,null,null,null,null,null,null,null,null,null,null,"","","","",null,null,null,null,"","",""]
["",null,null,null,null,null,"","","","","",{"$error":"#NAME?"},"",null,null,null,"",null,null,null,null,"","","",null,null,null,null,null,null,null,null,null,null,null,null,null,null,null,null,null,null,null,null,null,null,"","","","",null,null,null,null,"","",""]
["",null,null,null,null,null,"","","","","",{"$error":"#NAME?"},"",null,null,null,"",null,null,null,null,"","","",null,null,null,null,null,null,null,null,null,null,null,null,null,null,null,null,null,null,null,null,null,null,"","","","",null,null,null,null,"","",""]
["",null,null,null,null,null,"","","","","",{"$error":"#NAME?"},"",null,null,null,"",null,null,null,null,"","","",null,null,null,null,null,null,null,null,null,null,null,null,null,null,null,null,null,null,null,null,null,null,"","","","",null,null,null,null,"","",""]
["",null,null,null,null,null,"","","","","",{"$error":"#NAME?"},"",null,null,null,"",null,null,null,null,"","","",null,null,null,null,null,null,null,null,null,null,null,null,null,null,null,null,null,null,null,null,null,null,"","","","",null,null,null,null,"","",""]
["",null,null,null,null,null,"","","","","",{"$error":"#NAME?"},"",null,null,null,"",null,null,null,null,"","","",null,null,null,null,null,null,null,null,null,null,null,null,null,null,null,null,null,null,null,null,null,null,"","","","",null,null,null,null,"","",""]
["",null,null,null,null,null,"","","","","",{"$error":"#NAME?"},"",null,null,null,"",null,null,null,null,"","","",null,null,null,null,null,null,null,null,null,null,null,null,null,null,null,null,null,null,null,null,null,null,"","","","",null,null,null,null,"","",""]
["",null,null,null,null,null,"","","","","",{"$error":"#NAME?"},"",null,null,null,"",null,null,null,null,"","","",null,null,null,null,null,null,null,null,null,null,null,null,null,null,null,null,null,null,null,null,null,null,"","","","",null,null,null,null,"","",""]
["",null,null,null,null,null,"","","","","",{"$error":"#NAME?"},"",null,null,null,"",null,null,null,null,"","","",null,null,null,null,null,null,null,null,null,null,null,null,null,null,null,null,null,null,null,null,null,null,"","","","",null,null,null,null,"","",""]
["",null,null,null,null,null,"","","","","",{"$error":"#NAME?"},"",null,null,null,"",null,null,null,null,"","","",null,null,null,null,null,null,null,null,null,null,null,null,null,null,null,null,null,null,null,null,null,null,"","","","",null,null,null,null,"","",""]
["",null,null,null,null,null,"","","","","",{"$error":"#NAME?"},"",null,null,null,"",null,null,null,null,"","","",null,null,null,null,null,null,null,null,null,null,null,null,null,null,null,null,null,null,null,null,null,null,"","","","",null,null,null,null,"","",""]
["",null,null,null,null,null,"","","","","",{"$error":"#NAME?"},"",null,null,null,"",null,null,null,null,"","","",null,null,null,null,null,null,null,null,null,null,null,null,null,null,null,null,null,null,null,null,null,null,"","","","",null,null,null,null,"","",""]
["",null,null,null,null,null,"","","","","",{"$error":"#NAME?"},"",null,null,null,"",null,null,null,null,"","","",null,null,null,null,null,null,null,null,null,null,null,null,null,null,null,null,null,null,null,null,null,null,"","","","",null,null,null,null,"","",""]
["",null,null,null,null,null,"","","","","",{"$error":"#NAME?"},"",null,null,null,"",null,null,null,null,"","","",null,null,null,null,null,null,null,null,null,null,null,null,null,null,null,null,null,null,null,null,null,null,"","","","",null,null,null,null,"","",""]
["",null,null,null,null,null,"","","","","",{"$error":"#NAME?"},"",null,null,null,"",null,null,null,null,"","","",null,null,null,null,null,null,null,null,null,null,null,null,null,null,null,null,null,null,null,null,null,null,"","","","",null,null,null,null,"","",""]
["",null,null,null,null,null,"","","","","",{"$error":"#NAME?"},"",null,null,null,"",null,null,null,null,"","","",null,null,null,null,null,null,null,null,null,null,null,null,null,null,null,null,null,null,null,null,null,null,"","","","",null,null,null,null,"","",""]
["",null,null,null,null,null,"","","","","",{"$error":"#NAME?"},"",null,null,null,"",null,null,null,null,"","","",null,null,null,null,null,null,null,null,null,null,null,null,null,null,null,null,null,null,null,null,null,null,"","","","",null,null,null,null,"","",""]
["",null,null,null,null,null,"","","","","",{"$error":"#NAME?"},"",null,null,null,"",null,null,null,null,"","","",null,null,null,null,null,null,null,null,null,null,null,null,null,null,null,null,null,null,null,null,null,null,"","","","",null,null,null,null,"","",""]
["",null,null,null,null,null,"","","","","",{"$error":"#NAME?"},"",null,null,null,"",null,null,null,null,"","","",null,null,null,null,null,null,null,null,null,null,null,null,null,null,null,null,null,null,null,null,null,null,"","","","",null,null,null,null,"","",""]
["",null,null,null,null,null,"","","","","",{"$error":"#NAME?"},"",null,null,null,"",null,null,null,null,"","","",null,null,null,null,null,null,null,null,null,null,null,null,null,null,null,null,null,null,null,null,null,null,"","","","",null,null,null,null,"","",""]
["",null,null,null,null,null,"","","","","",{"$error":"#NAME?"},"",null,null,null,"",null,null,null,null,"","","",null,null,null,null,null,null,null,null,null,null,null,null,null,null,null,null,null,null,null,null,null,null,"","","","",null,null,null,null,"","",""]
["",null,null,null,null,null,"","","","","",{"$error":"#NAME?"},"",null,null,null,"",null,null,null,null,"","","",null,null,null,null,null,null,null,null,null,null,null,null,null,null,null,null,null,null,null,null,null,null,"","","","",null,null,null,null,"","",""]
["",null,null,null,null,null,"","","","","",{"$error":"#NAME?"},"",null,null,null,"",null,null,null,null,"","","",null,null,null,null,null,null,null,null,null,null,null,null,null,null,null,null,null,null,null,null,null,null,"","","","",null,null,null,null,"","",""]
["",null,null,null,null,null,"","","","","",{"$error":"#NAME?"},"",null,null,null,"",null,null,null,null,"","","",null,null,null,null,null,null,null,null,null,null,null,null,null,null,null,null,null,null,null,null,null,null,"","","","",null,null,null,null,"","",""]
["",null,null,null,null,null,"","","","","",{"$error":"#NAME?"},"",null,null,null,"",null,null,null,null,"","","",null,null,null,null,null,null,null,null,null,null,null,null,null,null,null,null,null,null,null,null,null,null,"","","","",null,null,null,null,"","",""]
["",null,null,null,null,null,"","","","","",{"$error":"#NAME?"},"",null,null,null,"",null,null,null,null,"","","",null,null,null,null,null,null,null,null,null,null,null,null,null,null,null,null,null,null,null,null,null,null,"","","","",null,null,null,null,"","",""]
["",null,null,null,null,null,"","","","","",{"$error":"#NAME?"},"",null,null,null,"",null,null,null,null,"","","",null,null,null,null,null,null,null,null,null,null,null,null,null,null,null,null,null,null,null,null,null,null,"","","","",null,null,null,null,"","",""]
["",null,null,null,null,null,"","","","","",{"$error":"#NAME?"},"",null,null,null,"",null,null,null,null,"","","",null,null,null,null,null,null,null,null,null,null,null,null,null,null,null,null,null,null,null,null,null,null,"","","","",null,null,null,null,"","",""]
["",null,null,null,null,null,"","","","","",{"$error":"#NAME?"},"",null,null,null,"",null,null,null,null,"","","",null,null,null,null,null,null,null,null,null,null,null,null,null,null,null,null,null,null,null,null,null,null,"","","","",null,null,null,null,"","",""]
["",null,null,null,null,null,"","","","","",{"$error":"#NAME?"},"",null,null,null,"",null,null,null,null,"","","",null,null,null,null,null,null,null,null,null,null,null,null,null,null,null,null,null,null,null,null,null,null,"","","","",null,null,null,null,"","",""]
["",null,null,null,null,null,"","","","","",{"$error":"#NAME?"},"",null,null,null,"",null,null,null,null,"","","",null,null,null,null,null,null,null,null,null,null,null,null,null,null,null,null,null,null,null,null,null,null,"","","","",null,null,null,null,"","",""]
["",null,null,null,null,null,"","","","","",{"$error":"#NAME?"},"",null,null,null,"",null,null,null,null,"","","",null,null,null,null,null,null,null,null,null,null,null,null,null,null,null,null,null,null,null,null,null,null,"","","","",null,null,null,null,"","",""]
["",null,null,null,null,null,"","","","","",{"$error":"#NAME?"},"",null,null,null,"",null,null,null,null,"","","",null,null,null,null,null,null,null,null,null,null,null,null,null,null,null,null,null,null,null,null,null,null,"","","","",null,null,null,null,"","",""]
["",null,null,null,null,null,"","","","","",{"$error":"#NAME?"},"",null,null,null,"",null,null,null,null,"","","",null,null,null,null,null,null,null,null,null,null,null,null,null,null,null,null,null,null,null,null,null,null,"","","","",null,null,null,null,"","",""]
["",null,null,null,null,null,"","","","","",{"$error":"#NAME?"},"",null,null,null,"",null,null,null,null,"","","",null,null,null,null,null,null,null,null,null,null,null,null,null,null,null,null,null,null,null,null,null,null,"","","","",null,null,null,null,"","",""]
["",null,null,null,null,null,"","","","","",{"$error":"#NAME?"},"",null,null,null,"",null,null,null,null,"","","",null,null,null,null,null,null,null,null,null,null,null,null,null,null,null,null,null,null,null,null,null,null,"","","","",null,null,null,null,"","",""]
["",null,null,null,null,null,"","","","","",{"$error":"#NAME?"},"",null,null,null,"",null,null,null,null,"","","",null,null,null,null,null,null,null,null,null,null,null,null,null,null,null,null,null,null,null,null,null,null,"","","","",null,null,null,null,"","",""]
["",null,null,null,null,null,"","","","","",{"$error":"#NAME?"},"",null,null,null,"",null,null,null,null,"","","",null,null,null,null,null,null,null,null,null,null,null,null,null,null,null,null,null,null,null,null,null,null,"","","","",null,null,null,null,"","",""]
["",null,null,null,null,null,"","","","","",{"$error":"#NAME?"},"",null,null,null,"",null,null,null,null,"","","",null,null,null,null,null,null,null,null,null,null,null,null,null,null,null,null,null,null,null,null,null,null,"","","","",null,null,null,null,"","",""]
["",null,null,null,null,null,"","","","","",{"$error":"#NAME?"},"",null,null,null,"",null,null,null,null,"","","",null,null,null,null,null,null,null,null,null,null,null,null,null,null,null,null,null,null,null,null,null,null,"","","","",null,null,null,null,"","",""]
["",null,null,null,null,null,"","","","","",{"$error":"#NAME?"},"",null,null,null,"",null,null,null,null,"","","",null,null,null,null,null,null,null,null,null,null,null,null,null,null,null,null,null,null,null,null,null,null,"","","","",null,null,null,null,"","",""]
["",null,null,null,null,null,"","","","","",{"$error":"#NAME?"},"",null,null,null,"",null,null,null,null,"","","",null,null,null,null,null,null,null,null,null,null,null,null,null,null,null,null,null,null,null,null,null,null,"","","","",null,null,null,null,"","",""]
["",null,null,null,null,null,"","","","","",{"$error":"#NAME?"},"",null,null,null,"",null,null,null,null,"","","",null,null,null,null,null,null,null,null,null,null,null,null,null,null,null,null,null,null,null,null,null,null,"","","","",null,null,null,null,"","",""]
["",null,null,null,null,null,"","","","","",{"$error":"#NAME?"},"",null,null,null,"",null,null,null,null,"","","",null,null,null,null,null,null,null,null,null,null,null,null,null,null,null,null,null,null,null,null,null,null,"","","","",null,null,null,null,"","",""]
["",null,null,null,null,null,"","","","","",{"$error":"#NAME?"},"",null,null,null,"",null,null,null,null,"","","",null,null,null,null,null,null,null,null,null,null,null,null,null,null,null,null,null,null,null,null,null,null,"","","","",null,null,null,null,"","",""]
["",null,null,null,null,null,"","","","","",{"$error":"#NAME?"},"",null,null,null,"",null,null,null,null,"","","",null,null,null,null,null,null,null,null,null,null,null,null,null,null,null,null,null,null,null,null,null,null,"","","","",null,null,null,null,"","",""]
["",null,null,null,null,null,"","","","","",{"$error":"#NAME?"},"",null,null,null,"",null,null,null,null,"","","",null,null,null,null,null,null,null,null,null,null,null,null,null,null,null,null,null,null,null,null,null,null,"","","","",null,null,null,null,"","",""]
["",null,null,null,null,null,"","","","","",{"$error":"#NAME?"},"",null,null,null,"",null,null,null,null,"","","",null,null,null,null,null,null,null,null,null,null,null,null,null,null,null,null,null,null,null,null,null,null,"","","","",null,null,null,null,"","",""]
["",null,null,null,null,null,"","","","","",{"$error":"#NAME?"},"",null,null,null,"",null,null,null,null,"","","",null,null,null,null,null,null,null,null,null,null,null,null,null,null,null,null,null,null,null,null,null,null,"","","","",null,null,null,null,"","",""]
["",null,null,null,null,null,"","","","","",{"$error":"#NAME?"},"",null,null,null,"",null,null,null,null,"","","",null,null,null,null,null,null,null,null,null,null,null,null,null,null,null,null,null,null,null,null,null,null,"","","","",null,null,null,null,"","",""]
["",null,null,null,null,null,"","","","","",{"$error":"#NAME?"},"",null,null,null,"",null,null,null,null,"","","",null,null,null,null,null,null,null,null,null,null,null,null,null,null,null,null,null,null,null,null,null,null,"","","","",null,null,null,null,"","",""]
["",null,null,null,null,null,"","","","","",{"$error":"#NAME?"},"",null,null,null,"",null,null,null,null,"","","",null,null,null,null,null,null,null,null,null,null,null,null,null,null,null,null,null,null,null,null,null,null,"","","","",null,null,null,null,"","",""]
["",null,null,null,null,null,"","","","","",{"$error":"#NAME?"},"",null,null,null,"",null,null,null,null,"","","",null,null,null,null,null,null,null,null,null,null,null,null,null,null,null,null,null,null,null,null,null,null,"","","","",null,null,null,null,"","",""]
["",null,null,null,null,null,"","","","","",{"$error":"#NAME?"},"",null,null,null,"",null,null,null,null,"","","",null,null,null,null,null,null,null,null,null,null,null,null,null,null,null,null,null,null,null,null,null,null,"","","","",null,null,null,null,"","",""]
["",null,null,null,null,null,"","","","","",{"$error":"#NAME?"},"",null,null,null,"",null,null,null,null,"","","",null,null,null,null,null,null,null,null,null,null,null,null,null,null,null,null,null,null,null,null,null,null,"","","","",null,null,null,null,"","",""]
["",null,null,null,null,null,"","","","","",{"$error":"#NAME?"},"",null,null,null,"",null,null,null,null,"","","",null,null,null,null,null,null,null,null,null,null,null,null,null,null,null,null,null,null,null,null,null,null,"","","","",null,null,null,null,"","",""]
["",null,null,null,null,null,"","","","","",{"$error":"#NAME?"},"",null,null,null,"",null,null,null,null,"","","",null,null,null,null,null,null,null,null,null,null,null,null,null,null,null,null,null,null,null,null,null,null,"","","","",null,null,null,null,"","",""]
["",null,null,null,null,null,"","","","","",{"$error":"#NAME?"},"",null,null,null,"",null,null,null,null,"","","",null,null,null,null,null,null,null,null,null,null,null,null,null,null,null,null,null,null,null,null,null,null,"","","","",null,null,null,null,"","",""]
["",null,null,null,null,null,"","","","","",{"$error":"#NAME?"},"",null,null,null,"",null,null,null,null,"","","",null,null,null,null,null,null,null,null,null,null,null,null,null,null,null,null,null,null,null,null,null,null,"","","","",null,null,null,null,"","",""]
["",null,null,null,null,null,"","","",{"$f":"IF(E199=\"\",\"\",DATE(I199,H199,G199))","v":""},"",{"$f":"Kh_Date_Sex_Province($E199,3)","v":{"$error":"#NAME?"}},{"$f":"IF(E199=\"\",\"\",IF(ISODD(MID(E199,13,1)),\"ذكر\",\"أنثى\"))","v":""},null,null,null,"",null,null,null,null,"","","",null,null,null,null,null,null,null,null,null,null,null,null,null,null,null,null,null,null,null,null,null,null,"","","","",null,null,null,null,"","",""]
[{"$f":"IF(F200=\"\",\"\",A199+1)","v":""},null,null,null,null,null,{"$f":"RIGHT(LEFT(E200,7),2)","v":""},{"$f":"RIGHT(LEFT(E200,5),2)","v":""},{"$f":"IF(E200=\"\",\"\",IF(ISODD(MID(E200,1,1)),MID(E200,2,2)+2000,MID(E200,2,2)+1900))","v":""},"",{"$f":"IF(J200=\"\",\"\",$K$4+J200-1)","v":""},{"$error":"#NAME?"},"",null,null,null,{"$f":"IF(F200=\"\",\"\",\"الغربية\")","v":""},null,null,null,null,{"$f":"IF(U200=\"\",\"\",DATEDIF(U200,$V$3,\"md\"))","v":""},{"$f":"IF(U200=\"\",\"\",DATEDIF(U200,$V$3,\"ym\"))","v":""},{"$f":"IF(U200=\"\",\"\",DATEDIF(U200,$V$3,\"y\"))","v":""},null,null,null,null,null,null,null,null,null,null,null,null,null,null,null,null,null,null,null,null,null,null,{"$f":"IF(U200=\"\",\"\",DATEDIF(U200,$AU$3,\"md\"))","v":""},{"$f":"IF(U200=\"\",\"\",DATEDIF(U200,$AU$3,\"ym\"))","v":""},{"$f":"IF(U200=\"\",\"\",DATEDIF(U200,$AU$3,\"y\"))","v":""},"",null,null,null,null,{"$f":"IF(A200=\"\",\"\",A200)","v":""},{"$f":"IF(D200=\"\",\"\",D200)","v":""},{"$f":"IF(F200=\"\",\"\",F200)","v":""}]
["",null,null,null,null,null,"","","","","",{"$error":"#NAME?"},"",null,null,null,"",null,null,null,null,"","","",null,null,null,null,null,null,null,null,null,null,null,null,null,null,null,null,null,null,null,null,null,null,"","","",{"$f":"IF(J201=\"\",\"\",$AX$3+J201-1)","v":""},null,null,null,null,"","",""]
["",null,null,null,null,null,"","","","","",{"$error":"#NAME?"},"",null,null,null,"",null,null,null,null,"","","",null,null,null,null,null,null,null,null,null,null,null,null,null,null,null,null,null,null,null,null,null,null,"","","","",null,null,null,null,"","",""]
["",null,null,null,null,null,"","","","","",{"$error":"#NAME?"},"",null,null,null,"",null,null,null,null,"","","",null,null,null,null,null,null,null,null,null,null,null,null,null,null,null,null,null,null,null,null,null,null,"","","","",null,null,null,null,"","",""]
["",null,null,null,null,null,"","","","","",{"$error":"#NAME?"},"",null,null,null,"",null,null,null,null,"","","",null,null,null,null,null,null,null,null,null,null,null,null,null,null,null,null,null,null,null,null,null,null,"","","","",null,null,null,null,"","",""]
["",null,null,null,null,null,"","","","","",{"$error":"#NAME?"},"",null,null,null,"",null,null,null,null,"","","",null,null,null,null,null,null,null,null,null,null,null,null,null,null,null,null,null,null,null,null,null,null,"","","","",null,null,null,null,"","",""]
["",null,null,null,null,null,"","","","","",{"$error":"#NAME?"},"",null,null,null,"",null,null,null,null,"","","",null,null,null,null,null,null,null,null,null,null,null,null,null,null,null,null,null,null,null,null,null,null,"","","","",null,null,null,null,"","",""]
["",null,null,null,null,null,"","","","","",{"$error":"#NAME?"},"",null,null,null,"",null,null,null,null,"","","",null,null,null,null,null,null,null,null,null,null,null,null,null,null,null,null,null,null,null,null,null,null,"","","","",null,null,null,null,"","",""]
["",null,null,null,null,null,"","","","","",{"$error":"#NAME?"},"",null,null,null,"",null,null,null,null,"","","",null,null,null,null,null,null,null,null,null,null,null,null,null,null,null,null,null,null,null,null,null,null,"","","","",null,null,null,null,"","",""]
["",null,null,null,null,null,"","","","","",{"$error":"#NAME?"},"",null,null,null,"",null,null,null,null,"","","",null,null,null,null,null,null,null,null,null,null,null,null,null,null,null,null,null,null,null,null,null,null,"","","","",null,null,null,null,"","",""]
["",null,null,null,null,null,"","","","","",{"$error":"#NAME?"},"",null,null,null,"",null,null,null,null,"","","",null,null,null,null,null,null,null,null,null,null,null,null,null,null,null,null,null,null,null,null,null,null,"","","","",null,null,null,null,"","",""]
["",null,null,null,null,null,"","","","","",{"$error":"#NAME?"},"",null,null,null,"",null,null,null,null,"","","",null,null,null,null,null,null,null,null,null,null,null,null,null,null,null,null,null,null,null,null,null,null,"","","","",null,null,null,null,"","",""]
["",null,null,null,null,null,"","","","","",{"$error":"#NAME?"},"",null,null,null,"",null,null,null,null,"","","",null,null,null,null,null,null,null,null,null,null,null,null,null,null,null,null,null,null,null,null,null,null,"","","","",null,null,null,null,"","",""]
["",null,null,null,null,null,"","","","","",{"$error":"#NAME?"},"",null,null,null,"",null,null,null,null,"","","",null,null,null,null,null,null,null,null,null,null,null,null,null,null,null,null,null,null,null,null,null,null,"","","","",null,null,null,null,"","",""]
["",null,null,null,null,null,"","","","","",{"$error":"#NAME?"},"",null,null,null,"",null,null,null,null,"","","",null,null,null,null,null,null,null,null,null,null,null,null,null,null,null,null,null,null,null,null,null,null,"","","","",null,null,null,null,"","",""]
["",null,null,null,null,null,"","","","","",{"$error":"#NAME?"},"",null,null,null,"",null,null,null,null,"","","",null,null,null,null,null,null,null,null,null,null,null,null,null,null,null,null,null,null,null,null,null,null,"","","","",null,null,null,null,"","",""]
["",null,null,null,null,null,"","","","","",{"$error":"#NAME?"},"",null,null,null,"",null,null,null,null,"","","",null,null,null,null,null,null,null,null,null,null,null,null,null,null,null,null,null,null,null,null,null,null,"","","","",null,null,null,null,"","",""]
["",null,null,null,null,null,"","","","","",{"$error":"#NAME?"},"",null,null,null,"",null,null,null,null,"","","",null,null,null,null,null,null,null,null,null,null,null,null,null,null,null,null,null,null,null,null,null,null,"","","","",null,null,null,null,"","",""]
["",null,null,null,null,null,"","","","","",{"$error":"#NAME?"},"",null,null,null,"",null,null,null,null,"","","",null,null,null,null,null,null,null,null,null,null,null,null,null,null,null,null,null,null,null,null,null,null,"","","","",null,null,null,null,"","",""]
["",null,null,null,null,null,"","","","","",{"$error":"#NAME?"},"",null,null,null,"",null,null,null,null,"","","",null,null,null,null,null,null,null,null,null,null,null,null,null,null,null,null,null,null,null,null,null,null,"","","","",null,null,null,null,"","",""]
["",null,null,null,null,null,"","","","","",{"$error":"#NAME?"},"",null,null,null,"",null,null,null,null,"","","",null,null,null,null,null,null,null,null,null,null,null,null,null,null,null,null,null,null,null,null,null,null,"","","","",null,null,null,null,"","",""]
["",null,null,null,null,null,"","","","","",{"$error":"#NAME?"},"",null,null,null,"",null,null,null,null,"","","",null,null,null,null,null,null,null,null,null,null,null,null,null,null,null,null,null,null,null,null,null,null,"","","","",null,null,null,null,"","",""]
["",null,null,null,null,null,"","","","","",{"$error":"#NAME?"},"",null,null,null,"",null,null,null,null,"","","",null,null,null,null,null,null,null,null,null,null,null,null,null,null,null,null,null,null,null,null,null,null,"","","","",null,null,null,null,"","",""]
["",null,null,null,null,null,"","","","","",{"$error":"#NAME?"},"",null,null,null,"",null,null,null,null,"","","",null,null,null,null,null,null,null,null,null,null,null,null,null,null,null,null,null,null,null,null,null,null,"","","","",null,null,null,null,"","",""]
["",null,null,null,null,null,"","","","","",{"$error":"#NAME?"},"",null,null,null,"",null,null,null,null,"","","",null,null,null,null,null,null,null,null,null,null,null,null,null,null,null,null,null,null,null,null,null,null,"","","","",null,null,null,null,"","",""]
["",null,null,null,null,null,"","","","","",{"$error":"#NAME?"},"",null,null,null,"",null,null,null,null,"","","",null,null,null,null,null,null,null,null,null,null,null,null,null,null,null,null,null,null,null,null,null,null,"","","","",null,null,null,null,"","",""]
["",null,null,null,null,null,"","","","","",{"$error":"#NAME?"},"",null,null,null,"",null,null,null,null,"","","",null,null,null,null,null,null,null,null,null,null,null,null,null,null,null,null,null,null,null,null,null,null,"","","","",null,null,null,null,"","",""]
["",null,null,null,null,null,"","","","","",{"$error":"#NAME?"},"",null,null,null,"",null,null,null,null,"","","",null,null,null,null,null,null,null,null,null,null,null,null,null,null,null,null,null,null,null,null,null,null,"","","","",null,null,null,null,"","",""]
["",null,null,null,null,null,"","","","","",{"$error":"#NAME?"},"",null,null,null,"",null,null,null,null,"","","",null,null,null,null,null,null,null,null,null,null,null,null,null,null,null,null,null,null,null,null,null,null,"","","","",null,null,null,null,"","",""]
["",null,null,null,null,null,"","","","","",{"$error":"#NAME?"},"",null,null,null,"",null,null,null,null,"","","",null,null,null,null,null,null,null,null,null,null,null,null,null,null,null,null,null,null,null,null,null,null,"","","","",null,null,null,null,"","",""]
["",null,null,null,null,null,"","","","","",{"$error":"#NAME?"},"",null,null,null,"",null,null,null,null,"","","",null,null,null,null,null,null,null,null,null,null,null,null,null,null,null,null,null,null,null,null,null,null,"","","","",null,null,null,null,"","",""]
["",null,null,null,null,null,"","","","","",{"$error":"#NAME?"},"",null,null,null,"",null,null,null,null,"","","",null,null,null,null,null,null,null,null,null,null,null,null,null,null,null,null,null,null,null,null,null,null,"","","","",null,null,null,null,"","",""]
["",null,null,null,null,null,"","","","","",{"$error":"#NAME?"},"",null,null,null,"",null,null,null,null,"","","",null,null,null,null,null,null,null,null,null,null,null,null,null,null,null,null,null,null,null,null,null,null,"","","","",null,null,null,null,"","",""]
["",null,null,null,null,null,"","","","","",{"$error":"#NAME?"},"",null,null,null,"",null,null,null,null,"","","",null,null,null,null,null,null,null,null,null,null,null,null,null,null,null,null,null,null,null,null,null,null,"","","","",null,null,null,null,"","",""]
["",null,null,null,null,null,"","","","","",{"$error":"#NAME?"},"",null,null,null,"",null,null,null,null,"","","",null,null,null,null,null,null,null,null,null,null,null,null,null,null,null,null,null,null,null,null,null,null,"","","","",null,null,null,null,"","",""]
["",null,null,null,null,null,"","","","","",{"$error":"#NAME?"},"",null,null,null,"",null,null,null,null,"","","",null,null,null,null,null,null,null,null,null,null,null,null,null,null,null,null,null,null,null,null,null,null,"","","","",null,null,null,null,"","",""]
["",null,null,null,null,null,"","","","","",{"$error":"#NAME?"},"",null,null,null,"",null,null,null,null,"","","",null,null,null,null,null,null,null,null,null,null,null,null,null,null,null,null,null,null,null,null,null,null,"","","","",null,null,null,null,"","",""]
["",null,null,null,null,null,"","","","","",{"$error":"#NAME?"},"",null,null,null,"",null,null,null,null,"","","",null,null,null,null,null,null,null,null,null,null,null,null,null,null,null,null,null,null,null,null,null,null,"","","","",null,null,null,null,"","",""]
["",null,null,null,null,null,"","","","","",{"$error":"#NAME?"},"",null,null,null,"",null,null,null,null,"","","",null,null,null,null,null,null,null,null,null,null,null,null,null,null,null,null,null,null,null,null,null,null,"","","","",null,null,null,null,"","",""]
["",null,null,null,null,null,"","","","","",{"$error":"#NAME?"},"",null,null,null,"",null,null,null,null,"","","",null,null,null,null,null,null,null,null,null,null,null,null,null,null,null,null,null,null,null,null,null,null,"","","","",null,null,null,null,"","",""]
["",null,null,null,null,null,"","","","","",{"$error":"#NAME?"},"",null,null,null,"",null,null,null,null,"","","",null,null,null,null,null,null,null,null,null,null,null,null,null,null,null,null,null,null,null,null,null,null,"","","","",null,null,null,null,"","",""]
["",null,null,null,null,null,"","","","","",{"$error":"#NAME?"},"",null,null,null,"",null,null,null,null,"","","",null,null,null,null,null,null,null,null,null,null,null,null,null,null,null,null,null,null,null,null,null,null,"","","","",null,null,null,null,"","",""]
["",null,null,null,null,null,"","","","","",{"$error":"#NAME?"},"",null,null,null,"",null,null,null,null,"","","",null,null,null,null,null,null,null,null,null,null,null,null,null,null,null,null,null,null,null,null,null,null,"","","","",null,null,null,null,"","",""]
["",null,null,null,null,null,"","","","","",{"$error":"#NAME?"},"",null,null,null,"",null,null,null,null,"","","",null,null,null,null,null,null,null,null,null,null,null,null,null,null,null,null,null,null,null,null,null,null,"","","","",null,null,null,null,"","",""]
["",null,null,null,null,null,"","","","","",{"$error":"#NAME?"},"",null,null,null,"",null,null,null,null,"","","",null,null,null,null,null,null,null,null,null,null,null,null,null,null,null,null,null,null,null,null,null,null,"","","","",null,null,null,null,"","",""]
["",null,null,null,null,null,"","","","","",{"$error":"#NAME?"},"",null,null,null,"",null,null,null,null,"","","",null,null,null,null,null,null,null,null,null,null,null,null,null,null,null,null,null,null,null,null,null,null,"","","","",null,null,null,null,"","",""]
["",null,null,null,null,null,"","","","","",{"$error":"#NAME?"},"",null,null,null,"",null,null,null,null,"","","",null,null,null,null,null,null,null,null,null,null,null,null,null,null,null,null,null,null,null,null,null,null,"","","","",null,null,null,null,"","",""]
["",null,null,null,null,null,"","","","","",{"$error":"#NAME?"},"",null,null,null,"",null,null,null,null,"","","",null,null,null,null,null,null,null,null,null,null,null,null,null,null,null,null,null,null,null,null,null,null,"","","","",null,null,null,null,"","",""]
["",null,null,null,null,null,"","","","","",{"$error":"#NAME?"},"",null,null,null,"",null,null,null,null,"","","",null,null,null,null,null,null,null,null,null,null,null,null,null,null,null,null,null,null,null,null,null,null,"","","","",null,null,null,null,"","",""]
["",null,null,null,null,null,"","","","","",{"$error":"#NAME?"},"",null,null,null,"",null,null,null,null,"","","",null,null,null,null,null,null,null,null,null,null,null,null,null,null,null,null,null,null,null,null,null,null,"","","","",null,null,null,null,"","",""]
["",null,null,null,null,null,"","","","","",{"$error":"#NAME?"},"",null,null,null,"",null,null,null,null,"","","",null,null,null,null,null,null,null,null,null,null,null,null,null,null,null,null,null,null,null,null,null,null,"","","","",null,null,null,null,"","",""]
["",null,null,null,null,null,"","","","","",{"$error":"#NAME?"},"",null,null,null,"",null,null,null,null,"","","",null,null,null,null,null,null,null,null,null,null,null,null,null,null,null,null,null,null,null,null,null,null,"","","","",null,null,null,null,"","",""]
["",null,null,null,null,null,"","","","","",{"$error":"#NAME?"},"",null,null,null,"",null,null,null,null,"","","",null,null,null,null,null,null,null,null,null,null,null,null,null,null,null,null,null,null,null,null,null,null,"","","","",null,null,null,null,"","",""]
["",null,null,null,null,null,"","","","","",{"$error":"#NAME?"},"",null,null,null,"",null,null,null,null,"","","",null,null,null,null,null,null,null,null,null,null,null,null,null,null,null,null,null,null,null,null,null,null,"","","","",null,null,null,null,"","",""]
["",null,null,null,null,null,"","","","","",{"$error":"#NAME?"},"",null,null,null,"",null,null,null,null,"","","",null,null,null,null,null,null,null,null,null,null,null,null,null,null,null,null,null,null,null,null,null,null,"","","","",null,null,null,null,"","",""]
["",null,null,null,null,null,"","","","","",{"$error":"#NAME?"},"",null,null,null,"",null,null,null,null,"","","",null,null,null,null,null,null,null,null,null,null,null,null,null,null,null,null,null,null,null,null,null,null,"","","","",null,null,null,null,"","",""]
["",null,null,null,null,null,"","","","","",{"$error":"#NAME?"},"",null,null,null,"",null,null,null,null,"","","",null,null,null,null,null,null,null,null,null,null,null,null,null,null,null,null,null,null,null,null,null,null,"","","","",null,null,null,null,"","",""]
["",null,null,null,null,null,"","","","","",{"$error":"#NAME?"},"",null,null,null,"",null,null,null,null,"","","",null,null,null,null,null,null,null,null,null,null,null,null,null,null,null,null,null,null,null,null,null,null,"","","","",null,null,null,null,"","",""]
["",null,null,null,null,null,"","","","","",{"$error":"#NAME?"},"",null,null,null,"",null,null,null,null,"","","",null,null,null,null,null,null,null,null,null,null,null,null,null,null,null,null,null,null,null,null,null,null,"","","","",null,null,null,null,"","",""]
["",null,null,null,null,null,"","","","","",{"$error":"#NAME?"},"",null,null,null,"",null,null,null,null,"","","",null,null,null,null,null,null,null,null,null,null,null,null,null,null,null,null,null,null,null,null,null,null,"","","","",null,null,null,null,"","",""]
["",null,null,null,null,null,"","","","","",{"$error":"#NAME?"},"",null,null,null,"",null,null,null,null,"","","",null,null,null,null,null,null,null,null,null,null,null,null,null,null,null,null,null,null,null,null,null,null,"","","","",null,null,null,null,"","",""]
["",null,null,null,null,null,"","","","","",{"$error":"#NAME?"},"",null,null,null,"",null,null,null,null,"","","",null,null,null,null,null,null,null,null,null,null,null,null,null,null,null,null,null,null,null,null,null,null,"","","","",null,null,null,null,"","",""]
["",null,null,null,null,null,"","","","","",{"$error":"#NAME?"},"",null,null,null,"",null,null,null,null,"","","",null,null,null,null,null,null,null,null,null,null,null,null,null,null,null,null,null,null,null,null,null,null,"","","","",null,null,null,null,"","",""]
["",null,null,null,null,null,"","","",{"$f":"IF(E263=\"\",\"\",DATE(I263,H263,G263))","v":""},"",{"$f":"Kh_Date_Sex_Province($E263,3)","v":{"$error":"#NAME?"}},{"$f":"IF(E263=\"\",\"\",IF(ISODD(MID(E263,13,1)),\"ذكر\",\"أنثى\"))","v":""},null,null,null,"",null,null,null,null,"","","",null,null,null,null,null,null,null,null,null,null,null,null,null,null,null,null,null,null,null,null,null,null,"","","","",null,null,null,null,"","",""]
[{"$f":"IF(F264=\"\",\"\",A263+1)","v":""},null,null,null,null,null,{"$f":"RIGHT(LEFT(E264,7),2)","v":""},{"$f":"RIGHT(LEFT(E264,5),2)","v":""},{"$f":"IF(E264=\"\",\"\",IF(ISODD(MID(E264,1,1)),MID(E264,2,2)+2000,MID(E264,2,2)+1900))","v":""},"",{"$f":"IF(J264=\"\",\"\",$K$4+J264-1)","v":""},{"$error":"#NAME?"},"",null,null,null,{"$f":"IF(F264=\"\",\"\",\"الغربية\")","v":""},null,null,null,null,{"$f":"IF(U264=\"\",\"\",DATEDIF(U264,$V$3,\"md\"))","v":""},{"$f":"IF(U264=\"\",\"\",DATEDIF(U264,$V$3,\"ym\"))","v":""},{"$f":"IF(U264=\"\",\"\",DATEDIF(U264,$V$3,\"y\"))","v":""},null,null,null,null,null,null,null,null,null,null,null,null,null,null,null,null,null,null,null,null,null,null,{"$f":"IF(U264=\"\",\"\",DATEDIF(U264,$AU$3,\"md\"))","v":""},{"$f":"IF(U264=\"\",\"\",DATEDIF(U264,$AU$3,\"ym\"))","v":""},{"$f":"IF(U264=\"\",\"\",DATEDIF(U264,$AU$3,\"y\"))","v":""},"",null,null,null,null,{"$f":"IF(A264=\"\",\"\",A264)","v":""},{"$f":"IF(D264=\"\",\"\",D264)","v":""},{"$f":"IF(F264=\"\",\"\",F264)","v":""}]
["",null,null,null,null,null,"","","","","",{"$error":"#NAME?"},"",null,null,null,"",null,null,null,null,"","","",null,null,null,null,null,null,null,null,null,null,null,null,null,null,null,null,null,null,null,null,null,null,"","","",{"$f":"IF(J265=\"\",\"\",$AX$3+J265-1)","v":""},null,null,null,null,"","",""]
["",null,null,null,null,null,"","","","","",{"$error":"#NAME?"},"",null,null,null,"",null,null,null,null,"","","",null,null,null,null,null,null,null,null,null,null,null,null,null,null,null,null,null,null,null,null,null,null,"","","","",null,null,null,null,"","",""]
["",null,null,null,null,null,"","","","","",{"$error":"#NAME?"},"",null,null,null,"",null,null,null,null,"","","",null,null,null,null,null,null,null,null,null,null,null,null,null,null,null,null,null,null,null,null,null,null,"","","","",null,null,null,null,"","",""]
["",null,null,null,null,null,"","","","","",{"$error":"#NAME?"},"",null,null,null,"",null,null,null,null,"","","",null,null,null,null,null,null,null,null,null,null,null,null,null,null,null,null,null,null,null,null,null,null,"","","","",null,null,null,null,"","",""]
["",null,null,null,null,null,"","","","","",{"$error":"#NAME?"},"",null,null,null,"",null,null,null,null,"","","",null,null,null,null,null,null,null,null,null,null,null,null,null,null,null,null,null,null,null,null,null,null,"","","","",null,null,null,null,"","",""]
["",null,null,null,null,null,"","","","","",{"$error":"#NAME?"},"",null,null,null,"",null,null,null,null,"","","",null,null,null,null,null,null,null,null,null,null,null,null,null,null,null,null,null,null,null,null,null,null,"","","","",null,null,null,null,"","",""]
["",null,null,null,null,null,"","","","","",{"$error":"#NAME?"},"",null,null,null,"",null,null,null,null,"","","",null,null,null,null,null,null,null,null,null,null,null,null,null,null,null,null,null,null,null,null,null,null,"","","","",null,null,null,null,"","",""]
["",null,null,null,null,null,"","","","","",{"$error":"#NAME?"},"",null,null,null,"",null,null,null,null,"","","",null,null,null,null,null,null,null,null,null,null,null,null,null,null,null,null,null,null,null,null,null,null,"","","","",null,null,null,null,"","",""]
["",null,null,null,null,null,"","","","","",{"$error":"#NAME?"},"",null,null,null,"",null,null,null,null,"","","",null,null,null,null,null,null,null,null,null,null,null,null,null,null,null,null,null,null,null,null,null,null,"","","","",null,null,null,null,"","",""]
["",null,null,null,null,null,"","","","","",{"$error":"#NAME?"},"",null,null,null,"",null,null,null,null,"","","",null,null,null,null,null,null,null,null,null,null,null,null,null,null,null,null,null,null,null,null,null,null,"","","","",null,null,null,null,"","",""]
["",null,null,null,null,null,"","","","","",{"$error":"#NAME?"},"",null,null,null,"",null,null,null,null,"","","",null,null,null,null,null,null,null,null,null,null,null,null,null,null,null,null,null,null,null,null,null,null,"","","","",null,null,null,null,"","",""]
["",null,null,null,null,null,"","","","","",{"$error":"#NAME?"},"",null,null,null,"",null,null,null,null,"","","",null,null,null,null,null,null,null,null,null,null,null,null,null,null,null,null,null,null,null,null,null,null,"","","","",null,null,null,null,"","",""]
["",null,null,null,null,null,"","","","","",{"$error":"#NAME?"},"",null,null,null,"",null,null,null,null,"","","",null,null,null,null,null,null,null,null,null,null,null,null,null,null,null,null,null,null,null,null,null,null,"","","","",null,null,null,null,"","",""]
["",null,null,null,null,null,"","","","","",{"$error":"#NAME?"},"",null,null,null,"",null,null,null,null,"","","",null,null,null,null,null,null,null,null,null,null,null,null,null,null,null,null,null,null,null,null,null,null,"","","","",null,null,null,null,"","",""]
["",null,null,null,null,null,"","","","","",{"$error":"#NAME?"},"",null,null,null,"",null,null,null,null,"","","",null,null,null,null,null,null,null,null,null,null,null,null,null,null,null,null,null,null,null,null,null,null,"","","","",null,null,null,null,"","",""]
["",null,null,null,null,null,"","","","","",{"$error":"#NAME?"},"",null,null,null,"",null,null,null,null,"","","",null,null,null,null,null,null,null,null,null,null,null,null,null,null,null,null,null,null,null,null,null,null,"","","","",null,null,null,null,"","",""]
["",null,null,null,null,null,"","","","","",{"$error":"#NAME?"},"",null,null,null,"",null,null,null,null,"","","",null,null,null,null,null,null,null,null,null,null,null,null,null,null,null,null,null,null,null,null,null,null,"","","","",null,null,null,null,"","",""]
["",null,null,null,null,null,"","","","","",{"$error":"#NAME?"},"",null,null,null,"",null,null,null,null,"","","",null,null,null,null,null,null,null,null,null,null,null,null,null,null,null,null,null,null,null,null,null,null,"","","","",null,null,null,null,"","",""]
["",null,null,null,null,null,"","","","","",{"$error":"#NAME?"},"",null,null,null,"",null,null,null,null,"","","",null,null,null,null,null,null,null,null,null,null,null,null,null,null,null,null,null,null,null,null,null,null,"","","","",null,null,null,null,"","",""]
["",null,null,null,null,null,"","","","","",{"$error":"#NAME?"},"",null,null,null,"",null,null,null,null,"","","",null,null,null,null,null,null,null,null,null,null,null,null,null,null,null,null,null,null,null,null,null,null,"","","","",null,null,null,null,"","",""]
["",null,null,null,null,null,"","","","","",{"$error":"#NAME?"},"",null,null,null,"",null,null,null,null,"","","",null,null,null,null,null,null,null,null,null,null,null,null,null,null,null,null,null,null,null,null,null,null,"","","","",null,null,null,null,"","",""]
["",null,null,null,null,null,"","","","","",{"$error":"#NAME?"},"",null,null,null,"",null,null,null,null,"","","",null,null,null,null,null,null,null,null,null,null,null,null,null,null,null,null,null,null,null,null,null,null,"","","","",null,null,null,null,"","",""]
["",null,null,null,null,null,"","","","","",{"$error":"#NAME?"},"",null,null,null,"",null,null,null,null,"","","",null,null,null,null,null,null,null,null,null,null,null,null,null,null,null,null,null,null,null,null,null,null,"","","","",null,null,null,null,"","",""]
["",null,null,null,null,null,"","","","","",{"$error":"#NAME?"},"",null,null,null,"",null,null,null,null,"","","",null,null,null,null,null,null,null,null,null,null,null,null,null,null,null,null,null,null,null,null,null,null,"","","","",null,null,null,null,"","",""]
["",null,null,null,null,null,"","","","","",{"$error":"#NAME?"},"",null,null,null,"",null,null,null,null,"","","",null,null,null,null,null,null,null,null,null,null,null,null,null,null,null,null,null,null,null,null,null,null,"","","","",null,null,null,null,"","",""]
["",null,null,null,null,null,"","","","","",{"$error":"#NAME?"},"",null,null,null,"",null,null,null,null,"","","",null,null,null,null,null,null,null,null,null,null,null,null,null,null,null,null,null,null,null,null,null,null,"","","","",null,null,null,null,"","",""]
["",null,null,null,null,null,"","","","","",{"$error":"#NAME?"},"",null,null,null,"",null,null,null,null,"","","",null,null,null,null,null,null,null,null,null,null,null,null,null,null,null,null,null,null,null,null,null,null,"","","","",null,null,null,null,"","",""]
["",null,null,null,null,null,"","","","","",{"$error":"#NAME?"},"",null,null,null,"",null,null,null,null,"","","",null,null,null,null,null,null,null,null,null,null,null,null,null,null,null,null,null,null,null,null,null,null,"","","","",null,null,null,null,"","",""]
["",null,null,null,null,null,"","","","","",{"$error":"#NAME?"},"",null,null,null,"",null,null,null,null,"","","",null,null,null,null,null,null,null,null,null,null,null,null,null,null,null,null,null,null,null,null,null,null,"","","","",null,null,null,null,"","",""]
["",null,null,null,null,null,"","","","","",{"$error":"#NAME?"},"",null,null,null,"",null,null,null,null,"","","",null,null,null,null,null,null,null,null,null,null,null,null,null,null,null,null,null,null,null,null,null,null,"","","","",null,null,null,null,"","",""]
["",null,null,null,null,null,"","","","","",{"$error":"#NAME?"},"",null,null,null,"",null,null,null,null,"","","",null,null,null,null,null,null,null,null,null,null,null,null,null,null,null,null,null,null,null,null,null,null,"","","","",null,null,null,null,"","",""]
["",null,null,null,null,null,"","","","","",{"$error":"#NAME?"},"",null,null,null,"",null,null,null,null,"","","",null,null,null,null,null,null,null,null,null,null,null,null,null,null,null,null,null,null,null,null,null,null,"","","","",null,null,null,null,"","",""]
["",null,null,null,null,null,"","","","","",{"$error":"#NAME?"},"",null,null,null,"",null,null,null,null,"","","",null,null,null,null,null,null,null,null,null,null,null,null,null,null,null,null,null,null,null,null,null,null,"","","","",null,null,null,null,"","",""]
["",null,null,null,null,null,"","","","","",{"$error":"#NAME?"},"",null,null,null,"",null,null,null,null,"","","",null,null,null,null,null,null,null,null,null,null,null,null,null,null,null,null,null,null,null,null,null,null,"","","","",null,null,null,null,"","",""]
["",null,null,null,null,null,"","","","","",{"$error":"#NAME?"},"",null,null,null,"",null,null,null,null,"","","",null,null,null,null,null,null,null,null,null,null,null,null,null,null,null,null,null,null,null,null,null,null,"","","","",null,null,null,null,"","",""]
["",null,null,null,null,null,"","","","","",{"$error":"#NAME?"},"",null,null,null,"",null,null,null,null,"","","",null,null,null,null,null,null,null,null,null,null,null,null,null,null,null,null,null,null,null,null,null,null,"","","","",null,null,null,null,"","",""]
["",null,null,null,null,null,"","","","","",{"$error":"#NAME?"},"",null,null,null,"",null,null,null,null,"","","",null,null,null,null,null,null,null,null,null,null,null,null,null,null,null,null,null,null,null,null,null,null,"","","","",null,null,null,null,"","",""]
["",null,null,null,null,null,"","","","","",{"$error":"#NAME?"},"",null,null,null,"",null,null,null,null,"","","",null,null,null,null,null,null,null,null,null,null,null,null,null,null,null,null,null,null,null,null,null,null,"","","","",null,null,null,null,"","",""]
["",null,null,null,null,null,"","","","","",{"$error":"#NAME?"},"",null,null,null,"",null,null,null,null,"","","",null,null,null,null,null,null,null,null,null,null,null,null,null,null,null,null,null,null,null,null,null,null,"","","","",null,null,null,null,"","",""]
["",null,null,null,null,null,"","","","","",{"$error":"#NAME?"},"",null,null,null,"",null,null,null,null,"","","",null,null,null,null,null,null,null,null,null,null,null,null,null,null,null,null,null,null,null,null,null,null,"","","","",null,null,null,null,"","",""]
["",null,null,null,null,null,"","","","","",{"$error":"#NAME?"},"",null,null,null,"",null,null,null,null,"","","",null,null,null,null,null,null,null,null,null,null,null,null,null,null,null,null,null,null,null,null,null,null,"","","","",null,null,null,null,"","",""]
["",null,null,null,null,null,"","","","","",{"$error":"#NAME?"},"",null,null,null,"",null,null,null,null,"","","",null,null,null,null,null,null,null,null,null,null,null,null,null,null,null,null,null,null,null,null,null,null,"","","","",null,null,null,null,"","",""]
["",null,null,null,null,null,"","","","","",{"$error":"#NAME?"},"",null,null,null,"",null,null,null,null,"","","",null,null,null,null,null,null,null,null,null,null,null,null,null,null,null,null,null,null,null,null,null,null,"","","","",null,null,null,null,"","",""]
["",null,null,null,null,null,"","","","","",{"$error":"#NAME?"},"",null,null,null,"",null,null,null,null,"","","",null,null,null,null,null,null,null,null,null,null,null,null,null,null,null,null,null,null,null,null,null,null,"","","","",null,null,null,null,"","",""]
["",null,null,null,null,null,"","","","","",{"$error":"#NAME?"},"",null,null,null,"",null,null,null,null,"","","",null,null,null,null,null,null,null,null,null,null,null,null,null,null,null,null,null,null,null,null,null,null,"","","","",null,null,null,null,"","",""]
["",null,null,null,null,null,"","","","","",{"$error":"#NAME?"},"",null,null,null,"",null,null,null,null,"","","",null,null,null,null,null,null,null,null,null,null,null,null,null,null,null,null,null,null,null,null,null,null,"","","","",null,null,null,null,"","",""]
["",null,null,null,null,null,"","","","","",{"$error":"#NAME?"},"",null,null,null,"",null,null,null,null,"","","",null,null,null,null,null,null,null,null,null,null,null,null,null,null,null,null,null,null,null,null,null,null,"","","","",null,null,null,null,"","",""]
["",null,null,null,null,null,"","","","","",{"$error":"#NAME?"},"",null,null,null,"",null,null,null,null,"","","",null,null,null,null,null,null,null,null,null,null,null,null,null,null,null,null,null,null,null,null,null,null,"","","","",null,null,null,null,"","",""]
["",null,null,null,null,null,"","","","","",{"$error":"#NAME?"},"",null,null,null,"",null,null,null,null,"","","",null,null,null,null,null,null,null,null,null,null,null,null,null,null,null,null,null,null,null,null,null,null,"","","","",null,null,null,null,"","",""]
["",null,null,null,null,null,"","","","","",{"$error":"#NAME?"},"",null,null,null,"",null,null,null,null,"","","",null,null,null,null,null,null,null,null,null,null,null,null,null,null,null,null,null,null,null,null,null,null,"","","","",null,null,null,null,"","",""]
["",null,null,null,null,null,"","","","","",{"$error":"#NAME?"},"",null,null,null,"",null,null,null,null,"","","",null,null,null,null,null,null,null,null,null,null,null,null,null,null,null,null,null,null,null,null,null,null,"","","","",null,null,null,null,"","",""]
["",null,null,null,null,null,"","","","","",{"$error":"#NAME?"},"",null,null,null,"",null,null,null,null,"","","",null,null,null,null,null,null,null,null,null,null,null,null,null,null,null,null,null,null,null,null,null,null,"","","","",null,null,null,null,"","",""]
["",null,null,null,null,null,"","","","","",{"$error":"#NAME?"},"",null,null,null,"",null,null,null,null,"","","",null,null,null,null,null,null,null,null,null,null,null,null,null,null,null,null,null,null,null,null,null,null,"","","","",null,null,null,null,"","",""]
["",null,null,null,null,null,"","","","","",{"$error":"#NAME?"},"",null,null,null,"",null,null,null,null,"","","",null,null,null,null,null,null,null,null,null,null,null,null,null,null,null,null,null,null,null,null,null,null,"","","","",null,null,null,null,"","",""]
["",null,null,null,null,null,"","","","","",{"$error":"#NAME?"},"",null,null,null,"",null,null,null,null,"","","",null,null,null,null,null,null,null,null,null,null,null,null,null,null,null,null,null,null,null,null,null,null,"","","","",null,null,null,null,"","",""]
["",null,null,null,null,null,"","","","","",{"$error":"#NAME?"},"",null,null,null,"",null,null,null,null,"","","",null,null,null,null,null,null,null,null,null,null,null,null,null,null,null,null,null,null,null,null,null,null,"","","","",null,null,null,null,"","",""]
["",null,null,null,null,null,"","","","","",{"$error":"#NAME?"},"",null,null,null,"",null,null,null,null,"","","",null,null,null,null,null,null,null,null,null,null,null,null,null,null,null,null,null,null,null,null,null,null,"","","","",null,null,null,null,"","",""]
["",null,null,null,null,null,"","","","","",{"$error":"#NAME?"},"",null,null,null,"",null,null,null,null,"","","",null,null,null,null,null,null,null,null,null,null,null,null,null,null,null,null,null,null,null,null,null,null,"","","","",null,null,null,null,"","",""]
["",null,null,null,null,null,"","","","","",{"$error":"#NAME?"},"",null,null,null,"",null,null,null,null,"","","",null,null,null,null,null,null,null,null,null,null,null,null,null,null,null,null,null,null,null,null,null,null,"","","","",null,null,null,null,"","",""]
["",null,null,null,null,null,"","","","","",{"$error":"#NAME?"},"",null,null,null,"",null,null,null,null,"","","",null,null,null,null,null,null,null,null,null,null,null,null,null,null,null,null,null,null,null,null,null,null,"","","","",null,null,null,null,"","",""]
["",null,null,null,null,null,"","","","","",{"$error":"#NAME?"},"",null,null,null,"",null,null,null,null,"","","",null,null,null,null,null,null,null,null,null,null,null,null,null,null,null,null,null,null,null,null,null,null,"","","","",null,null,null,null,"","",""]
["",null,null,null,null,null,"","","","","",{"$error":"#NAME?"},"",null,null,null,"",null,null,null,null,"","","",null,null,null,null,null,null,null,null,null,null,null,null,null,null,null,null,null,null,null,null,null,null,"","","","",null,null,null,null,"","",""]
["",null,null,null,null,null,"","","",{"$f":"IF(E327=\"\",\"\",DATE(I327,H327,G327))","v":""},"",{"$f":"Kh_Date_Sex_Province($E327,3)","v":{"$error":"#NAME?"}},{"$f":"IF(E327=\"\",\"\",IF(ISODD(MID(E327,13,1)),\"ذكر\",\"أنثى\"))","v":""},null,null,null,"",null,null,null,null,"","","",null,null,null,null,null,null,null,null,null,null,null,null,null,null,null,null,null,null,null,null,null,null,"","","","",null,null,null,null,"","",""]
[{"$f":"IF(F328=\"\",\"\",A327+1)","v":""},null,null,null,null,null,{"$f":"RIGHT(LEFT(E328,7),2)","v":""},{"$f":"RIGHT(LEFT(E328,5),2)","v":""},{"$f":"IF(E328=\"\",\"\",IF(ISODD(MID(E328,1,1)),MID(E328,2,2)+2000,MID(E328,2,2)+1900))","v":""},"",{"$f":"IF(J328=\"\",\"\",$K$4+J328-1)","v":""},{"$error":"#NAME?"},"",null,null,null,{"$f":"IF(F328=\"\",\"\",\"الغربية\")","v":""},null,null,null,null,{"$f":"IF(U328=\"\",\"\",DATEDIF(U328,$V$3,\"md\"))","v":""},{"$f":"IF(U328=\"\",\"\",DATEDIF(U328,$V$3,\"ym\"))","v":""},{"$f":"IF(U328=\"\",\"\",DATEDIF(U328,$V$3,\"y\"))","v":""},null,null,null,null,null,null,null,null,null,null,null,null,null,null,null,null,null,null,null,null,null,null,{"$f":"IF(U328=\"\",\"\",DATEDIF(U328,$AU$3,\"md\"))","v":""},{"$f":"IF(U328=\"\",\"\",DATEDIF(U328,$AU$3,\"ym\"))","v":""},{"$f":"IF(U328=\"\",\"\",DATEDIF(U328,$AU$3,\"y\"))","v":""},"",null,null,null,null,{"$f":"IF(A328=\"\",\"\",A328)","v":""},{"$f":"IF(D328=\"\",\"\",D328)","v":""},{"$f":"IF(F328=\"\",\"\",F328)","v":""}]
["",null,null,null,null,null,"","","","","",{"$error":"#NAME?"},"",null,null,null,"",null,null,null,null,"","","",null,null,null,null,null,null,null,null,null,null,null,null,null,null,null,null,null,null,null,null,null,null,"","","",{"$f":"IF(J329=\"\",\"\",$AX$3+J329-1)","v":""},null,null,null,null,"","",""]
["",null,null,null,null,null,"","","","","",{"$error":"#NAME?"},"",null,null,null,"",null,null,null,null,"","","",null,null,null,null,null,null,null,null,null,null,null,null,null,null,null,null,null,null,null,null,null,null,"","","","",null,null,null,null,"","",""]
["",null,null,null,null,null,"","","","","",{"$error":"#NAME?"},"",null,null,null,"",null,null,null,null,"","","",null,null,null,null,null,null,null,null,null,null,null,null,null,null,null,null,null,null,null,null,null,null,"","","","",null,null,null,null,"","",""]
["",null,null,null,null,null,"","","","","",{"$error":"#NAME?"},"",null,null,null,"",null,null,null,null,"","","",null,null,null,null,null,null,null,null,null,null,null,null,null,null,null,null,null,null,null,null,null,null,"","","","",null,null,null,null,"","",""]
["",null,null,null,null,null,"","","","","",{"$error":"#NAME?"},"",null,null,null,"",null,null,null,null,"","","",null,null,null,null,null,null,null,null,null,null,null,null,null,null,null,null,null,null,null,null,null,null,"","","","",null,null,null,null,"","",""]
["",null,null,null,null,null,"","","","","",{"$error":"#NAME?"},"",null,null,null,"",null,null,null,null,"","","",null,null,null,null,null,null,null,null,null,null,null,null,null,null,null,null,null,null,null,null,null,null,"","","","",null,null,null,null,"","",""]
["",null,null,null,null,null,"","","","","",{"$error":"#NAME?"},"",null,null,null,"",null,null,null,null,"","","",null,null,null,null,null,null,null,null,null,null,null,null,null,null,null,null,null,null,null,null,null,null,"","","","",null,null,null,null,"","",""]
["",null,null,null,null,null,"","","","","",{"$error":"#NAME?"},"",null,null,null,"",null,null,null,null,"","","",null,null,null,null,null,null,null,null,null,null,null,null,null,null,null,null,null,null,null,null,null,null,"","","","",null,null,null,null,"","",""]
["",null,null,null,null,null,"","","","","",{"$error":"#NAME?"},"",null,null,null,"",null,null,null,null,"","","",null,null,null,null,null,null,null,null,null,null,null,null,null,null,null,null,null,null,null,null,null,null,"","","","",null,null,null,null,"","",""]
["",null,null,null,null,null,"","","","","",{"$error":"#NAME?"},"",null,null,null,"",null,null,null,null,"","","",null,null,null,null,null,null,null,null,null,null,null,null,null,null,null,null,null,null,null,null,null,null,"","","","",null,null,null,null,"","",""]
["",null,null,null,null,null,"","","","","",{"$error":"#NAME?"},"",null,null,null,"",null,null,null,null,"","","",null,null,null,null,null,null,null,null,null,null,null,null,null,null,null,null,null,null,null,null,null,null,"","","","",null,null,null,null,"","",""]
["",null,null,null,null,null,"","","","","",{"$error":"#NAME?"},"",null,null,null,"",null,null,null,null,"","","",null,null,null,null,null,null,null,null,null,null,null,null,null,null,null,null,null,null,null,null,null,null,"","","","",null,null,null,null,"","",""]
["",null,null,null,null,null,"","","","","",{"$error":"#NAME?"},"",null,null,null,"",null,null,null,null,"","","",null,null,null,null,null,null,null,null,null,null,null,null,null,null,null,null,null,null,null,null,null,null,"","","","",null,null,null,null,"","",""]
["",null,null,null,null,null,"","","","","",{"$error":"#NAME?"},"",null,null,null,"",null,null,null,null,"","","",null,null,null,null,null,null,null,null,null,null,null,null,null,null,null,null,null,null,null,null,null,null,"","","","",null,null,null,null,"","",""]
["",null,null,null,null,null,"","","","","",{"$error":"#NAME?"},"",null,null,null,"",null,null,null,null,"","","",null,null,null,null,null,null,null,null,null,null,null,null,null,null,null,null,null,null,null,null,null,null,"","","","",null,null,null,null,"","",""]
["",null,null,null,null,null,"","","","","",{"$error":"#NAME?"},"",null,null,null,"",null,null,null,null,"","","",null,null,null,null,null,null,null,null,null,null,null,null,null,null,null,null,null,null,null,null,null,null,"","","","",null,null,null,null,"","",""]
["",null,null,null,null,null,"","","","","",{"$error":"#NAME?"},"",null,null,null,"",null,null,null,null,"","","",null,null,null,null,null,null,null,null,null,null,null,null,null,null,null,null,null,null,null,null,null,null,"","","","",null,null,null,null,"","",""]
["",null,null,null,null,null,"","","","","",{"$error":"#NAME?"},"",null,null,null,"",null,null,null,null,"","","",null,null,null,null,null,null,null,null,null,null,null,null,null,null,null,null,null,null,null,null,null,null,"","","","",null,null,null,null,"","",""]
["",null,null,null,null,null,"","","","","",{"$error":"#NAME?"},"",null,null,null,"",null,null,null,null,"","","",null,null,null,null,null,null,null,null,null,null,null,null,null,null,null,null,null,null,null,null,null,null,"","","","",null,null,null,null,"","",""]
["",null,null,null,null,null,"","","","","",{"$error":"#NAME?"},"",null,null,null,"",null,null,null,null,"","","",null,null,null,null,null,null,null,null,null,null,null,null,null,null,null,null,null,null,null,null,null,null,"","","","",null,null,null,null,"","",""]
["",null,null,null,null,null,"","","","","",{"$error":"#NAME?"},"",null,null,null,"",null,null,null,null,"","","",null,null,null,null,null,null,null,null,null,null,null,null,null,null,null,null,null,null,null,null,null,null,"","","","",null,null,null,null,"","",""]
["",null,null,null,null,null,"","","","","",{"$error":"#NAME?"},"",null,null,null,"",null,null,null,null,"","","",null,null,null,null,null,null,null,null,null,null,null,null,null,null,null,null,null,null,null,null,null,null,"","","","",null,null,null,null,"","",""]
["",null,null,null,null,null,"","","","","",{"$error":"#NAME?"},"",null,null,null,"",null,null,null,null,"","","",null,null,null,null,null,null,null,null,null,null,null,null,null,null,null,null,null,null,null,null,null,null,"","","","",null,null,null,null,"","",""]
["",null,null,null,null,null,"","","","","",{"$error":"#NAME?"},"",null,null,null,"",null,null,null,null,"","","",null,null,null,null,null,null,null,null,null,null,null,null,null,null,null,null,null,null,null,null,null,null,"","","","",null,null,null,null,"","",""]
["",null,null,null,null,null,"","","","","",{"$error":"#NAME?"},"",null,null,null,"",null,null,null,null,"","","",null,null,null,null,null,null,null,null,null,null,null,null,null,null,null,null,null,null,null,null,null,null,"","","","",null,null,null,null,"","",""]
["",null,null,null,null,null,"","","","","",{"$error":"#NAME?"},"",null,null,null,"",null,null,null,null,"","","",null,null,null,null,null,null,null,null,null,null,null,null,null,null,null,null,null,null,null,null,null,null,"","","","",null,null,null,null,"","",""]
["",null,null,null,null,null,"","","","","",{"$error":"#NAME?"},"",null,null,null,"",null,null,null,null,"","","",null,null,null,null,null,null,null,null,null,null,null,null,null,null,null,null,null,null,null,null,null,null,"","","","",null,null,null,null,"","",""]
["",null,null,null,null,null,"","","","","",{"$error":"#NAME?"},"",null,null,null,"",null,null,null,null,"","","",null,null,null,null,null,null,null,null,null,null,null,null,null,null,null,null,null,null,null,null,null,null,"","","","",null,null,null,null,"","",""]
["",null,null,null,null,null,"","","","","",{"$error":"#NAME?"},"",null,null,null,"",null,null,null,null,"","","",null,null,null,null,null,null,null,null,null,null,null,null,null,null,null,null,null,null,null,null,null,null,"","","","",null,null,null,null,"","",""]
["",null,null,null,null,null,"","","","","",{"$error":"#NAME?"},"",null,null,null,"",null,null,null,null,"","","",null,null,null,null,null,null,null,null,null,null,null,null,null,null,null,null,null,null,null,null,null,null,"","","","",null,null,null,null,"","",""]
["",null,null,null,null,null,"","","","","",{"$error":"#NAME?"},"",null,null,null,"",null,null,null,null,"","","",null,null,null,null,null,null,null,null,null,null,null,null,null,null,null,null,null,null,null,null,null,null,"","","","",null,null,null,null,"","",""]
["",null,null,null,null,null,"","","","","",{"$error":"#NAME?"},"",null,null,null,"",null,null,null,null,"","","",null,null,null,null,null,null,null,null,null,null,null,null,null,null,null,null,null,null,null,null,null,null,"","","","",null,null,null,null,"","",""]
["",null,null,null,null,null,"","","","","",{"$error":"#NAME?"},"",null,null,null,"",null,null,null,null,"","","",null,null,null,null,null,null,null,null,null,null,null,null,null,null,null,null,null,null,null,null,null,null,"","","","",null,null,null,null,"","",""]
["",null,null,null,null,null,"","","","","",{"$error":"#NAME?"},"",null,null,null,"",null,null,null,null,"","","",null,null,null,null,null,null,null,null,null,null,null,null,null,null,null,null,null,null,null,null,null,null,"","","","",null,null,null,null,"","",""]
["",null,null,null,null,null,"","","","","",{"$error":"#NAME?"},"",null,null,null,"",null,null,null,null,"","","",null,null,null,null,null,null,null,null,null,null,null,null,null,null,null,null,null,null,null,null,null,null,"","","","",null,null,null,null,"","",""]
["",null,null,null,null,null,"","","","","",{"$error":"#NAME?"},"",null,null,null,"",null,null,null,null,"","","",null,null,null,null,null,null,null,null,null,null,null,null,null,null,null,null,null,null,null,null,null,null,"","","","",null,null,null,null,"","",""]
["",null,null,null,null,null,"","","","","",{"$error":"#NAME?"},"",null,null,null,"",null,null,null,null,"","","",null,null,null,null,null,null,null,null,null,null,null,null,null,null,null,null,null,null,null,null,null,null,"","","","",null,null,null,null,"","",""]
["",null,null,null,null,null,"","","","","",{"$error":"#NAME?"},"",null,null,null,"",null,null,null,null,"","","",null,null,null,null,null,null,null,null,null,null,null,null,null,null,null,null,null,null,null,null,null,null,"","","","",null,null,null,null,"","",""]
["",null,null,null,null,null,"","","","","",{"$error":"#NAME?"},"",null,null,null,"",null,null,null,null,"","","",null,null,null,null,null,null,null,null,null,null,null,null,null,null,null,null,null,null,null,null,null,null,"","","","",null,null,null,null,"","",""]
["",null,null,null,null,null,"","","","","",{"$error":"#NAME?"},"",null,null,null,"",null,null,null,null,"","","",null,null,null,null,null,null,null,null,null,null,null,null,null,null,null,null,null,null,null,null,null,null,"","","","",null,null,null,null,"","",""]
["",null,null,null,null,null,"","","","","",{"$error":"#NAME?"},"",null,null,null,"",null,null,null,null,"","","",null,null,null,null,null,null,null,null,null,null,null,null,null,null,null,null,null,null,null,null,null,null,"","","","",null,null,null,null,"","",""]
["",null,null,null,null,null,"","","","","",{"$error":"#NAME?"},"",null,null,null,"",null,null,null,null,"","","",null,null,null,null,null,null,null,null,null,null,null,null,null,null,null,null,null,null,null,null,null,null,"","","","",null,null,null,null,"","",""]
["",null,null,null,null,null,"","","","","",{"$error":"#NAME?"},"",null,null,null,"",null,null,null,null,"","","",null,null,null,null,null,null,null,null,null,null,null,null,null,null,null,null,null,null,null,null,null,null,"","","","",null,null,null,null,"","",""]
["",null,null,null,null,null,"","","","","",{"$error":"#NAME?"},"",null,null,null,"",null,null,null,null,"","","",null,null,null,null,null,null,null,null,null,null,null,null,null,null,null,null,null,null,null,null,null,null,"","","","",null,null,null,null,"","",""]
["",null,null,null,null,null,"","","","","",{"$error":"#NAME?"},"",null,null,null,"",null,null,null,null,"","","",null,null,null,null,null,null,null,null,null,null,null,null,null,null,null,null,null,null,null,null,null,null,"","","","",null,null,null,null,"","",""]
["",null,null,null,null,null,"","","","","",{"$error":"#NAME?"},"",null,null,null,"",null,null,null,null,"","","",null,null,null,null,null,null,null,null,null,null,null,null,null,null,null,null,null,null,null,null,null,null,"","","","",null,null,null,null,"","",""]
["",null,null,null,null,null,"","","","","",{"$error":"#NAME?"},"",null,null,null,"",null,null,null,null,"","","",null,null,null,null,null,null,null,null,null,null,null,null,null,null,null,null,null,null,null,null,null,null,"","","","",null,null,null,null,"","",""]
["",null,null,null,null,null,"","","","","",{"$error":"#NAME?"},"",null,null,null,"",null,null,null,null,"","","",null,null,null,null,null,null,null,null,null,null,null,null,null,null,null,null,null,null,null,null,null,null,"","","","",null,null,null,null,"","",""]
["",null,null,null,null,null,"","","","","",{"$error":"#NAME?"},"",null,null,null,"",null,null,null,null,"","","",null,null,null,null,null,null,null,null,null,null,null,null,null,null,null,null,null,null,null,null,null,null,"","","","",null,null,null,null,"","",""]
["",null,null,null,null,null,"","","","","",{"$error":"#NAME?"},"",null,null,null,"",null,null,null,null,"","","",null,null,null,null,null,null,null,null,null,null,null,null,null,null,null,null,null,null,null,null,null,null,"","","","",null,null,null,null,"","",""]
["",null,null,null,null,null,"","","","","",{"$error":"#NAME?"},"",null,null,null,"",null,null,null,null,"","","",null,null,null,null,null,null,null,null,null,null,null,null,null,null,null,null,null,null,null,null,null,null,"","","","",null,null,null,null,"","",""]
["",null,null,null,null,null,"","","","","",{"$error":"#NAME?"},"",null,null,null,"",null,null,null,null,"","","",null,null,null,null,null,null,null,null,null,null,null,null,null,null,null,null,null,null,null,null,null,null,"","","","",null,null,null,null,"","",""]
["",null,null,null,null,null,"","","","","",{"$error":"#NAME?"},"",null,null,null,"",null,null,null,null,"","","",null,null,null,null,null,null,null,null,null,null,null,null,null,null,null,null,null,null,null,null,null,null,"","","","",null,null,null,null,"","",""]
["",null,null,null,null,null,"","","","","",{"$error":"#NAME?"},"",null,null,null,"",null,null,null,null,"","","",null,null,null,null,null,null,null,null,null,null,null,null,null,null,null,null,null,null,null,null,null,null,"","","","",null,null,null,null,"","",""]
["",null,null,null,null,null,"","","","","",{"$error":"#NAME?"},"",null,null,null,"",null,null,null,null,"","","",null,null,null,null,null,null,null,null,null,null,null,null,null,null,null,null,null,null,null,null,null,null,"","","","",null,null,null,null,"","",""]
["",null,null,null,null,null,"","","","","",{"$error":"#NAME?"},"",null,null,null,"",null,null,null,null,"","","",null,null,null,null,null,null,null,null,null,null,null,null,null,null,null,null,null,null,null,null,null,null,"","","","",null,null,null,null,"","",""]
["",null,null,null,null,null,"","","","","",{"$error":"#NAME?"},"",null,null,null,"",null,null,null,null,"","","",null,null,null,null,null,null,null,null,null,null,null,null,null,null,null,null,null,null,null,null,null,null,"","","","",null,null,null,null,"","",""]
["",null,null,null,null,null,"","","","","",{"$error":"#NAME?"},"",null,null,null,"",null,null,null,null,"","","",null,null,null,null,null,null,null,null,null,null,null,null,null,null,null,null,null,null,null,null,null,null,"","","","",null,null,null,null,"","",""]
["",null,null,null,null,null,"","","","","",{"$error":"#NAME?"},"",null,null,null,"",null,null,null,null,"","","",null,null,null,null,null,null,null,null,null,null,null,null,null,null,null,null,null,null,null,null,null,null,"","","","",null,null,null,null,"","",""]
["",null,null,null,null,null,"","","","","",{"$error":"#NAME?"},"",null,null,null,"",null,null,null,null,"","","",null,null,null,null,null,null,null,null,null,null,null,null,null,null,null,null,null,null,null,null,null,null,"","","","",null,null,null,null,"","",""]
["",null,null,null,null,null,"","","","","",{"$error":"#NAME?"},"",null,null,null,"",null,null,null,null,"","","",null,null,null,null,null,null,null,null,null,null,null,null,null,null,null,null,null,null,null,null,null,null,"","","","",null,null,null,null,"","",""]
["",null,null,null,null,null,"","","","","",{"$error":"#NAME?"},"",null,null,null,"",null,null,null,null,"","","",null,null,null,null,null,null,null,null,null,null,null,null,null,null,null,null,null,null,null,null,null,null,"","","","",null,null,null,null,"","",""]
["",null,null,null,null,null,"","","",{"$f":"IF(E391=\"\",\"\",DATE(I391,H391,G391))","v":""},"",{"$f":"Kh_Date_Sex_Province($E391,3)","v":{"$error":"#NAME?"}},{"$f":"IF(E391=\"\",\"\",IF(ISODD(MID(E391,13,1)),\"ذكر\",\"أنثى\"))","v":""},null,null,null,"",null,null,null,null,"","","",null,null,null,null,null,null,null,null,null,null,null,null,null,null,null,null,null,null,null,null,null,null,"","","","",null,null,null,null,"","",""]
[{"$f":"IF(F392=\"\",\"\",A391+1)","v":""},null,null,null,null,null,{"$f":"RIGHT(LEFT(E392,7),2)","v":""},{"$f":"RIGHT(LEFT(E392,5),2)","v":""},{"$f":"IF(E392=\"\",\"\",IF(ISODD(MID(E392,1,1)),MID(E392,2,2)+2000,MID(E392,2,2)+1900))","v":""},"",{"$f":"IF(J392=\"\",\"\",$K$4+J392-1)","v":""},{"$error":"#NAME?"},"",null,null,null,{"$f":"IF(F392=\"\",\"\",\"الغربية\")","v":""},null,null,null,null,{"$f":"IF(U392=\"\",\"\",DATEDIF(U392,$V$3,\"md\"))","v":""},{"$f":"IF(U392=\"\",\"\",DATEDIF(U392,$V$3,\"ym\"))","v":""},{"$f":"IF(U392=\"\",\"\",DATEDIF(U392,$V$3,\"y\"))","v":""},null,null,null,null,null,null,null,null,null,null,null,null,null,null,null,null,null,null,null,null,null,null,{"$f":"IF(U392=\"\",\"\",DATEDIF(U392,$AU$3,\"md\"))","v":""},{"$f":"IF(U392=\"\",\"\",DATEDIF(U392,$AU$3,\"ym\"))","v":""},{"$f":"IF(U392=\"\",\"\",DATEDIF(U392,$AU$3,\"y\"))","v":""},"",null,null,null,null,{"$f":"IF(A392=\"\",\"\",A392)","v":""},{"$f":"IF(D392=\"\",\"\",D392)","v":""},{"$f":"IF(F392=\"\",\"\",F392)","v":""}]
["",null,null,null,null,null,"","","","","",{"$error":"#NAME?"},"",null,null,null,"",null,null,null,null,"","","",null,null,null,null,null,null,null,null,null,null,null,null,null,null,null,null,null,null,null,null,null,null,"","","",{"$f":"IF(J393=\"\",\"\",$AX$3+J393-1)","v":""},null,null,null,null,"","",""]
["",null,null,null,null,null,"","","","","",{"$error":"#NAME?"},"",null,null,null,"",null,null,null,null,"","","",null,null,null,null,null,null,null,null,null,null,null,null,null,null,null,null,null,null,null,null,null,null,"","","","",null,null,null,null,"","",""]
["",null,null,null,null,null,"","","","","",{"$error":"#NAME?"},"",null,null,null,"",null,null,null,null,"","","",null,null,null,null,null,null,null,null,null,null,null,null,null,null,null,null,null,null,null,null,null,null,"","","","",null,null,null,null,"","",""]
["",null,null,null,null,null,"","","","","",{"$error":"#NAME?"},"",null,null,null,"",null,null,null,null,"","","",null,null,null,null,null,null,null,null,null,null,null,null,null,null,null,null,null,null,null,null,null,null,"","","","",null,null,null,null,"","",""]
["",null,null,null,null,null,"","","","","",{"$error":"#NAME?"},"",null,null,null,"",null,null,null,null,"","","",null,null,null,null,null,null,null,null,null,null,null,null,null,null,null,null,null,null,null,null,null,null,"","","","",null,null,null,null,"","",""]
["",null,null,null,null,null,"","","","","",{"$error":"#NAME?"},"",null,null,null,"",null,null,null,null,"","","",null,null,null,null,null,null,null,null,null,null,null,null,null,null,null,null,null,null,null,null,null,null,"","","","",null,null,null,null,"","",""]
["",null,null,null,null,null,"","","","","",{"$error":"#NAME?"},"",null,null,null,"",null,null,null,null,"","","",null,null,null,null,null,null,null,null,null,null,null,null,null,null,null,null,null,null,null,null,null,null,"","","","",null,null,null,null,"","",""]
["",null,null,null,null,null,"","","","","",{"$error":"#NAME?"},"",null,null,null,"",null,null,null,null,"","","",null,null,null,null,null,null,null,null,null,null,null,null,null,null,null,null,null,null,null,null,null,null,"","","","",null,null,null,null,"","",""]
["",null,null,null,null,null,"","","","","",{"$error":"#NAME?"},"",null,null,null,"",null,null,null,null,"","","",null,null,null,null,null,null,null,null,null,null,null,null,null,null,null,null,null,null,null,null,null,null,"","","","",null,null,null,null,"","",""]
["",null,null,null,null,null,"","","","","",{"$error":"#NAME?"},"",null,null,null,"",null,null,null,null,"","","",null,null,null,null,null,null,null,null,null,null,null,null,null,null,null,null,null,null,null,null,null,null,"","","","",null,null,null,null,"","",""]
["",null,null,null,null,null,"","","","","",{"$error":"#NAME?"},"",null,null,null,"",null,null,null,null,"","","",null,null,null,null,null,null,null,null,null,null,null,null,null,null,null,null,null,null,null,null,null,null,"","","","",null,null,null,null,"","",""]
["",null,null,null,null,null,"","","","","",{"$error":"#NAME?"},"",null,null,null,"",null,null,null,null,"","","",null,null,null,null,null,null,null,null,null,null,null,null,null,null,null,null,null,null,null,null,null,null,"","","","",null,null,null,null,"","",""]
["",null,null,null,null,null,"","","","","",{"$error":"#NAME?"},"",null,null,null,"",null,null,null,null,"","","",null,null,null,null,null,null,null,null,null,null,null,null,null,null,null,null,null,null,null,null,null,null,"","","","",null,null,null,null,"","",""]
["",null,null,null,null,null,"","","","","",{"$error":"#NAME?"},"",null,null,null,"",null,null,null,null,"","","",null,null,null,null,null,null,null,null,null,null,null,null,null,null,null,null,null,null,null,null,null,null,"","","","",null,null,null,null,"","",""]
["",null,null,null,null,null,"","","","","",{"$error":"#NAME?"},"",null,null,null,"",null,null,null,null,"","","",null,null,null,null,null,null,null,null,null,null,null,null,null,null,null,null,null,null,null,null,null,null,"","","","",null,null,null,null,"","",""]
["",null,null,null,null,null,"","","","","",{"$error":"#NAME?"},"",null,null,null,"",null,null,null,null,"","","",null,null,null,null,null,null,null,null,null,null,null,null,null,null,null,null,null,null,null,null,null,null,"","","","",null,null,null,null,"","",""]
["",null,null,null,null,null,"","","","","",{"$error":"#NAME?"},"",null,null,null,"",null,null,null,null,"","","",null,null,null,null,null,null,null,null,null,null,null,null,null,null,null,null,null,null,null,null,null,null,"","","","",null,null,null,null,"","",""]
["",null,null,null,null,null,"","","","","",{"$error":"#NAME?"},"",null,null,null,"",null,null,null,null,"","","",null,null,null,null,null,null,null,null,null,null,null,null,null,null,null,null,null,null,null,null,null,null,"","","","",null,null,null,null,"","",""]
["",null,null,null,null,null,"","","","","",{"$error":"#NAME?"},"",null,null,null,"",null,null,null,null,"","","",null,null,null,null,null,null,null,null,null,null,null,null,null,null,null,null,null,null,null,null,null,null,"","","","",null,null,null,null,"","",""]
["",null,null,null,null,null,"","","","","",{"$error":"#NAME?"},"",null,null,null,"",null,null,null,null,"","","",null,null,null,null,null,null,null,null,null,null,null,null,null,null,null,null,null,null,null,null,null,null,"","","","",null,null,null,null,"","",""]
["",null,null,null,null,null,"","","","","",{"$error":"#NAME?"},"",null,null,null,"",null,null,null,null,"","","",null,null,null,null,null,null,null,null,null,null,null,null,null,null,null,null,null,null,null,null,null,null,"","","","",null,null,null,null,"","",""]
["",null,null,null,null,null,"","","","","",{"$error":"#NAME?"},"",null,null,null,"",null,null,null,null,"","","",null,null,null,null,null,null,null,null,null,null,null,null,null,null,null,null,null,null,null,null,null,null,"","","","",null,null,null,null,"","",""]
["",null,null,null,null,null,"","","","","",{"$error":"#NAME?"},"",null,null,null,"",null,null,null,null,"","","",null,null,null,null,null,null,null,null,null,null,null,null,null,null,null,null,null,null,null,null,null,null,"","","","",null,null,null,null,"","",""]
["",null,null,null,null,null,"","","","","",{"$error":"#NAME?"},"",null,null,null,"",null,null,null,null,"","","",null,null,null,null,null,null,null,null,null,null,null,null,null,null,null,null,null,null,null,null,null,null,"","","","",null,null,null,null,"","",""]
["",null,null,null,null,null,"","","","","",{"$error":"#NAME?"},"",null,null,null,"",null,null,null,null,"","","",null,null,null,null,null,null,null,null,null,null,null,null,null,null,null,null,null,null,null,null,null,null,"","","","",null,null,null,null,"","",""]
["",null,null,null,null,null,"","","","","",{"$error":"#NAME?"},"",null,null,null,"",null,null,null,null,"","","",null,null,null,null,null,null,null,null,null,null,null,null,null,null,null,null,null,null,null,null,null,null,"","","","",null,null,null,null,"","",""]
["",null,null,null,null,null,"","","","","",{"$error":"#NAME?"},"",null,null,null,"",null,null,null,null,"","","",null,null,null,null,null,null,null,null,null,null,null,null,null,null,null,null,null,null,null,null,null,null,"","","","",null,null,null,null,"","",""]
["",null,null,null,null,null,"","","","","",{"$error":"#NAME?"},"",null,null,null,"",null,null,null,null,"","","",null,null,null,null,null,null,null,null,null,null,null,null,null,null,null,null,null,null,null,null,null,null,"","","","",null,null,null,null,"","",""]
["",null,null,null,null,null,"","","","","",{"$error":"#NAME?"},"",null,null,null,"",null,null,null,null,"","","",null,null,null,null,null,null,null,null,null,null,null,null,null,null,null,null,null,null,null,null,null,null,"","","","",null,null,null,null,"","",""]
["",null,null,null,null,null,"","","","","",{"$error":"#NAME?"},"",null,null,null,"",null,null,null,null,"","","",null,null,null,null,null,null,null,null,null,null,null,null,null,null,null,null,null,null,null,null,null,null,"","","","",null,null,null,null,"","",""]
["",null,null,null,null,null,"","","","","",{"$error":"#NAME?"},"",null,null,null,"",null,null,null,null,"","","",null,null,null,null,null,null,null,null,null,null,null,null,null,null,null,null,null,null,null,null,null,null,"","","","",null,null,null,null,"","",""]
["",null,null,null,null,null,"","","","","",{"$error":"#NAME?"},"",null,null,null,"",null,null,null,null,"","","",null,null,null,null,null,null,null,null,null,null,null,null,null,null,null,null,null,null,null,null,null,null,"","","","",null,null,null,null,"","",""]
["",null,null,null,null,null,"","","","","",{"$error":"#NAME?"},"",null,null,null,"",null,null,null,null,"","","",null,null,null,null,null,null,null,null,null,null,null,null,null,null,null,null,null,null,null,null,null,null,"","","","",null,null,null,null,"","",""]
["",null,null,null,null,null,"","","","","",{"$error":"#NAME?"},"",null,null,null,"",null,null,null,null,"","","",null,null,null,null,null,null,null,null,null,null,null,null,null,null,null,null,null,null,null,null,null,null,"","","","",null,null,null,null,"","",""]
["",null,null,null,null,null,"","","","","",{"$error":"#NAME?"},"",null,null,null,"",null,null,null,null,"","","",null,null,null,null,null,null,null,null,null,null,null,null,null,null,null,null,null,null,null,null,null,null,"","","","",null,null,null,null,"","",""]
["",null,null,null,null,null,"","","","","",{"$error":"#NAME?"},"",null,null,null,"",null,null,null,null,"","","",null,null,null,null,null,null,null,null,null,null,null,null,null,null,null,null,null,null,null,null,null,null,"","","","",null,null,null,null,"","",""]
["",null,null,null,null,null,"","","","","",{"$error":"#NAME?"},"",null,null,null,"",null,null,null,null,"","","",null,null,null,null,null,null,null,null,null,null,null,null,null,null,null,null,null,null,null,null,null,null,"","","","",null,null,null,null,"","",""]
["",null,null,null,null,null,"","","","","",{"$error":"#NAME?"},"",null,null,null,"",null,null,null,null,"","","",null,null,null,null,null,null,null,null,null,null,null,null,null,null,null,null,null,null,null,null,null,null,"","","","",null,null,null,null,"","",""]
["",null,null,null,null,null,"","","","","",{"$error":"#NAME?"},"",null,null,null,"",null,null,null,null,"","","",null,null,null,null,null,null,null,null,null,null,null,null,null,null,null,null,null,null,null,null,null,null,"","","","",null,null,null,null,"","",""]
["",null,null,null,null,null,"","","","","",{"$error":"#NAME?"},"",null,null,null,"",null,null,null,null,"","","",null,null,null,null,null,null,null,null,null,null,null,null,null,null,null,null,null,null,null,null,null,null,"","","","",null,null,null,null,"","",""]
["",null,null,null,null,null,"","","","","",{"$error":"#NAME?"},"",null,null,null,"",null,null,null,null,"","","",null,null,null,null,null,null,null,null,null,null,null,null,null,null,null,null,null,null,null,null,null,null,"","","","",null,null,null,null,"","",""]
["",null,null,null,null,null,"","","","","",{"$error":"#NAME?"},"",null,null,null,"",null,null,null,null,"","","",null,null,null,null,null,null,null,null,null,null,null,null,null,null,null,null,null,null,null,null,null,null,"","","","",null,null,null,null,"","",""]
["",null,null,null,null,null,"","","","","",{"$error":"#NAME?"},"",null,null,null,"",null,null,null,null,"","","",null,null,null,null,null,null,null,null,null,null,null,null,null,null,null,null,null,null,null,null,null,null,"","","","",null,null,null,null,"","",""]
["",null,null,null,null,null,"","","","","",{"$error":"#NAME?"},"",null,null,null,"",null,null,null,null,"","","",null,null,null,null,null,null,null,null,null,null,null,null,null,null,null,null,null,null,null,null,null,null,"","","","",null,null,null,null,"","",""]
["",null,null,null,null,null,"","","","","",{"$error":"#NAME?"},"",null,null,null,"",null,null,null,null,"","","",null,null,null,null,null,null,null,null,null,null,null,null,null,null,null,null,null,null,null,null,null,null,"","","","",null,null,null,null,"","",""]
["",null,null,null,null,null,"","","","","",{"$error":"#NAME?"},"",null,null,null,"",null,null,null,null,"","","",null,null,null,null,null,null,null,null,null,null,null,null,null,null,null,null,null,null,null,null,null,null,"","","","",null,null,null,null,"","",""]
["",null,null,null,null,null,"","","","","",{"$error":"#NAME?"},"",null,null,null,"",null,null,null,null,"","","",null,null,null,null,null,null,null,null,null,null,null,null,null,null,null,null,null,null,null,null,null,null,"","","","",null,null,null,null,"","",""]
["",null,null,null,null,null,"","","","","",{"$error":"#NAME?"},"",null,null,null,"",null,null,null,null,"","","",null,null,null,null,null,null,null,null,null,null,null,null,null,null,null,null,null,null,null,null,null,null,"","","","",null,null,null,null,"","",""]
["",null,null,null,null,null,"","","","","",{"$error":"#NAME?"},"",null,null,null,"",null,null,null,null,"","","",null,null,null,null,null,null,null,null,null,null,null,null,null,null,null,null,null,null,null,null,null,null,"","","","",null,null,null,null,"","",""]
["",null,null,null,null,null,"","","","","",{"$error":"#NAME?"},"",null,null,null,"",null,null,null,null,"","","",null,null,null,null,null,null,null,null,null,null,null,null,null,null,null,null,null,null,null,null,null,null,"","","","",null,null,null,null,"","",""]
["",null,null,null,null,null,"","","","","",{"$error":"#NAME?"},"",null,null,null,"",null,null,null,null,"","","",null,null,null,null,null,null,null,null,null,null,null,null,null,null,null,null,null,null,null,null,null,null,"","","","",null,null,null,null,"","",""]
["",null,null,null,null,null,"","","","","",{"$error":"#NAME?"},"",null,null,null,"",null,null,null,null,"","","",null,null,null,null,null,null,null,null,null,null,null,null,null,null,null,null,null,null,null,null,null,null,"","","","",null,null,null,null,"","",""]
["",null,null,null,null,null,"","","","","",{"$error":"#NAME?"},"",null,null,null,"",null,null,null,null,"","","",null,null,null,null,null,null,null,null,null,null,null,null,null,null,null,null,null,null,null,null,null,null,"","","","",null,null,null,null,"","",""]
["",null,null,null,null,null,"","","","","",{"$error":"#NAME?"},"",null,null,null,"",null,null,null,null,"","","",null,null,null,null,null,null,null,null,null,null,null,null,null,null,null,null,null,null,null,null,null,null,"","","","",null,null,null,null,"","",""]
["",null,null,null,null,null,"","","","","",{"$error":"#NAME?"},"",null,null,null,"",null,null,null,null,"","","",null,null,null,null,null,null,null,null,null,null,null,null,null,null,null,null,null,null,null,null,null,null,"","","","",null,null,null,null,"","",""]
["",null,null,null,null,null,"","","","","",{"$error":"#NAME?"},"",null,null,null,"",null,null,null,null,"","","",null,null,null,null,null,null,null,null,null,null,null,null,null,null,null,null,null,null,null,null,null,null,"","","","",null,null,null,null,"","",""]
["",null,null,null,null,null,"","","","","",{"$error":"#NAME?"},"",null,null,null,"",null,null,null,null,"","","",null,null,null,null,null,null,null,null,null,null,null,null,null,null,null,null,null,null,null,null,null,null,"","","","",null,null,null,null,"","",""]
["",null,null,null,null,null,"","","","","",{"$error":"#NAME?"},"",null,null,null,"",null,null,null,null,"","","",null,null,null,null,null,null,null,null,null,null,null,null,null,null,null,null,null,null,null,null,null,null,"","","","",null,null,null,null,"","",""]
["",null,null,null,null,null,"","","","","",{"$error":"#NAME?"},"",null,null,null,"",null,null,null,null,"","","",null,null,null,null,null,null,null,null,null,null,null,null,null,null,null,null,null,null,null,null,null,null,"","","","",null,null,null,null,"","",""]
["",null,null,null,null,null,"","","","","",{"$error":"#NAME?"},"",null,null,null,"",null,null,null,null,"","","",null,null,null,null,null,null,null,null,null,null,null,null,null,null,null,null,null,null,null,null,null,null,"","","","",null,null,null,null,"","",""]
["",null,null,null,null,null,"","","","","",{"$error":"#NAME?"},"",null,null,null,"",null,null,null,null,"","","",null,null,null,null,null,null,null,null,null,null,null,null,null,null,null,null,null,null,null,null,null,null,"","","","",null,null,null,null,"","",""]
["",null,null,null,null,null,"","","","","",{"$error":"#NAME?"},"",null,null,null,"",null,null,null,null,"","","",null,null,null,null,null,null,null,null,null,null,null,null,null,null,null,null,null,null,null,null,null,null,"","","","",null,null,null,null,"","",""]
["",null,null,null,null,null,"","","",{"$f":"IF(E455=\"\",\"\",DATE(I455,H455,G455))","v":""},"",{"$f":"Kh_Date_Sex_Province($E455,3)","v":{"$error":"#NAME?"}},{"$f":"IF(E455=\"\",\"\",IF(ISODD(MID(E455,13,1)),\"ذكر\",\"أنثى\"))","v":""},null,null,null,"",null,null,null,null,"","","",null,null,null,null,null,null,null,null,null,null,null,null,null,null,null,null,null,null,null,null,null,null,"","","","",null,null,null,null,"","",""]
[{"$f":"IF(F456=\"\",\"\",A455+1)","v":""},null,null,null,null,null,{"$f":"RIGHT(LEFT(E456,7),2)","v":""},{"$f":"RIGHT(LEFT(E456,5),2)","v":""},{"$f":"IF(E456=\"\",\"\",IF(ISODD(MID(E456,1,1)),MID(E456,2,2)+2000,MID(E456,2,2)+1900))","v":""},"",{"$f":"IF(J456=\"\",\"\",$K$4+J456-1)","v":""},{"$error":"#NAME?"},"",null,null,null,{"$f":"IF(F456=\"\",\"\",\"الغربية\")","v":""},null,null,null,null,{"$f":"IF(U456=\"\",\"\",DATEDIF(U456,$V$3,\"md\"))","v":""},{"$f":"IF(U456=\"\",\"\",DATEDIF(U456,$V$3,\"ym\"))","v":""},{"$f":"IF(U456=\"\",\"\",DATEDIF(U456,$V$3,\"y\"))","v":""},null,null,null,null,null,null,null,null,null,null,null,null,null,null,null,null,null,null,null,null,null,null,{"$f":"IF(U456=\"\",\"\",DATEDIF(U456,$AU$3,\"md\"))","v":""},{"$f":"IF(U456=\"\",\"\",DATEDIF(U456,$AU$3,\"ym\"))","v":""},{"$f":"IF(U456=\"\",\"\",DATEDIF(U456,$AU$3,\"y\"))","v":""},"",null,null,null,null,{"$f":"IF(A456=\"\",\"\",A456)","v":""},{"$f":"IF(D456=\"\",\"\",D456)","v":""},{"$f":"IF(F456=\"\",\"\",F456)","v":""}]
["",null,null,null,null,null,"","","","","",{"$error":"#NAME?"},"",null,null,null,"",null,null,null,null,"","","",null,null,null,null,null,null,null,null,null,null,null,null,null,null,null,null,null,null,null,null,null,null,"","","",{"$f":"IF(J457=\"\",\"\",$AX$3+J457-1)","v":""},null,null,null,null,"","",""]
["",null,null,null,null,null,"","","","","",{"$error":"#NAME?"},"",null,null,null,"",null,null,null,null,"","","",null,null,null,null,null,null,null,null,null,null,null,null,null,null,null,null,null,null,null,null,null,null,"","","","",null,null,null,null,"","",""]
["",null,null,null,null,null,"","","","","",{"$error":"#NAME?"},"",null,null,null,"",null,null,null,null,"","","",null,null,null,null,null,null,null,null,null,null,null,null,null,null,null,null,null,null,null,null,null,null,"","","","",null,null,null,null,"","",""]
["",null,null,null,null,null,"","","","","",{"$error":"#NAME?"},"",null,null,null,"",null,null,null,null,"","","",null,null,null,null,null,null,null,null,null,null,null,null,null,null,null,null,null,null,null,null,null,null,"","","","",null,null,null,null,"","",""]
["",null,null,null,null,null,"","","","","",{"$error":"#NAME?"},"",null,null,null,"",null,null,null,null,"","","",null,null,null,null,null,null,null,null,null,null,null,null,null,null,null,null,null,null,null,null,null,null,"","","","",null,null,null,null,"","",""]
["",null,null,null,null,null,"","","","","",{"$error":"#NAME?"},"",null,null,null,"",null,null,null,null,"","","",null,null,null,null,null,null,null,null,null,null,null,null,null,null,null,null,null,null,null,null,null,null,"","","","",null,null,null,null,"","",""]
["",null,null,null,null,null,"","","","","",{"$error":"#NAME?"},"",null,null,null,"",null,null,null,null,"","","",null,null,null,null,null,null,null,null,null,null,null,null,null,null,null,null,null,null,null,null,null,null,"","","","",null,null,null,null,"","",""]
["",null,null,null,null,null,"","","","","",{"$error":"#NAME?"},"",null,null,null,"",null,null,null,null,"","","",null,null,null,null,null,null,null,null,null,null,null,null,null,null,null,null,null,null,null,null,null,null,"","","","",null,null,null,null,"","",""]
["",null,null,null,null,null,"","","","","",{"$error":"#NAME?"},"",null,null,null,"",null,null,null,null,"","","",null,null,null,null,null,null,null,null,null,null,null,null,null,null,null,null,null,null,null,null,null,null,"","","","",null,null,null,null,"","",""]
["",null,null,null,null,null,"","","","","",{"$error":"#NAME?"},"",null,null,null,"",null,null,null,null,"","","",null,null,null,null,null,null,null,null,null,null,null,null,null,null,null,null,null,null,null,null,null,null,"","","","",null,null,null,null,"","",""]
["",null,null,null,null,null,"","","","","",{"$error":"#NAME?"},"",null,null,null,"",null,null,null,null,"","","",null,null,null,null,null,null,null,null,null,null,null,null,null,null,null,null,null,null,null,null,null,null,"","","","",null,null,null,null,"","",""]
["",null,null,null,null,null,"","","","","",{"$error":"#NAME?"},"",null,null,null,"",null,null,null,null,"","","",null,null,null,null,null,null,null,null,null,null,null,null,null,null,null,null,null,null,null,null,null,null,"","","","",null,null,null,null,"","",""]
["",null,null,null,null,null,"","","","","",{"$error":"#NAME?"},"",null,null,null,"",null,null,null,null,"","","",null,null,null,null,null,null,null,null,null,null,null,null,null,null,null,null,null,null,null,null,null,null,"","","","",null,null,null,null,"","",""]
["",null,null,null,null,null,"","","","","",{"$error":"#NAME?"},"",null,null,null,"",null,null,null,null,"","","",null,null,null,null,null,null,null,null,null,null,null,null,null,null,null,null,null,null,null,null,null,null,"","","","",null,null,null,null,"","",""]
["",null,null,null,null,null,"","","","","",{"$error":"#NAME?"},"",null,null,null,"",null,null,null,null,"","","",null,null,null,null,null,null,null,null,null,null,null,null,null,null,null,null,null,null,null,null,null,null,"","","","",null,null,null,null,"","",""]
["",null,null,null,null,null,"","","","","",{"$error":"#NAME?"},"",null,null,null,"",null,null,null,null,"","","",null,null,null,null,null,null,null,null,null,null,null,null,null,null,null,null,null,null,null,null,null,null,"","","","",null,null,null,null,"","",""]
["",null,null,null,null,null,"","","","","",{"$error":"#NAME?"},"",null,null,null,"",null,null,null,null,"","","",null,null,null,null,null,null,null,null,null,null,null,null,null,null,null,null,null,null,null,null,null,null,"","","","",null,null,null,null,"","",""]
["",null,null,null,null,null,"","","","","",{"$error":"#NAME?"},"",null,null,null,"",null,null,null,null,"","","",null,null,null,null,null,null,null,null,null,null,null,null,null,null,null,null,null,null,null,null,null,null,"","","","",null,null,null,null,"","",""]
["",null,null,null,null,null,"","","","","",{"$error":"#NAME?"},"",null,null,null,"",null,null,null,null,"","","",null,null,null,null,null,null,null,null,null,null,null,null,null,null,null,null,null,null,null,null,null,null,"","","","",null,null,null,null,"","",""]
["",null,null,null,null,null,"","","","","",{"$error":"#NAME?"},"",null,null,null,"",null,null,null,null,"","","",null,null,null,null,null,null,null,null,null,null,null,null,null,null,null,null,null,null,null,null,null,null,"","","","",null,null,null,null,"","",""]
["",null,null,null,null,null,"","","","","",{"$error":"#NAME?"},"",null,null,null,"",null,null,null,null,"","","",null,null,null,null,null,null,null,null,null,null,null,null,null,null,null,null,null,null,null,null,null,null,"","","","",null,null,null,null,"","",""]
["",null,null,null,null,null,"","","","","",{"$error":"#NAME?"},"",null,null,null,"",null,null,null,null,"","","",null,null,null,null,null,null,null,null,null,null,null,null,null,null,null,null,null,null,null,null,null,null,"","","","",null,null,null,null,"","",""]
["",null,null,null,null,null,"","","","","",{"$error":"#NAME?"},"",null,null,null,"",null,null,null,null,"","","",null,null,null,null,null,null,null,null,null,null,null,null,null,null,null,null,null,null,null,null,null,null,"","","","",null,null,null,null,"","",""]
["",null,null,null,null,null,"","","","","",{"$error":"#NAME?"},"",null,null,null,"",null,null,null,null,"","","",null,null,null,null,null,null,null,null,null,null,null,null,null,null,null,null,null,null,null,null,null,null,"","","","",null,null,null,null,"","",""]
["",null,null,null,null,null,"","","","","",{"$error":"#NAME?"},"",null,null,null,"",null,null,null,null,"","","",null,null,null,null,null,null,null,null,null,null,null,null,null,null,null,null,null,null,null,null,null,null,"","","","",null,null,null,null,"","",""]
["",null,null,null,null,null,"","","","","",{"$error":"#NAME?"},"",null,null,null,"",null,null,null,null,"","","",null,null,null,null,null,null,null,null,null,null,null,null,null,null,null,null,null,null,null,null,null,null,"","","","",null,null,null,null,"","",""]
["",null,null,null,null,null,"","","","","",{"$error":"#NAME?"},"",null,null,null,"",null,null,null,null,"","","",null,null,null,null,null,null,null,null,null,null,null,null,null,null,null,null,null,null,null,null,null,null,"","","","",null,null,null,null,"","",""]
["",null,null,null,null,null,"","","","","",{"$error":"#NAME?"},"",null,null,null,"",null,null,null,null,"","","",null,null,null,null,null,null,null,null,null,null,null,null,null,null,null,null,null,null,null,null,null,null,"","","","",null,null,null,null,"","",""]
["",null,null,null,null,null,"","","","","",{"$error":"#NAME?"},"",null,null,null,"",null,null,null,null,"","","",null,null,null,null,null,null,null,null,null,null,null,null,null,null,null,null,null,null,null,null,null,null,"","","","",null,null,null,null,"","",""]
["",null,null,null,null,null,"","","","","",{"$error":"#NAME?"},"",null,null,null,"",null,null,null,null,"","","",null,null,null,null,null,null,null,null,null,null,null,null,null,null,null,null,null,null,null,null,null,null,"","","","",null,null,null,null,"","",""]
["",null,null,null,null,null,"","","","","",{"$error":"#NAME?"},"",null,null,null,"",null,null,null,null,"","","",null,null,null,null,null,null,null,null,null,null,null,null,null,null,null,null,null,null,null,null,null,null,"","","","",null,null,null,null,"","",""]
["",null,null,null,null,null,"","","","","",{"$error":"#NAME?"},"",null,null,null,"",null,null,null,null,"","","",null,null,null,null,null,null,null,null,null,null,null,null,null,null,null,null,null,null,null,null,null,null,"","","","",null,null,null,null,"","",""]
["",null,null,null,null,null,"","","","","",{"$error":"#NAME?"},"",null,null,null,"",null,null,null,null,"","","",null,null,null,null,null,null,null,null,null,null,null,null,null,null,null,null,null,null,null,null,null,null,"","","","",null,null,null,null,"","",""]
["",null,null,null,null,null,"","","","","",{"$error":"#NAME?"},"",null,null,null,"",null,null,null,null,"","","",null,null,null,null,null,null,null,null,null,null,null,null,null,null,null,null,null,null,null,null,null,null,"","","","",null,null,null,null,"","",""]
["",null,null,null,null,null,"","","","","",{"$error":"#NAME?"},"",null,null,null,"",null,null,null,null,"","","",null,null,null,null,null,null,null,null,null,null,null,null,null,null,null,null,null,null,null,null,null,null,"","","","",null,null,null,null,"","",""]
["",null,null,null,null,null,"","","","","",{"$error":"#NAME?"},"",null,null,null,"",null,null,null,null,"","","",null,null,null,null,null,null,null,null,null,null,null,null,null,null,null,null,null,null,null,null,null,null,"","","","",null,null,null,null,"","",""]
["",null,null,null,null,null,"","","","","",{"$error":"#NAME?"},"",null,null,null,"",null,null,null,null,"","","",null,null,null,null,null,null,null,null,null,null,null,null,null,null,null,null,null,null,null,null,null,null,"","","","",null,null,null,null,"","",""]
["",null,null,null,null,null,"","","","","",{"$error":"#NAME?"},"",null,null,null,"",null,null,null,null,"","","",null,null,null,null,null,null,null,null,null,null,null,null,null,null,null,null,null,null,null,null,null,null,"","","","",null,null,null,null,"","",""]
["",null,null,null,null,null,"","","","","",{"$error":"#NAME?"},"",null,null,null,"",null,null,null,null,"","","",null,null,null,null,null,null,null,null,null,null,null,null,null,null,null,null,null,null,null,null,null,null,"","","","",null,null,null,null,"","",""]
["",null,null,null,null,null,"","","","","",{"$error":"#NAME?"},"",null,null,null,"",null,null,null,null,"","","",null,null,null,null,null,null,null,null,null,null,null,null,null,null,null,null,null,null,null,null,null,null,"","","","",null,null,null,null,"","",""]
["",null,null,null,null,null,"","","","","",{"$error":"#NAME?"},"",null,null,null,"",null,null,null,null,"","","",null,null,null,null,null,null,null,null,null,null,null,null,null,null,null,null,null,null,null,null,null,null,"","","","",null,null,null,null,"","",""]
["",null,null,null,null,null,"","","","","",{"$error":"#NAME?"},"",null,null,null,"",null,null,null,null,"","","",null,null,null,null,null,null,null,null,null,null,null,null,null,null,null,null,null,null,null,null,null,null,"","","","",null,null,null,null,"","",""]
["",null,null,null,null,null,"","","","","",{"$error":"#NAME?"},"",null,null,null,"",null,null,null,null,"","","",null,null,null,null,null,null,null,null,null,null,null,null,null,null,null,null,null,null,null,null,null,null,"","","","",null,null,null,null,"","",""]
["",null,null,null,null,null,"","","","","",{"$error":"#NAME?"},"",null,null,null,"",null,null,null,null,"","","",null,null,null,null,null,null,null,null,null,null,null,null,null,null,null,null,null,null,null,null,null,null,"","","","",null,null,null,null,"","",""]
["",null,null,null,null,null,"","","","","",{"$error":"#NAME?"},"",null,null,null,"",null,null,null,null,"","","",null,null,null,null,null,null,null,null,null,null,null,null,null,null,null,null,null,null,null,null,null,null,"","","","",null,null,null,null,"","",""]
["",null,null,null,null,null,"","","","","",{"$error":"#NAME?"},"",null,null,null,"",null,null,null,null,"","","",null,null,null,null,null,null,null,null,null,null,null,null,null,null,null,null,null,null,null,null,null,null,"","","","",null,null,null,null,"","",""]
["",null,null,null,null,null,"","","","","",{"$error":"#NAME?"},"",null,null,null,"",null,null,null,null,"","","",null,null,null,null,null,null,null,null,null,null,null,null,null,null,null,null,null,null,null,null,null,null,"","","","",null,null,null,null,"","",""]
["",null,null,null,null,null,"","","","","",{"$error":"#NAME?"},"",null,null,null,"",null,null,null,null,"","","",null,null,null,null,null,null,null,null,null,null,null,null,null,null,null,null,null,null,null,null,null,null,"","","","",null,null,null,null,"","",""]
["",null,null,null,null,null,"","","","","",{"$error":"#NAME?"},"",null,null,null,"",null,null,null,null,"","","",null,null,null,null,null,null,null,null,null,null,null,null,null,null,null,null,null,null,null,null,null,null,"","","","",null,null,null,null,"","",""]
["",null,null,null,null,null,"","","","","",{"$error":"#NAME?"},"",null,null,null,"",null,null,null,null,"","","",null,null,null,null,null,null,null,null,null,null,null,null,null,null,null,null,null,null,null,null,null,null,"","","","",null,null,null,null,"","",""]
["",null,null,null,null,null,"","","","","",{"$error":"#NAME?"},"",null,null,null,"",null,null,null,null,"","","",null,null,null,null,null,null,null,null,null,null,null,null,null,null,null,null,null,null,null,null,null,null,"","","","",null,null,null,null,"","",""]
["",null,null,null,null,null,"","","","","",{"$error":"#NAME?"},"",null,null,null,"",null,null,null,null,"","","",null,null,null,null,null,null,null,null,null,null,null,null,null,null,null,null,null,null,null,null,null,null,"","","","",null,null,null,null,"","",""]
["",null,null,null,null,null,"","","","","",{"$error":"#NAME?"},"",null,null,null,"",null,null,null,null,"","","",null,null,null,null,null,null,null,null,null,null,null,null,null,null,null,null,null,null,null,null,null,null,"","","","",null,null,null,null,"","",""]
["",null,null,null,null,null,"","","","","",{"$error":"#NAME?"},"",null,null,null,"",null,null,null,null,"","","",null,null,null,null,null,null,null,null,null,null,null,null,null,null,null,null,null,null,null,null,null,null,"","","","",null,null,null,null,"","",""]
["",null,null,null,null,null,"","","","","",{"$error":"#NAME?"},"",null,null,null,"",null,null,null,null,"","","",null,null,null,null,null,null,null,null,null,null,null,null,null,null,null,null,null,null,null,null,null,null,"","","","",null,null,null,null,"","",""]
["",null,null,null,null,null,"","","","","",{"$error":"#NAME?"},"",null,null,null,"",null,null,null,null,"","","",null,null,null,null,null,null,null,null,null,null,null,null,null,null,null,null,null,null,null,null,null,null,"","","","",null,null,null,null,"","",""]
["",null,null,null,null,null,"","","","","",{"$error":"#NAME?"},"",null,null,null,"",null,null,null,null,"","","",null,null,null,null,null,null,null,null,null,null,null,null,null,null,null,null,null,null,null,null,null,null,"","","","",null,null,null,null,"","",""]
["",null,null,null,null,null,"","","","","",{"$error":"#NAME?"},"",null,null,null,"",null,null,null,null,"","","",null,null,null,null,null,null,null,null,null,null,null,null,null,null,null,null,null,null,null,null,null,null,"","","","",null,null,null,null,"","",""]
["",null,null,null,null,null,"","","","","",{"$error":"#NAME?"},"",null,null,null,"",null,null,null,null,"","","",null,null,null,null,null,null,null,null,null,null,null,null,null,null,null,null,null,null,null,null,null,null,"","","","",null,null,null,null,"","",""]
["",null,null,null,null,null,"","","","","",{"$error":"#NAME?"},"",null,null,null,"",null,null,null,null,"","","",null,null,null,null,null,null,null,null,null,null,null,null,null,null,null,null,null,null,null,null,null,null,"","","","",null,null,null,null,"","",""]
["",null,null,null,null,null,"","","","","",{"$error":"#NAME?"},"",null,null,null,"",null,null,null,null,"","","",null,null,null,null,null,null,null,null,null,null,null,null,null,null,null,null,null,null,null,null,null,null,"","","","",null,null,null,null,"","",""]
["",null,null,null,null,null,"","","","","",{"$error":"#NAME?"},"",null,null,null,"",null,null,null,null,"","","",null,null,null,null,null,null,null,null,null,null,null,null,null,null,null,null,null,null,null,null,null,null,"","","","",null,null,null,null,"","",""]
["",null,null,null,null,null,"","","",{"$f":"IF(E519=\"\",\"\",DATE(I519,H519,G519))","v":""},"",{"$f":"Kh_Date_Sex_Province($E519,3)","v":{"$error":"#NAME?"}},{"$f":"IF(E519=\"\",\"\",IF(ISODD(MID(E519,13,1)),\"ذكر\",\"أنثى\"))","v":""},null,null,null,"",null,null,null,null,"","","",null,null,null,null,null,null,null,null,null,null,null,null,null,null,null,null,null,null,null,null,null,null,"","","","",null,null,null,null,"","",""]
[{"$f":"IF(F520=\"\",\"\",A519+1)","v":""},null,null,null,null,null,{"$f":"RIGHT(LEFT(E520,7),2)","v":""},{"$f":"RIGHT(LEFT(E520,5),2)","v":""},{"$f":"IF(E520=\"\",\"\",IF(ISODD(MID(E520,1,1)),MID(E520,2,2)+2000,MID(E520,2,2)+1900))","v":""},"",{"$f":"IF(J520=\"\",\"\",$K$4+J520-1)","v":""},{"$error":"#NAME?"},"",null,null,null,{"$f":"IF(F520=\"\",\"\",\"الغربية\")","v":""},null,null,null,null,{"$f":"IF(U520=\"\",\"\",DATEDIF(U520,$V$3,\"md\"))","v":""},{"$f":"IF(U520=\"\",\"\",DATEDIF(U520,$V$3,\"ym\"))","v":""},{"$f":"IF(U520=\"\",\"\",DATEDIF(U520,$V$3,\"y\"))","v":""},null,null,null,null,null,null,null,null,null,null,null,null,null,null,null,null,null,null,null,null,null,null,{"$f":"IF(U520=\"\",\"\",DATEDIF(U520,$AU$3,\"md\"))","v":""},{"$f":"IF(U520=\"\",\"\",DATEDIF(U520,$AU$3,\"ym\"))","v":""},{"$f":"IF(U520=\"\",\"\",DATEDIF(U520,$AU$3,\"y\"))","v":""},"",null,null,null,null,{"$f":"IF(A520=\"\",\"\",A520)","v":""},{"$f":"IF(D520=\"\",\"\",D520)","v":""},{"$f":"IF(F520=\"\",\"\",F520)","v":""}]
["",null,null,null,null,null,"","","","","",{"$error":"#NAME?"},"",null,null,null,"",null,null,null,null,"","","",null,null,null,null,null,null,null,null,null,null,null,null,null,null,null,null,null,null,null,null,null,null,"","","",{"$f":"IF(J521=\"\",\"\",$AX$3+J521-1)","v":""},null,null,null,null,"","",""]
["",null,null,null,null,null,"","","","","",{"$error":"#NAME?"},"",null,null,null,"",null,null,null,null,"","","",null,null,null,null,null,null,null,null,null,null,null,null,null,null,null,null,null,null,null,null,null,null,"","","","",null,null,null,null,"","",""]
["",null,null,null,null,null,"","","","","",{"$error":"#NAME?"},"",null,null,null,"",null,null,null,null,"","","",null,null,null,null,null,null,null,null,null,null,null,null,null,null,null,null,null,null,null,null,null,null,"","","","",null,null,null,null,"","",""]
["",null,null,null,null,null,"","","","","",{"$error":"#NAME?"},"",null,null,null,"",null,null,null,null,"","","",null,null,null,null,null,null,null,null,null,null,null,null,null,null,null,null,null,null,null,null,null,null,"","","","",null,null,null,null,"","",""]
["",null,null,null,null,null,"","","","","",{"$error":"#NAME?"},"",null,null,null,"",null,null,null,null,"","","",null,null,null,null,null,null,null,null,null,null,null,null,null,null,null,null,null,null,null,null,null,null,"","","","",null,null,null,null,"","",""]
["",null,null,null,null,null,"","","","","",{"$error":"#NAME?"},"",null,null,null,"",null,null,null,null,"","","",null,null,null,null,null,null,null,null,null,null,null,null,null,null,null,null,null,null,null,null,null,null,"","","","",null,null,null,null,"","",""]
["",null,null,null,null,null,"","","","","",{"$error":"#NAME?"},"",null,null,null,"",null,null,null,null,"","","",null,null,null,null,null,null,null,null,null,null,null,null,null,null,null,null,null,null,null,null,null,null,"","","","",null,null,null,null,"","",""]
["",null,null,null,null,null,"","","","","",{"$error":"#NAME?"},"",null,null,null,"",null,null,null,null,"","","",null,null,null,null,null,null,null,null,null,null,null,null,null,null,null,null,null,null,null,null,null,null,"","","","",null,null,null,null,"","",""]
["",null,null,null,null,null,"","","","","",{"$error":"#NAME?"},"",null,null,null,"",null,null,null,null,"","","",null,null,null,null,null,null,null,null,null,null,null,null,null,null,null,null,null,null,null,null,null,null,"","","","",null,null,null,null,"","",""]
["",null,null,null,null,null,"","","","","",{"$error":"#NAME?"},"",null,null,null,"",null,null,null,null,"","","",null,null,null,null,null,null,null,null,null,null,null,null,null,null,null,null,null,null,null,null,null,null,"","","","",null,null,null,null,"","",""]
["",null,null,null,null,null,"","","","","",{"$error":"#NAME?"},"",null,null,null,"",null,null,null,null,"","","",null,null,null,null,null,null,null,null,null,null,null,null,null,null,null,null,null,null,null,null,null,null,"","","","",null,null,null,null,"","",""]
["",null,null,null,null,null,"","","","","",{"$error":"#NAME?"},"",null,null,null,"",null,null,null,null,"","","",null,null,null,null,null,null,null,null,null,null,null,null,null,null,null,null,null,null,null,null,null,null,"","","","",null,null,null,null,"","",""]
["",null,null,null,null,null,"","","","","",{"$error":"#NAME?"},"",null,null,null,"",null,null,null,null,"","","",null,null,null,null,null,null,null,null,null,null,null,null,null,null,null,null,null,null,null,null,null,null,"","","","",null,null,null,null,"","",""]
["",null,null,null,null,null,"","","","","",{"$error":"#NAME?"},"",null,null,null,"",null,null,null,null,"","","",null,null,null,null,null,null,null,null,null,null,null,null,null,null,null,null,null,null,null,null,null,null,"","","","",null,null,null,null,"","",""]
["",null,null,null,null,null,"","","","","",{"$error":"#NAME?"},"",null,null,null,"",null,null,null,null,"","","",null,null,null,null,null,null,null,null,null,null,null,null,null,null,null,null,null,null,null,null,null,null,"","","","",null,null,null,null,"","",""]
["",null,null,null,null,null,"","","","","",{"$error":"#NAME?"},"",null,null,null,"",null,null,null,null,"","","",null,null,null,null,null,null,null,null,null,null,null,null,null,null,null,null,null,null,null,null,null,null,"","","","",null,null,null,null,"","",""]
["",null,null,null,null,null,"","","","","",{"$error":"#NAME?"},"",null,null,null,"",null,null,null,null,"","","",null,null,null,null,null,null,null,null,null,null,null,null,null,null,null,null,null,null,null,null,null,null,"","","","",null,null,null,null,"","",""]
["",null,null,null,null,null,"","","","","",{"$error":"#NAME?"},"",null,null,null,"",null,null,null,null,"","","",null,null,null,null,null,null,null,null,null,null,null,null,null,null,null,null,null,null,null,null,null,null,"","","","",null,null,null,null,"","",""]
["",null,null,null,null,null,"","","","","",{"$error":"#NAME?"},"",null,null,null,"",null,null,null,null,"","","",null,null,null,null,null,null,null,null,null,null,null,null,null,null,null,null,null,null,null,null,null,null,"","","","",null,null,null,null,"","",""]
["",null,null,null,null,null,"","","","","",{"$error":"#NAME?"},"",null,null,null,"",null,null,null,null,"","","",null,null,null,null,null,null,null,null,null,null,null,null,null,null,null,null,null,null,null,null,null,null,"","","","",null,null,null,null,"","",""]
["",null,null,null,null,null,"","","","","",{"$error":"#NAME?"},"",null,null,null,"",null,null,null,null,"","","",null,null,null,null,null,null,null,null,null,null,null,null,null,null,null,null,null,null,null,null,null,null,"","","","",null,null,null,null,"","",""]
["",null,null,null,null,null,"","","","","",{"$error":"#NAME?"},"",null,null,null,"",null,null,null,null,"","","",null,null,null,null,null,null,null,null,null,null,null,null,null,null,null,null,null,null,null,null,null,null,"","","","",null,null,null,null,"","",""]
["",null,null,null,null,null,"","","","","",{"$error":"#NAME?"},"",null,null,null,"",null,null,null,null,"","","",null,null,null,null,null,null,null,null,null,null,null,null,null,null,null,null,null,null,null,null,null,null,"","","","",null,null,null,null,"","",""]
["",null,null,null,null,null,"","","","","",{"$error":"#NAME?"},"",null,null,null,"",null,null,null,null,"","","",null,null,null,null,null,null,null,null,null,null,null,null,null,null,null,null,null,null,null,null,null,null,"","","","",null,null,null,null,"","",""]
["",null,null,null,null,null,"","","","","",{"$error":"#NAME?"},"",null,null,null,"",null,null,null,null,"","","",null,null,null,null,null,null,null,null,null,null,null,null,null,null,null,null,null,null,null,null,null,null,"","","","",null,null,null,null,"","",""]
["",null,null,null,null,null,"","","","","",{"$error":"#NAME?"},"",null,null,null,"",null,null,null,null,"","","",null,null,null,null,null,null,null,null,null,null,null,null,null,null,null,null,null,null,null,null,null,null,"","","","",null,null,null,null,"","",""]
["",null,null,null,null,null,"","","","","",{"$error":"#NAME?"},"",null,null,null,"",null,null,null,null,"","","",null,null,null,null,null,null,null,null,null,null,null,null,null,null,null,null,null,null,null,null,null,null,"","","","",null,null,null,null,"","",""]
["",null,null,null,null,null,"","","","","",{"$error":"#NAME?"},"",null,null,null,"",null,null,null,null,"","","",null,null,null,null,null,null,null,null,null,null,null,null,null,null,null,null,null,null,null,null,null,null,"","","","",null,null,null,null,"","",""]
["",null,null,null,null,null,"","","","","",{"$error":"#NAME?"},"",null,null,null,"",null,null,null,null,"","","",null,null,null,null,null,null,null,null,null,null,null,null,null,null,null,null,null,null,null,null,null,null,"","","","",null,null,null,null,"","",""]
["",null,null,null,null,null,"","","","","",{"$error":"#NAME?"},"",null,null,null,"",null,null,null,null,"","","",null,null,null,null,null,null,null,null,null,null,null,null,null,null,null,null,null,null,null,null,null,null,"","","","",null,null,null,null,"","",""]
["",null,null,null,null,null,"","","","","",{"$error":"#NAME?"},"",null,null,null,"",null,null,null,null,"","","",null,null,null,null,null,null,null,null,null,null,null,null,null,null,null,null,null,null,null,null,null,null,"","","","",null,null,null,null,"","",""]
["",null,null,null,null,null,"","","","","",{"$error":"#NAME?"},"",null,null,null,"",null,null,null,null,"","","",null,null,null,null,null,null,null,null,null,null,null,null,null,null,null,null,null,null,null,null,null,null,"","","","",null,null,null,null,"","",""]
["",null,null,null,null,null,"","","","","",{"$error":"#NAME?"},"",null,null,null,"",null,null,null,null,"","","",null,null,null,null,null,null,null,null,null,null,null,null,null,null,null,null,null,null,null,null,null,null,"","","","",null,null,null,null,"","",""]
["",null,null,null,null,null,"","","","","",{"$error":"#NAME?"},"",null,null,null,"",null,null,null,null,"","","",null,null,null,null,null,null,null,null,null,null,null,null,null,null,null,null,null,null,null,null,null,null,"","","","",null,null,null,null,"","",""]
["",null,null,null,null,null,"","","","","",{"$error":"#NAME?"},"",null,null,null,"",null,null,null,null,"","","",null,null,null,null,null,null,null,null,null,null,null,null,null,null,null,null,null,null,null,null,null,null,"","","","",null,null,null,null,"","",""]
["",null,null,null,null,null,"","","","","",{"$error":"#NAME?"},"",null,null,null,"",null,null,null,null,"","","",null,null,null,null,null,null,null,null,null,null,null,null,null,null,null,null,null,null,null,null,null,null,"","","","",null,null,null,null,"","",""]
["",null,null,null,null,null,"","","","","",{"$error":"#NAME?"},"",null,null,null,"",null,null,null,null,"","","",null,null,null,null,null,null,null,null,null,null,null,null,null,null,null,null,null,null,null,null,null,null,"","","","",null,null,null,null,"","",""]
["",null,null,null,null,null,"","","","","",{"$error":"#NAME?"},"",null,null,null,"",null,null,null,null,"","","",null,null,null,null,null,null,null,null,null,null,null,null,null,null,null,null,null,null,null,null,null,null,"","","","",null,null,null,null,"","",""]
["",null,null,null,null,null,"","","","","",{"$error":"#NAME?"},"",null,null,null,"",null,null,null,null,"","","",null,null,null,null,null,null,null,null,null,null,null,null,null,null,null,null,null,null,null,null,null,null,"","","","",null,null,null,null,"","",""]
["",null,null,null,null,null,"","","","","",{"$error":"#NAME?"},"",null,null,null,"",null,null,null,null,"","","",null,null,null,null,null,null,null,null,null,null,null,null,null,null,null,null,null,null,null,null,null,null,"","","","",null,null,null,null,"","",""]
["",null,null,null,null,null,"","","","","",{"$error":"#NAME?"},"",null,null,null,"",null,null,null,null,"","","",null,null,null,null,null,null,null,null,null,null,null,null,null,null,null,null,null,null,null,null,null,null,"","","","",null,null,null,null,"","",""]
["",null,null,null,null,null,"","","","","",{"$error":"#NAME?"},"",null,null,null,"",null,null,null,null,"","","",null,null,null,null,null,null,null,null,null,null,null,null,null,null,null,null,null,null,null,null,null,null,"","","","",null,null,null,null,"","",""]
["",null,null,null,null,null,"","","","","",{"$error":"#NAME?"},"",null,null,null,"",null,null,null,null,"","","",null,null,null,null,null,null,null,null,null,null,null,null,null,null,null,null,null,null,null,null,null,null,"","","","",null,null,null,null,"","",""]
["",null,null,null,null,null,"","","","","",{"$error":"#NAME?"},"",null,null,null,"",null,null,null,null,"","","",null,null,null,null,null,null,null,null,null,null,null,null,null,null,null,null,null,null,null,null,null,null,"","","","",null,null,null,null,"","",""]
["",null,null,null,null,null,"","","","","",{"$error":"#NAME?"},"",null,null,null,"",null,null,null,null,"","","",null,null,null,null,null,null,null,null,null,null,null,null,null,null,null,null,null,null,null,null,null,null,"","","","",null,null,null,null,"","",""]
["",null,null,null,null,null,"","","","","",{"$error":"#NAME?"},"",null,null,null,"",null,null,null,null,"","","",null,null,null,null,null,null,null,null,null,null,null,null,null,null,null,null,null,null,null,null,null,null,"","","","",null,null,null,null,"","",""]
["",null,null,null,null,null,"","","","","",{"$error":"#NAME?"},"",null,null,null,"",null,null,null,null,"","","",null,null,null,null,null,null,null,null,null,null,null,null,null,null,null,null,null,null,null,null,null,null,"","","","",null,null,null,null,"","",""]
["",null,null,null,null,null,"","","","","",{"$error":"#NAME?"},"",null,null,null,"",null,null,null,null,"","","",null,null,null,null,null,null,null,null,null,null,null,null,null,null,null,null,null,null,null,null,null,null,"","","","",null,null,null,null,"","",""]
["",null,null,null,null,null,"","","","","",{"$error":"#NAME?"},"",null,null,null,"",null,null,null,null,"","","",null,null,null,null,null,null,null,null,null,null,null,null,null,null,null,null,null,null,null,null,null,null,"","","","",null,null,null,null,"","",""]
["",null,null,null,null,null,"","","","","",{"$error":"#NAME?"},"",null,null,null,"",null,null,null,null,"","","",null,null,null,null,null,null,null,null,null,null,null,null,null,null,null,null,null,null,null,null,null,null,"","","","",null,null,null,null,"","",""]
["",null,null,null,null,null,"","","","","",{"$error":"#NAME?"},"",null,null,null,"",null,null,null,null,"","","",null,null,null,null,null,null,null,null,null,null,null,null,null,null,null,null,null,null,null,null,null,null,"","","","",null,null,null,null,"","",""]
["",null,null,null,null,null,"","","","","",{"$error":"#NAME?"},"",null,null,null,"",null,null,null,null,"","","",null,null,null,null,null,null,null,null,null,null,null,null,null,null,null,null,null,null,null,null,null,null,"","","","",null,null,null,null,"","",""]
["",null,null,null,null,null,"","","","","",{"$error":"#NAME?"},"",null,null,null,"",null,null,null,null,"","","",null,null,null,null,null,null,null,null,null,null,null,null,null,null,null,null,null,null,null,null,null,null,"","","","",null,null,null,null,"","",""]
["",null,null,null,null,null,"","","","","",{"$error":"#NAME?"},"",null,null,null,"",null,null,null,null,"","","",null,null,null,null,null,null,null,null,null,null,null,null,null,null,null,null,null,null,null,null,null,null,"","","","",null,null,null,null,"","",""]
["",null,null,null,null,null,"","","","","",{"$error":"#NAME?"},"",null,null,null,"",null,null,null,null,"","","",null,null,null,null,null,null,null,null,null,null,null,null,null,null,null,null,null,null,null,null,null,null,"","","","",null,null,null,null,"","",""]
["",null,null,null,null,null,"","","","","",{"$error":"#NAME?"},"",null,null,null,"",null,null,null,null,"","","",null,null,null,null,null,null,null,null,null,null,null,null,null,null,null,null,null,null,null,null,null,null,"","","","",null,null,null,null,"","",""]
["",null,null,null,null,null,"","","","","",{"$error":"#NAME?"},"",null,null,null,"",null,null,null,null,"","","",null,null,null,null,null,null,null,null,null,null,null,null,null,null,null,null,null,null,null,null,null,null,"","","","",null,null,null,null,"","",""]
["",null,null,null,null,null,"","","","","",{"$error":"#NAME?"},"",null,null,null,"",null,null,null,null,"","","",null,null,null,null,null,null,null,null,null,null,null,null,null,null,null,null,null,null,null,null,null,null,"","","","",null,null,null,null,"","",""]
["",null,null,null,null,null,"","","","","",{"$error":"#NAME?"},"",null,null,null,"",null,null,null,null,"","","",null,null,null,null,null,null,null,null,null,null,null,null,null,null,null,null,null,null,null,null,null,null,"","","","",null,null,null,null,"","",""]
["",null,null,null,null,null,"","","","","",{"$error":"#NAME?"},"",null,null,null,"",null,null,null,null,"","","",null,null,null,null,null,null,null,null,null,null,null,null,null,null,null,null,null,null,null,null,null,null,"","","","",null,null,null,null,"","",""]
["",null,null,null,null,null,"","","","","",{"$error":"#NAME?"},"",null,null,null,"",null,null,null,null,"","","",null,null,null,null,null,null,null,null,null,null,null,null,null,null,null,null,null,null,null,null,null,null,"","","","",null,null,null,null,"","",""]
["",null,null,null,null,null,"","","","","",{"$error":"#NAME?"},"",null,null,null,"",null,null,null,null,"","","",null,null,null,null,null,null,null,null,null,null,null,null,null,null,null,null,null,null,null,null,null,null,"","","","",null,null,null,null,"","",""]
["",null,null,null,null,null,"","","",{"$f":"IF(E583=\"\",\"\",DATE(I583,H583,G583))","v":""},"",{"$f":"Kh_Date_Sex_Province($E583,3)","v":{"$error":"#NAME?"}},{"$f":"IF(E583=\"\",\"\",IF(ISODD(MID(E583,13,1)),\"ذكر\",\"أنثى\"))","v":""},null,null,null,"",null,null,null,null,"","","",null,null,null,null,null,null,null,null,null,null,null,null,null,null,null,null,null,null,null,null,null,null,"","","","",null,null,null,null,"","",""]
[{"$f":"IF(F584=\"\",\"\",A583+1)","v":""},null,null,null,null,null,{"$f":"RIGHT(LEFT(E584,7),2)","v":""},{"$f":"RIGHT(LEFT(E584,5),2)","v":""},{"$f":"IF(E584=\"\",\"\",IF(ISODD(MID(E584,1,1)),MID(E584,2,2)+2000,MID(E584,2,2)+1900))","v":""},"",{"$f":"IF(J584=\"\",\"\",$K$4+J584-1)","v":""},{"$error":"#NAME?"},"",null,null,null,{"$f":"IF(F584=\"\",\"\",\"الغربية\")","v":""},null,null,null,null,{"$f":"IF(U584=\"\",\"\",DATEDIF(U584,$V$3,\"md\"))","v":""},{"$f":"IF(U584=\"\",\"\",DATEDIF(U584,$V$3,\"ym\"))","v":""},{"$f":"IF(U584=\"\",\"\",DATEDIF(U584,$V$3,\"y\"))","v":""},null,null,null,null,null,null,null,null,null,null,null,null,null,null,null,null,null,null,null,null,null,null,{"$f":"IF(U584=\"\",\"\",DATEDIF(U584,$AU$3,\"md\"))","v":""},{"$f":"IF(U584=\"\",\"\",DATEDIF(U584,$AU$3,\"ym\"))","v":""},{"$f":"IF(U584=\"\",\"\",DATEDIF(U584,$AU$3,\"y\"))","v":""},"",null,null,null,null,{"$f":"IF(A584=\"\",\"\",A584)","v":""},{"$f":"IF(D584=\"\",\"\",D584)","v":""},{"$f":"IF(F584=\"\",\"\",F584)","v":""}]
["",null,null,null,null,null,"","","","","",{"$error":"#NAME?"},"",null,null,null,"",null,null,null,null,"","","",null,null,null,null,null,null,null,null,null,null,null,null,null,null,null,null,null,null,null,null,null,null,"","","",{"$f":"IF(J585=\"\",\"\",$AX$3+J585-1)","v":""},null,null,null,null,"","",""]
["",null,null,null,null,null,"","","","","",{"$error":"#NAME?"},"",null,null,null,"",null,null,null,null,"","","",null,null,null,null,null,null,null,null,null,null,null,null,null,null,null,null,null,null,null,null,null,null,"","","","",null,null,null,null,"","",""]
["",null,null,null,null,null,"","","","","",{"$error":"#NAME?"},"",null,null,null,"",null,null,null,null,"","","",null,null,null,null,null,null,null,null,null,null,null,null,null,null,null,null,null,null,null,null,null,null,"","","","",null,null,null,null,"","",""]
["",null,null,null,null,null,"","","","","",{"$error":"#NAME?"},"",null,null,null,"",null,null,null,null,"","","",null,null,null,null,null,null,null,null,null,null,null,null,null,null,null,null,null,null,null,null,null,null,"","","","",null,null,null,null,"","",""]
["",null,null,null,null,null,"","","","","",{"$error":"#NAME?"},"",null,null,null,"",null,null,null,null,"","","",null,null,null,null,null,null,null,null,null,null,null,null,null,null,null,null,null,null,null,null,null,null,"","","","",null,null,null,null,"","",""]
["",null,null,null,null,null,"","","","","",{"$error":"#NAME?"},"",null,null,null,"",null,null,null,null,"","","",null,null,null,null,null,null,null,null,null,null,null,null,null,null,null,null,null,null,null,null,null,null,"","","","",null,null,null,null,"","",""]
["",null,null,null,null,null,"","","","","",{"$error":"#NAME?"},"",null,null,null,"",null,null,null,null,"","","",null,null,null,null,null,null,null,null,null,null,null,null,null,null,null,null,null,null,null,null,null,null,"","","","",null,null,null,null,"","",""]
["",null,null,null,null,null,"","","","","",{"$error":"#NAME?"},"",null,null,null,"",null,null,null,null,"","","",null,null,null,null,null,null,null,null,null,null,null,null,null,null,null,null,null,null,null,null,null,null,"","","","",null,null,null,null,"","",""]
["",null,null,null,null,null,"","","","","",{"$error":"#NAME?"},"",null,null,null,"",null,null,null,null,"","","",null,null,null,null,null,null,null,null,null,null,null,null,null,null,null,null,null,null,null,null,null,null,"","","","",null,null,null,null,"","",""]
["",null,null,null,null,null,"","","","","",{"$error":"#NAME?"},"",null,null,null,"",null,null,null,null,"","","",null,null,null,null,null,null,null,null,null,null,null,null,null,null,null,null,null,null,null,null,null,null,"","","","",null,null,null,null,"","",""]
["",null,null,null,null,null,"","","","","",{"$error":"#NAME?"},"",null,null,null,"",null,null,null,null,"","","",null,null,null,null,null,null,null,null,null,null,null,null,null,null,null,null,null,null,null,null,null,null,"","","","",null,null,null,null,"","",""]
["",null,null,null,null,null,"","","","","",{"$error":"#NAME?"},"",null,null,null,"",null,null,null,null,"","","",null,null,null,null,null,null,null,null,null,null,null,null,null,null,null,null,null,null,null,null,null,null,"","","","",null,null,null,null,"","",""]
["",null,null,null,null,null,"","","","","",{"$error":"#NAME?"},"",null,null,null,"",null,null,null,null,"","","",null,null,null,null,null,null,null,null,null,null,null,null,null,null,null,null,null,null,null,null,null,null,"","","","",null,null,null,null,"","",""]
["",null,null,null,null,null,"","","","","",{"$error":"#NAME?"},"",null,null,null,"",null,null,null,null,"","","",null,null,null,null,null,null,null,null,null,null,null,null,null,null,null,null,null,null,null,null,null,null,"","","","",null,null,null,null,"","",""]
["",null,null,null,null,null,"","","","","",{"$error":"#NAME?"},"",null,null,null,"",null,null,null,null,"","","",null,null,null,null,null,null,null,null,null,null,null,null,null,null,null,null,null,null,null,null,null,null,"","","","",null,null,null,null,"","",""]
["",null,null,null,null,null,"","","","","",{"$error":"#NAME?"},"",null,null,null,"",null,null,null,null,"","","",null,null,null,null,null,null,null,null,null,null,null,null,null,null,null,null,null,null,null,null,null,null,"","","","",null,null,null,null,"","",""]
["",null,null,null,null,null,"","","","","",{"$error":"#NAME?"},"",null,null,null,"",null,null,null,null,"","","",null,null,null,null,null,null,null,null,null,null,null,null,null,null,null,null,null,null,null,null,null,null,"","","","",null,null,null,null,"","",""]
["",null,null,null,null,null,"","","","","",{"$error":"#NAME?"},"",null,null,null,"",null,null,null,null,"","","",null,null,null,null,null,null,null,null,null,null,null,null,null,null,null,null,null,null,null,null,null,null,"","","","",null,null,null,null,"","",""]
["",null,null,null,null,null,"","","","","",{"$error":"#NAME?"},"",null,null,null,"",null,null,null,null,"","","",null,null,null,null,null,null,null,null,null,null,null,null,null,null,null,null,null,null,null,null,null,null,"","","","",null,null,null,null,"","",""]
["",null,null,null,null,null,"","","","","",{"$error":"#NAME?"},"",null,null,null,"",null,null,null,null,"","","",null,null,null,null,null,null,null,null,null,null,null,null,null,null,null,null,null,null,null,null,null,null,"","","","",null,null,null,null,"","",""]
["",null,null,null,null,null,"","","","","",{"$error":"#NAME?"},"",null,null,null,"",null,null,null,null,"","","",null,null,null,null,null,null,null,null,null,null,null,null,null,null,null,null,null,null,null,null,null,null,"","","","",null,null,null,null,"","",""]
["",null,null,null,null,null,"","","","","",{"$error":"#NAME?"},"",null,null,null,"",null,null,null,null,"","","",null,null,null,null,null,null,null,null,null,null,null,null,null,null,null,null,null,null,null,null,null,null,"","","","",null,null,null,null,"","",""]
["",null,null,null,null,null,"","","","","",{"$error":"#NAME?"},"",null,null,null,"",null,null,null,null,"","","",null,null,null,null,null,null,null,null,null,null,null,null,null,null,null,null,null,null,null,null,null,null,"","","","",null,null,null,null,"","",""]
["",null,null,null,null,null,"","","","","",{"$error":"#NAME?"},"",null,null,null,"",null,null,null,null,"","","",null,null,null,null,null,null,null,null,null,null,null,null,null,null,null,null,null,null,null,null,null,null,"","","","",null,null,null,null,"","",""]
["",null,null,null,null,null,"","","","","",{"$error":"#NAME?"},"",null,null,null,"",null,null,null,null,"","","",null,null,null,null,null,null,null,null,null,null,null,null,null,null,null,null,null,null,null,null,null,null,"","","","",null,null,null,null,"","",""]
["",null,null,null,null,null,"","","","","",{"$error":"#NAME?"},"",null,null,null,"",null,null,null,null,"","","",null,null,null,null,null,null,null,null,null,null,null,null,null,null,null,null,null,null,null,null,null,null,"","","","",null,null,null,null,"","",""]
["",null,null,null,null,null,"","","","","",{"$error":"#NAME?"},"",null,null,null,"",null,null,null,null,"","","",null,null,null,null,null,null,null,null,null,null,null,null,null,null,null,null,null,null,null,null,null,null,"","","","",null,null,null,null,"","",""]
["",null,null,null,null,null,"","","","","",{"$error":"#NAME?"},"",null,null,null,"",null,null,null,null,"","","",null,null,null,null,null,null,null,null,null,null,null,null,null,null,null,null,null,null,null,null,null,null,"","","","",null,null,null,null,"","",""]
["",null,null,null,null,null,"","","","","",{"$error":"#NAME?"},"",null,null,null,"",null,null,null,null,"","","",null,null,null,null,null,null,null,null,null,null,null,null,null,null,null,null,null,null,null,null,null,null,"","","","",null,null,null,null,"","",""]
["",null,null,null,null,null,"","","","","",{"$error":"#NAME?"},"",null,null,null,"",null,null,null,null,"","","",null,null,null,null,null,null,null,null,null,null,null,null,null,null,null,null,null,null,null,null,null,null,"","","","",null,null,null,null,"","",""]
["",null,null,null,null,null,"","","","","",{"$error":"#NAME?"},"",null,null,null,"",null,null,null,null,"","","",null,null,null,null,null,null,null,null,null,null,null,null,null,null,null,null,null,null,null,null,null,null,"","","","",null,null,null,null,"","",""]
["",null,null,null,null,null,"","","","","",{"$error":"#NAME?"},"",null,null,null,"",null,null,null,null,"","","",null,null,null,null,null,null,null,null,null,null,null,null,null,null,null,null,null,null,null,null,null,null,"","","","",null,null,null,null,"","",""]
["",null,null,null,null,null,"","","","","",{"$error":"#NAME?"},"",null,null,null,"",null,null,null,null,"","","",null,null,null,null,null,null,null,null,null,null,null,null,null,null,null,null,null,null,null,null,null,null,"","","","",null,null,null,null,"","",""]
["",null,null,null,null,null,"","","","","",{"$error":"#NAME?"},"",null,null,null,"",null,null,null,null,"","","",null,null,null,null,null,null,null,null,null,null,null,null,null,null,null,null,null,null,null,null,null,null,"","","","",null,null,null,null,"","",""]
["",null,null,null,null,null,"","","","","",{"$error":"#NAME?"},"",null,null,null,"",null,null,null,null,"","","",null,null,null,null,null,null,null,null,null,null,null,null,null,null,null,null,null,null,null,null,null,null,"","","","",null,null,null,null,"","",""]
["",null,null,null,null,null,"","","","","",{"$error":"#NAME?"},"",null,null,null,"",null,null,null,null,"","","",null,null,null,null,null,null,null,null,null,null,null,null,null,null,null,null,null,null,null,null,null,null,"","","","",null,null,null,null,"","",""]
["",null,null,null,null,null,"","","","","",{"$error":"#NAME?"},"",null,null,null,"",null,null,null,null,"","","",null,null,null,null,null,null,null,null,null,null,null,null,null,null,null,null,null,null,null,null,null,null,"","","","",null,null,null,null,"","",""]
["",null,null,null,null,null,"","","","","",{"$error":"#NAME?"},"",null,null,null,"",null,null,null,null,"","","",null,null,null,null,null,null,null,null,null,null,null,null,null,null,null,null,null,null,null,null,null,null,"","","","",null,null,null,null,"","",""]
["",null,null,null,null,null,"","","","","",{"$error":"#NAME?"},"",null,null,null,"",null,null,null,null,"","","",null,null,null,null,null,null,null,null,null,null,null,null,null,null,null,null,null,null,null,null,null,null,"","","","",null,null,null,null,"","",""]
["",null,null,null,null,null,"","","","","",{"$error":"#NAME?"},"",null,null,null,"",null,null,null,null,"","","",null,null,null,null,null,null,null,null,null,null,null,null,null,null,null,null,null,null,null,null,null,null,"","","","",null,null,null,null,"","",""]
["",null,null,null,null,null,"","","","","",{"$error":"#NAME?"},"",null,null,null,"",null,null,null,null,"","","",null,null,null,null,null,null,null,null,null,null,null,null,null,null,null,null,null,null,null,null,null,null,"","","","",null,null,null,null,"","",""]
["",null,null,null,null,null,"","","","","",{"$error":"#NAME?"},"",null,null,null,"",null,null,null,null,"","","",null,null,null,null,null,null,null,null,null,null,null,null,null,null,null,null,null,null,null,null,null,null,"","","","",null,null,null,null,"","",""]
["",null,null,null,null,null,"","","","","",{"$error":"#NAME?"},"",null,null,null,"",null,null,null,null,"","","",null,null,null,null,null,null,null,null,null,null,null,null,null,null,null,null,null,null,null,null,null,null,"","","","",null,null,null,null,"","",""]
["",null,null,null,null,null,"","","","","",{"$error":"#NAME?"},"",null,null,null,"",null,null,null,null,"","","",null,null,null,null,null,null,null,null,null,null,null,null,null,null,null,null,null,null,null,null,null,null,"","","","",null,null,null,null,"","",""]
["",null,null,null,null,null,"","","","","",{"$error":"#NAME?"},"",null,null,null,"",null,null,null,null,"","","",null,null,null,null,null,null,null,null,null,null,null,null,null,null,null,null,null,null,null,null,null,null,"","","","",null,null,null,null,"","",""]
["",null,null,null,null,null,"","","","","",{"$error":"#NAME?"},"",null,null,null,"",null,null,null,null,"","","",null,null,null,null,null,null,null,null,null,null,null,null,null,null,null,null,null,null,null,null,null,null,"","","","",null,null,null,null,"","",""]
["",null,null,null,null,null,"","","","","",{"$error":"#NAME?"},"",null,null,null,"",null,null,null,null,"","","",null,null,null,null,null,null,null,null,null,null,null,null,null,null,null,null,null,null,null,null,null,null,"","","","",null,null,null,null,"","",""]
["",null,null,null,null,null,"","","","","",{"$error":"#NAME?"},"",null,null,null,"",null,null,null,null,"","","",null,null,null,null,null,null,null,null,null,null,null,null,null,null,null,null,null,null,null,null,null,null,"","","","",null,null,null,null,"","",""]
["",null,null,null,null,null,"","","","","",{"$error":"#NAME?"},"",null,null,null,"",null,null,null,null,"","","",null,null,null,null,null,null,null,null,null,null,null,null,null,null,null,null,null,null,null,null,null,null,"","","","",null,null,null,null,"","",""]
["",null,null,null,null,null,"","","","","",{"$error":"#NAME?"},"",null,null,null,"",null,null,null,null,"","","",null,null,null,null,null,null,null,null,null,null,null,null,null,null,null,null,null,null,null,null,null,null,"","","","",null,null,null,null,"","",""]
["",null,null,null,null,null,"","","","","",{"$error":"#NAME?"},"",null,null,null,"",null,null,null,null,"","","",null,null,null,null,null,null,null,null,null,null,null,null,null,null,null,null,null,null,null,null,null,null,"","","","",null,null,null,null,"","",""]
["",null,null,null,null,null,"","","","","",{"$error":"#NAME?"},"",null,null,null,"",null,null,null,null,"","","",null,null,null,null,null,null,null,null,null,null,null,null,null,null,null,null,null,null,null,null,null,null,"","","","",null,null,null,null,"","",""]
["",null,null,null,null,null,"","","","","",{"$error":"#NAME?"},"",null,null,null,"",null,null,null,null,"","","",null,null,null,null,null,null,null,null,null,null,null,null,null,null,null,null,null,null,null,null,null,null,"","","","",null,null,null,null,"","",""]
["",null,null,null,null,null,"","","","","",{"$error":"#NAME?"},"",null,null,null,"",null,null,null,null,"","","",null,null,null,null,null,null,null,null,null,null,null,null,null,null,null,null,null,null,null,null,null,null,"","","","",null,null,null,null,"","",""]
["",null,null,null,null,null,"","","","","",{"$error":"#NAME?"},"",null,null,null,"",null,null,null,null,"","","",null,null,null,null,null,null,null,null,null,null,null,null,null,null,null,null,null,null,null,null,null,null,"","","","",null,null,null,null,"","",""]
["",null,null,null,null,null,"","","","","",{"$error":"#NAME?"},"",null,null,null,"",null,null,null,null,"","","",null,null,null,null,null,null,null,null,null,null,null,null,null,null,null,null,null,null,null,null,null,null,"","","","",null,null,null,null,"","",""]
["",null,null,null,null,null,"","","","","",{"$error":"#NAME?"},"",null,null,null,"",null,null,null,null,"","","",null,null,null,null,null,null,null,null,null,null,null,null,null,null,null,null,null,null,null,null,null,null,"","","","",null,null,null,null,"","",""]
["",null,null,null,null,null,"","","","","",{"$error":"#NAME?"},"",null,null,null,"",null,null,null,null,"","","",null,null,null,null,null,null,null,null,null,null,null,null,null,null,null,null,null,null,null,null,null,null,"","","","",null,null,null,null,"","",""]
["",null,null,null,null,null,"","","","","",{"$error":"#NAME?"},"",null,null,null,"",null,null,null,null,"","","",null,null,null,null,null,null,null,null,null,null,null,null,null,null,null,null,null,null,null,null,null,null,"","","","",null,null,null,null,"","",""]
["",null,null,null,null,null,"","","","","",{"$error":"#NAME?"},"",null,null,null,"",null,null,null,null,"","","",null,null,null,null,null,null,null,null,null,null,null,null,null,null,null,null,null,null,null,null,null,null,"","","","",null,null,null,null,"","",""]
["",null,null,null,null,null,"","","","","",{"$error":"#NAME?"},"",null,null,null,"",null,null,null,null,"","","",null,null,null,null,null,null,null,null,null,null,null,null,null,null,null,null,null,null,null,null,null,null,"","","","",null,null,null,null,"","",""]
["",null,null,null,null,null,"","","","","",{"$error":"#NAME?"},"",null,null,null,"",null,null,null,null,"","","",null,null,null,null,null,null,null,null,null,null,null,null,null,null,null,null,null,null,null,null,null,null,"","","","",null,null,null,null,"","",""]
["",null,null,null,null,null,"","","",{"$f":"IF(E647=\"\",\"\",DATE(I647,H647,G647))","v":""},"",{"$f":"Kh_Date_Sex_Province($E647,3)","v":{"$error":"#NAME?"}},{"$f":"IF(E647=\"\",\"\",IF(ISODD(MID(E647,13,1)),\"ذكر\",\"أنثى\"))","v":""},null,null,null,"",null,null,null,null,"","","",null,null,null,null,null,null,null,null,null,null,null,null,null,null,null,null,null,null,null,null,null,null,"","","","",null,null,null,null,"","",""]
[{"$f":"IF(F648=\"\",\"\",A647+1)","v":""},null,null,null,null,null,{"$f":"RIGHT(LEFT(E648,7),2)","v":""},{"$f":"RIGHT(LEFT(E648,5),2)","v":""},{"$f":"IF(E648=\"\",\"\",IF(ISODD(MID(E648,1,1)),MID(E648,2,2)+2000,MID(E648,2,2)+1900))","v":""},"",{"$f":"IF(J648=\"\",\"\",$K$4+J648-1)","v":""},{"$error":"#NAME?"},"",null,null,null,{"$f":"IF(F648=\"\",\"\",\"الغربية\")","v":""},null,null,null,null,{"$f":"IF(U648=\"\",\"\",DATEDIF(U648,$V$3,\"md\"))","v":""},{"$f":"IF(U648=\"\",\"\",DATEDIF(U648,$V$3,\"ym\"))","v":""},{"$f":"IF(U648=\"\",\"\",DATEDIF(U648,$V$3,\"y\"))","v":""},null,null,null,null,null,null,null,null,null,null,null,null,null,null,null,null,null,null,null,null,null,null,{"$f":"IF(U648=\"\",\"\",DATEDIF(U648,$AU$3,\"md\"))","v":""},{"$f":"IF(U648=\"\",\"\",DATEDIF(U648,$AU$3,\"ym\"))","v":""},{"$f":"IF(U648=\"\",\"\",DATEDIF(U648,$AU$3,\"y\"))","v":""},"",null,null,null,null,{"$f":"IF(A648=\"\",\"\",A648)","v":""},{"$f":"IF(D648=\"\",\"\",D648)","v":""},{"$f":"IF(F648=\"\",\"\",F648)","v":""}]
["",null,null,null,null,null,"","","","","",{"$error":"#NAME?"},"",null,null,null,"",null,null,null,null,"","","",null,null,null,null,null,null,null,null,null,null,null,null,null,null,null,null,null,null,null,null,null,null,"","","",{"$f":"IF(J649=\"\",\"\",$AX$3+J649-1)","v":""},null,null,null,null,"","",""]
["",null,null,null,null,null,"","","","","",{"$error":"#NAME?"},"",null,null,null,"",null,null,null,null,"","","",null,null,null,null,null,null,null,null,null,null,null,null,null,null,null,null,null,null,null,null,null,null,"","","","",null,null,null,null,"","",""]
["",null,null,null,null,null,"","","","","",{"$error":"#NAME?"},"",null,null,null,"",null,null,null,null,"","","",null,null,null,null,null,null,null,null,null,null,null,null,null,null,null,null,null,null,null,null,null,null,"","","","",null,null,null,null,"","",""]
["",null,null,null,null,null,"","","","","",{"$error":"#NAME?"},"",null,null,null,"",null,null,null,null,"","","",null,null,null,null,null,null,null,null,null,null,null,null,null,null,null,null,null,null,null,null,null,null,"","","","",null,null,null,null,"","",""]
["",null,null,null,null,null,"","","","","",{"$error":"#NAME?"},"",null,null,null,"",null,null,null,null,"","","",null,null,null,null,null,null,null,null,null,null,null,null,null,null,null,null,null,null,null,null,null,null,"","","","",null,null,null,null,"","",""]
["",null,null,null,null,null,"","","","","",{"$error":"#NAME?"},"",null,null,null,"",null,null,null,null,"","","",null,null,null,null,null,null,null,null,null,null,null,null,null,null,null,null,null,null,null,null,null,null,"","","","",null,null,null,null,"","",""]
["",null,null,null,null,null,"","","","","",{"$error":"#NAME?"},"",null,null,null,"",null,null,null,null,"","","",null,null,null,null,null,null,null,null,null,null,null,null,null,null,null,null,null,null,null,null,null,null,"","","","",null,null,null,null,"","",""]
["",null,null,null,null,null,"","","","","",{"$error":"#NAME?"},"",null,null,null,"",null,null,null,null,"","","",null,null,null,null,null,null,null,null,null,null,null,null,null,null,null,null,null,null,null,null,null,null,"","","","",null,null,null,null,"","",""]
["",null,null,null,null,null,"","","","","",{"$error":"#NAME?"},"",null,null,null,"",null,null,null,null,"","","",null,null,null,null,null,null,null,null,null,null,null,null,null,null,null,null,null,null,null,null,null,null,"","","","",null,null,null,null,"","",""]
["",null,null,null,null,null,"","","","","",{"$error":"#NAME?"},"",null,null,null,"",null,null,null,null,"","","",null,null,null,null,null,null,null,null,null,null,null,null,null,null,null,null,null,null,null,null,null,null,"","","","",null,null,null,null,"","",""]
["",null,null,null,null,null,"","","","","",{"$error":"#NAME?"},"",null,null,null,"",null,null,null,null,"","","",null,null,null,null,null,null,null,null,null,null,null,null,null,null,null,null,null,null,null,null,null,null,"","","","",null,null,null,null,"","",""]
["",null,null,null,null,null,"","","","","",{"$error":"#NAME?"},"",null,null,null,"",null,null,null,null,"","","",null,null,null,null,null,null,null,null,null,null,null,null,null,null,null,null,null,null,null,null,null,null,"","","","",null,null,null,null,"","",""]
["",null,null,null,null,null,"","","","","",{"$error":"#NAME?"},"",null,null,null,"",null,null,null,null,"","","",null,null,null,null,null,null,null,null,null,null,null,null,null,null,null,null,null,null,null,null,null,null,"","","","",null,null,null,null,"","",""]
["",null,null,null,null,null,"","","","","",{"$error":"#NAME?"},"",null,null,null,"",null,null,null,null,"","","",null,null,null,null,null,null,null,null,null,null,null,null,null,null,null,null,null,null,null,null,null,null,"","","","",null,null,null,null,"","",""]
["",null,null,null,null,null,"","","","","",{"$error":"#NAME?"},"",null,null,null,"",null,null,null,null,"","","",null,null,null,null,null,null,null,null,null,null,null,null,null,null,null,null,null,null,null,null,null,null,"","","","",null,null,null,null,"","",""]
["",null,null,null,null,null,"","","","","",{"$error":"#NAME?"},"",null,null,null,"",null,null,null,null,"","","",null,null,null,null,null,null,null,null,null,null,null,null,null,null,null,null,null,null,null,null,null,null,"","","","",null,null,null,null,"","",""]
["",null,null,null,null,null,"","","","","",{"$error":"#NAME?"},"",null,null,null,"",null,null,null,null,"","","",null,null,null,null,null,null,null,null,null,null,null,null,null,null,null,null,null,null,null,null,null,null,"","","","",null,null,null,null,"","",""]
["",null,null,null,null,null,"","","","","",{"$error":"#NAME?"},"",null,null,null,"",null,null,null,null,"","","",null,null,null,null,null,null,null,null,null,null,null,null,null,null,null,null,null,null,null,null,null,null,"","","","",null,null,null,null,"","",""]
["",null,null,null,null,null,"","","","","",{"$error":"#NAME?"},"",null,null,null,"",null,null,null,null,"","","",null,null,null,null,null,null,null,null,null,null,null,null,null,null,null,null,null,null,null,null,null,null,"","","","",null,null,null,null,"","",""]
["",null,null,null,null,null,"","","","","",{"$error":"#NAME?"},"",null,null,null,"",null,null,null,null,"","","",null,null,null,null,null,null,null,null,null,null,null,null,null,null,null,null,null,null,null,null,null,null,"","","","",null,null,null,null,"","",""]
["",null,null,null,null,null,"","","","","",{"$error":"#NAME?"},"",null,null,null,"",null,null,null,null,"","","",null,null,null,null,null,null,null,null,null,null,null,null,null,null,null,null,null,null,null,null,null,null,"","","","",null,null,null,null,"","",""]
["",null,null,null,null,null,"","","","","",{"$error":"#NAME?"},"",null,null,null,"",null,null,null,null,"","","",null,null,null,null,null,null,null,null,null,null,null,null,null,null,null,null,null,null,null,null,null,null,"","","","",null,null,null,null,"","",""]
["",null,null,null,null,null,"","","","","",{"$error":"#NAME?"},"",null,null,null,"",null,null,null,null,"","","",null,null,null,null,null,null,null,null,null,null,null,null,null,null,null,null,null,null,null,null,null,null,"","","","",null,null,null,null,"","",""]
["",null,null,null,null,null,"","","","","",{"$error":"#NAME?"},"",null,null,null,"",null,null,null,null,"","","",null,null,null,null,null,null,null,null,null,null,null,null,null,null,null,null,null,null,null,null,null,null,"","","","",null,null,null,null,"","",""]
["",null,null,null,null,null,"","","","","",{"$error":"#NAME?"},"",null,null,null,"",null,null,null,null,"","","",null,null,null,null,null,null,null,null,null,null,null,null,null,null,null,null,null,null,null,null,null,null,"","","","",null,null,null,null,"","",""]
["",null,null,null,null,null,"","","","","",{"$error":"#NAME?"},"",null,null,null,"",null,null,null,null,"","","",null,null,null,null,null,null,null,null,null,null,null,null,null,null,null,null,null,null,null,null,null,null,"","","","",null,null,null,null,"","",""]
["",null,null,null,null,null,"","","","","",{"$error":"#NAME?"},"",null,null,null,"",null,null,null,null,"","","",null,null,null,null,null,null,null,null,null,null,null,null,null,null,null,null,null,null,null,null,null,null,"","","","",null,null,null,null,"","",""]
["",null,null,null,null,null,"","","","","",{"$error":"#NAME?"},"",null,null,null,"",null,null,null,null,"","","",null,null,null,null,null,null,null,null,null,null,null,null,null,null,null,null,null,null,null,null,null,null,"","","","",null,null,null,null,"","",""]
["",null,null,null,null,null,"","","","","",{"$error":"#NAME?"},"",null,null,null,"",null,null,null,null,"","","",null,null,null,null,null,null,null,null,null,null,null,null,null,null,null,null,null,null,null,null,null,null,"","","","",null,null,null,null,"","",""]
["",null,null,null,null,null,"","","","","",{"$error":"#NAME?"},"",null,null,null,"",null,null,null,null,"","","",null,null,null,null,null,null,null,null,null,null,null,null,null,null,null,null,null,null,null,null,null,null,"","","","",null,null,null,null,"","",""]
["",null,null,null,null,null,"","","","","",{"$error":"#NAME?"},"",null,null,null,"",null,null,null,null,"","","",null,null,null,null,null,null,null,null,null,null,null,null,null,null,null,null,null,null,null,null,null,null,"","","","",null,null,null,null,"","",""]
["",null,null,null,null,null,"","","","","",{"$error":"#NAME?"},"",null,null,null,"",null,null,null,null,"","","",null,null,null,null,null,null,null,null,null,null,null,null,null,null,null,null,null,null,null,null,null,null,"","","","",null,null,null,null,"","",""]
["",null,null,null,null,null,"","","","","",{"$error":"#NAME?"},"",null,null,null,"",null,null,null,null,"","","",null,null,null,null,null,null,null,null,null,null,null,null,null,null,null,null,null,null,null,null,null,null,"","","","",null,null,null,null,"","",""]
["",null,null,null,null,null,"","","","","",{"$error":"#NAME?"},"",null,null,null,"",null,null,null,null,"","","",null,null,null,null,null,null,null,null,null,null,null,null,null,null,null,null,null,null,null,null,null,null,"","","","",null,null,null,null,"","",""]
["",null,null,null,null,null,"","","","","",{"$error":"#NAME?"},"",null,null,null,"",null,null,null,null,"","","",null,null,null,null,null,null,null,null,null,null,null,null,null,null,null,null,null,null,null,null,null,null,"","","","",null,null,null,null,"","",""]
["",null,null,null,null,null,"","","","","",{"$error":"#NAME?"},"",null,null,null,"",null,null,null,null,"","","",null,null,null,null,null,null,null,null,null,null,null,null,null,null,null,null,null,null,null,null,null,null,"","","","",null,null,null,null,"","",""]
["",null,null,null,null,null,"","","","","",{"$error":"#NAME?"},"",null,null,null,"",null,null,null,null,"","","",null,null,null,null,null,null,null,null,null,null,null,null,null,null,null,null,null,null,null,null,null,null,"","","","",null,null,null,null,"","",""]
["",null,null,null,null,null,"","","","","",{"$error":"#NAME?"},"",null,null,null,"",null,null,null,null,"","","",null,null,null,null,null,null,null,null,null,null,null,null,null,null,null,null,null,null,null,null,null,null,"","","","",null,null,null,null,"","",""]
["",null,null,null,null,null,"","","","","",{"$error":"#NAME?"},"",null,null,null,"",null,null,null,null,"","","",null,null,null,null,null,null,null,null,null,null,null,null,null,null,null,null,null,null,null,null,null,null,"","","","",null,null,null,null,"","",""]
["",null,null,null,null,null,"","","","","",{"$error":"#NAME?"},"",null,null,null,"",null,null,null,null,"","","",null,null,null,null,null,null,null,null,null,null,null,null,null,null,null,null,null,null,null,null,null,null,"","","","",null,null,null,null,"","",""]
["",null,null,null,null,null,"","","","","",{"$error":"#NAME?"},"",null,null,null,"",null,null,null,null,"","","",null,null,null,null,null,null,null,null,null,null,null,null,null,null,null,null,null,null,null,null,null,null,"","","","",null,null,null,null,"","",""]
["",null,null,null,null,null,"","","","","",{"$error":"#NAME?"},"",null,null,null,"",null,null,null,null,"","","",null,null,null,null,null,null,null,null,null,null,null,null,null,null,null,null,null,null,null,null,null,null,"","","","",null,null,null,null,"","",""]
["",null,null,null,null,null,"","","","","",{"$error":"#NAME?"},"",null,null,null,"",null,null,null,null,"","","",null,null,null,null,null,null,null,null,null,null,null,null,null,null,null,null,null,null,null,null,null,null,"","","","",null,null,null,null,"","",""]
["",null,null,null,null,null,"","","","","",{"$error":"#NAME?"},"",null,null,null,"",null,null,null,null,"","","",null,null,null,null,null,null,null,null,null,null,null,null,null,null,null,null,null,null,null,null,null,null,"","","","",null,null,null,null,"","",""]
["",null,null,null,null,null,"","","","","",{"$error":"#NAME?"},"",null,null,null,"",null,null,null,null,"","","",null,null,null,null,null,null,null,null,null,null,null,null,null,null,null,null,null,null,null,null,null,null,"","","","",null,null,null,null,"","",""]
["",null,null,null,null,null,"","","","","",{"$error":"#NAME?"},"",null,null,null,"",null,null,null,null,"","","",null,null,null,null,null,null,null,null,null,null,null,null,null,null,null,null,null,null,null,null,null,null,"","","","",null,null,null,null,"","",""]
["",null,null,null,null,null,"","","","","",{"$error":"#NAME?"},"",null,null,null,"",null,null,null,null,"","","",null,null,null,null,null,null,null,null,null,null,null,null,null,null,null,null,null,null,null,null,null,null,"","","","",null,null,null,null,"","",""]
["",null,null,null,null,null,"","","","","",{"$error":"#NAME?"},"",null,null,null,"",null,null,null,null,"","","",null,null,null,null,null,null,null,null,null,null,null,null,null,null,null,null,null,null,null,null,null,null,"","","","",null,null,null,null,"","",""]
["",null,null,null,null,null,"","","","","",{"$error":"#NAME?"},"",null,null,null,"",null,null,null,null,"","","",null,null,null,null,null,null,null,null,null,null,null,null,null,null,null,null,null,null,null,null,null,null,"","","","",null,null,null,null,"","",""]
["",null,null,null,null,null,"","","","","",{"$error":"#NAME?"},"",null,null,null,"",null,null,null,null,"","","",null,null,null,null,null,null,null,null,null,null,null,null,null,null,null,null,null,null,null,null,null,null,"","","","",null,null,null,null,"","",""]
["",null,null,null,null,null,"","","","","",{"$error":"#NAME?"},"",null,null,null,"",null,null,null,null,"","","",null,null,null,null,null,null,null,null,null,null,null,null,null,null,null,null,null,null,null,null,null,null,"","","","",null,null,null,null,"","",""]
["",null,null,null,null,null,"","","","","",{"$error":"#NAME?"},"",null,null,null,"",null,null,null,null,"","","",null,null,null,null,null,null,null,null,null,null,null,null,null,null,null,null,null,null,null,null,null,null,"","","","",null,null,null,null,"","",""]
["",null,null,null,null,null,"","","","","",{"$error":"#NAME?"},"",null,null,null,"",null,null,null,null,"","","",null,null,null,null,null,null,null,null,null,null,null,null,null,null,null,null,null,null,null,null,null,null,"","","","",null,null,null,null,"","",""]
["",null,null,null,null,null,"","","","","",{"$error":"#NAME?"},"",null,null,null,"",null,null,null,null,"","","",null,null,null,null,null,null,null,null,null,null,null,null,null,null,null,null,null,null,null,null,null,null,"","","","",null,null,null,null,"","",""]
["",null,null,null,null,null,"","","","","",{"$error":"#NAME?"},"",null,null,null,"",null,null,null,null,"","","",null,null,null,null,null,null,null,null,null,null,null,null,null,null,null,null,null,null,null,null,null,null,"","","","",null,null,null,null,"","",""]
["",null,null,null,null,null,"","","","","",{"$error":"#NAME?"},"",null,null,null,"",null,null,null,null,"","","",null,null,null,null,null,null,null,null,null,null,null,null,null,null,null,null,null,null,null,null,null,null,"","","","",null,null,null,null,"","",""]
["",null,null,null,null,null,"","","","","",{"$error":"#NAME?"},"",null,null,null,"",null,null,null,null,"","","",null,null,null,null,null,null,null,null,null,null,null,null,null,null,null,null,null,null,null,null,null,null,"","","","",null,null,null,null,"","",""]
["",null,null,null,null,null,"","","","","",{"$error":"#NAME?"},"",null,null,null,"",null,null,null,null,"","","",null,null,null,null,null,null,null,null,null,null,null,null,null,null,null,null,null,null,null,null,null,null,"","","","",null,null,null,null,"","",""]
["",null,null,null,null,null,"","","","","",{"$error":"#NAME?"},"",null,null,null,"",null,null,null,null,"","","",null,null,null,null,null,null,null,null,null,null,null,null,null,null,null,null,null,null,null,null,null,null,"","","","",null,null,null,null,"","",""]
["",null,null,null,null,null,"","","","","",{"$error":"#NAME?"},"",null,null,null,"",null,null,null,null,"","","",null,null,null,null,null,null,null,null,null,null,null,null,null,null,null,null,null,null,null,null,null,null,"","","","",null,null,null,null,"","",""]
["",null,null,null,null,null,"","","","","",{"$error":"#NAME?"},"",null,null,null,"",null,null,null,null,"","","",null,null,null,null,null,null,null,null,null,null,null,null,null,null,null,null,null,null,null,null,null,null,"","","","",null,null,null,null,"","",""]
["",null,null,null,null,null,"","","","","",{"$error":"#NAME?"},"",null,null,null,"",null,null,null,null,"","","",null,null,null,null,null,null,null,null,null,null,null,null,null,null,null,null,null,null,null,null,null,null,"","","","",null,null,null,null,"","",""]
["",null,null,null,null,null,"","","",{"$f":"IF(E711=\"\",\"\",DATE(I711,H711,G711))","v":""},"",{"$f":"Kh_Date_Sex_Province($E711,3)","v":{"$error":"#NAME?"}},{"$f":"IF(E711=\"\",\"\",IF(ISODD(MID(E711,13,1)),\"ذكر\",\"أنثى\"))","v":""},null,null,null,"",null,null,null,null,"","","",null,null,null,null,null,null,null,null,null,null,null,null,null,null,null,null,null,null,null,null,null,null,"","","","",null,null,null,null,"","",""]
[{"$f":"IF(F712=\"\",\"\",A711+1)","v":""},null,null,null,null,null,{"$f":"RIGHT(LEFT(E712,7),2)","v":""},{"$f":"RIGHT(LEFT(E712,5),2)","v":""},{"$f":"IF(E712=\"\",\"\",IF(ISODD(MID(E712,1,1)),MID(E712,2,2)+2000,MID(E712,2,2)+1900))","v":""},"",{"$f":"IF(J712=\"\",\"\",$K$4+J712-1)","v":""},{"$error":"#NAME?"},"",null,null,null,{"$f":"IF(F712=\"\",\"\",\"الغربية\")","v":""},null,null,null,null,{"$f":"IF(U712=\"\",\"\",DATEDIF(U712,$V$3,\"md\"))","v":""},{"$f":"IF(U712=\"\",\"\",DATEDIF(U712,$V$3,\"ym\"))","v":""},{"$f":"IF(U712=\"\",\"\",DATEDIF(U712,$V$3,\"y\"))","v":""},null,null,null,null,null,null,null,null,null,null,null,null,null,null,null,null,null,null,null,null,null,null,{"$f":"IF(U712=\"\",\"\",DATEDIF(U712,$AU$3,\"md\"))","v":""},{"$f":"IF(U712=\"\",\"\",DATEDIF(U712,$AU$3,\"ym\"))","v":""},{"$f":"IF(U712=\"\",\"\",DATEDIF(U712,$AU$3,\"y\"))","v":""},"",null,null,null,null,{"$f":"IF(A712=\"\",\"\",A712)","v":""},{"$f":"IF(D712=\"\",\"\",D712)","v":""},{"$f":"IF(F712=\"\",\"\",F712)","v":""}]
["",null,null,null,null,null,"","","","","",{"$error":"#NAME?"},"",null,null,null,"",null,null,null,null,"","","",null,null,null,null,null,null,null,null,null,null,null,null,null,null,null,null,null,null,null,null,null,null,"","","",{"$f":"IF(J713=\"\",\"\",$AX$3+J713-1)","v":""},null,null,null,null,"","",""]
["",null,null,null,null,null,"","","","","",{"$error":"#NAME?"},"",null,null,null,"",null,null,null,null,"","","",null,null,null,null,null,null,null,null,null,null,null,null,null,null,null,null,null,null,null,null,null,null,"","","","",null,null,null,null,"","",""]
["",null,null,null,null,null,"","","","","",{"$error":"#NAME?"},"",null,null,null,"",null,null,null,null,"","","",null,null,null,null,null,null,null,null,null,null,null,null,null,null,null,null,null,null,null,null,null,null,"","","","",null,null,null,null,"","",""]
["",null,null,null,null,null,"","","","","",{"$error":"#NAME?"},"",null,null,null,"",null,null,null,null,"","","",null,null,null,null,null,null,null,null,null,null,null,null,null,null,null,null,null,null,null,null,null,null,"","","","",null,null,null,null,"","",""]
["",null,null,null,null,null,"","","","","",{"$error":"#NAME?"},"",null,null,null,"",null,null,null,null,"","","",null,null,null,null,null,null,null,null,null,null,null,null,null,null,null,null,null,null,null,null,null,null,"","","","",null,null,null,null,"","",""]
["",null,null,null,null,null,"","","","","",{"$error":"#NAME?"},"",null,null,null,"",null,null,null,null,"","","",null,null,null,null,null,null,null,null,null,null,null,null,null,null,null,null,null,null,null,null,null,null,"","","","",null,null,null,null,"","",""]
["",null,null,null,null,null,"","","","","",{"$error":"#NAME?"},"",null,null,null,"",null,null,null,null,"","","",null,null,null,null,null,null,null,null,null,null,null,null,null,null,null,null,null,null,null,null,null,null,"","","","",null,null,null,null,"","",""]
["",null,null,null,null,null,"","","","","",{"$error":"#NAME?"},"",null,null,null,"",null,null,null,null,"","","",null,null,null,null,null,null,null,null,null,null,null,null,null,null,null,null,null,null,null,null,null,null,"","","","",null,null,null,null,"","",""]
["",null,null,null,null,null,"","","","","",{"$error":"#NAME?"},"",null,null,null,"",null,null,null,null,"","","",null,null,null,null,null,null,null,null,null,null,null,null,null,null,null,null,null,null,null,null,null,null,"","","","",null,null,null,null,"","",""]
["",null,null,null,null,null,"","","","","",{"$error":"#NAME?"},"",null,null,null,"",null,null,null,null,"","","",null,null,null,null,null,null,null,null,null,null,null,null,null,null,null,null,null,null,null,null,null,null,"","","","",null,null,null,null,"","",""]
["",null,null,null,null,null,"","","","","",{"$error":"#NAME?"},"",null,null,null,"",null,null,null,null,"","","",null,null,null,null,null,null,null,null,null,null,null,null,null,null,null,null,null,null,null,null,null,null,"","","","",null,null,null,null,"","",""]
["",null,null,null,null,null,"","","","","",{"$error":"#NAME?"},"",null,null,null,"",null,null,null,null,"","","",null,null,null,null,null,null,null,null,null,null,null,null,null,null,null,null,null,null,null,null,null,null,"","","","",null,null,null,null,"","",""]
["",null,null,null,null,null,"","","","","",{"$error":"#NAME?"},"",null,null,null,"",null,null,null,null,"","","",null,null,null,null,null,null,null,null,null,null,null,null,null,null,null,null,null,null,null,null,null,null,"","","","",null,null,null,null,"","",""]
["",null,null,null,null,null,"","","","","",{"$error":"#NAME?"},"",null,null,null,"",null,null,null,null,"","","",null,null,null,null,null,null,null,null,null,null,null,null,null,null,null,null,null,null,null,null,null,null,"","","","",null,null,null,null,"","",""]
["",null,null,null,null,null,"","","","","",{"$error":"#NAME?"},"",null,null,null,"",null,null,null,null,"","","",null,null,null,null,null,null,null,null,null,null,null,null,null,null,null,null,null,null,null,null,null,null,"","","","",null,null,null,null,"","",""]
["",null,null,null,null,null,"","","","","",{"$error":"#NAME?"},"",null,null,null,"",null,null,null,null,"","","",null,null,null,null,null,null,null,null,null,null,null,null,null,null,null,null,null,null,null,null,null,null,"","","","",null,null,null,null,"","",""]
["",null,null,null,null,null,"","","","","",{"$error":"#NAME?"},"",null,null,null,"",null,null,null,null,"","","",null,null,null,null,null,null,null,null,null,null,null,null,null,null,null,null,null,null,null,null,null,null,"","","","",null,null,null,null,"","",""]
["",null,null,null,null,null,"","","","","",{"$error":"#NAME?"},"",null,null,null,"",null,null,null,null,"","","",null,null,null,null,null,null,null,null,null,null,null,null,null,null,null,null,null,null,null,null,null,null,"","","","",null,null,null,null,"","",""]
["",null,null,null,null,null,"","","","","",{"$error":"#NAME?"},"",null,null,null,"",null,null,null,null,"","","",null,null,null,null,null,null,null,null,null,null,null,null,null,null,null,null,null,null,null,null,null,null,"","","","",null,null,null,null,"","",""]
["",null,null,null,null,null,"","","","","",{"$error":"#NAME?"},"",null,null,null,"",null,null,null,null,"","","",null,null,null,null,null,null,null,null,null,null,null,null,null,null,null,null,null,null,null,null,null,null,"","","","",null,null,null,null,"","",""]
["",null,null,null,null,null,"","","","","",{"$error":"#NAME?"},"",null,null,null,"",null,null,null,null,"","","",null,null,null,null,null,null,null,null,null,null,null,null,null,null,null,null,null,null,null,null,null,null,"","","","",null,null,null,null,"","",""]
["",null,null,null,null,null,"","","","","",{"$error":"#NAME?"},"",null,null,null,"",null,null,null,null,"","","",null,null,null,null,null,null,null,null,null,null,null,null,null,null,null,null,null,null,null,null,null,null,"","","","",null,null,null,null,"","",""]
["",null,null,null,null,null,"","","","","",{"$error":"#NAME?"},"",null,null,null,"",null,null,null,null,"","","",null,null,null,null,null,null,null,null,null,null,null,null,null,null,null,null,null,null,null,null,null,null,"","","","",null,null,null,null,"","",""]
["",null,null,null,null,null,"","","","","",{"$error":"#NAME?"},"",null,null,null,"",null,null,null,null,"","","",null,null,null,null,null,null,null,null,null,null,null,null,null,null,null,null,null,null,null,null,null,null,"","","","",null,null,null,null,"","",""]
["",null,null,null,null,null,"","","","","",{"$error":"#NAME?"},"",null,null,null,"",null,null,null,null,"","","",null,null,null,null,null,null,null,null,null,null,null,null,null,null,null,null,null,null,null,null,null,null,"","","","",null,null,null,null,"","",""]
["",null,null,null,null,null,"","","","","",{"$error":"#NAME?"},"",null,null,null,"",null,null,null,null,"","","",null,null,null,null,null,null,null,null,null,null,null,null,null,null,null,null,null,null,null,null,null,null,"","","","",null,null,null,null,"","",""]
["",null,null,null,null,null,"","","","","",{"$error":"#NAME?"},"",null,null,null,"",null,null,null,null,"","","",null,null,null,null,null,null,null,null,null,null,null,null,null,null,null,null,null,null,null,null,null,null,"","","","",null,null,null,null,"","",""]
["",null,null,null,null,null,"","","","","",{"$error":"#NAME?"},"",null,null,null,"",null,null,null,null,"","","",null,null,null,null,null,null,null,null,null,null,null,null,null,null,null,null,null,null,null,null,null,null,"","","","",null,null,null,null,"","",""]
["",null,null,null,null,null,"","","","","",{"$error":"#NAME?"},"",null,null,null,"",null,null,null,null,"","","",null,null,null,null,null,null,null,null,null,null,null,null,null,null,null,null,null,null,null,null,null,null,"","","","",null,null,null,null,"","",""]
["",null,null,null,null,null,"","","","","",{"$error":"#NAME?"},"",null,null,null,"",null,null,null,null,"","","",null,null,null,null,null,null,null,null,null,null,null,null,null,null,null,null,null,null,null,null,null,null,"","","","",null,null,null,null,"","",""]
["",null,null,null,null,null,"","","","","",{"$error":"#NAME?"},"",null,null,null,"",null,null,null,null,"","","",null,null,null,null,null,null,null,null,null,null,null,null,null,null,null,null,null,null,null,null,null,null,"","","","",null,null,null,null,"","",""]
["",null,null,null,null,null,"","","","","",{"$error":"#NAME?"},"",null,null,null,"",null,null,null,null,"","","",null,null,null,null,null,null,null,null,null,null,null,null,null,null,null,null,null,null,null,null,null,null,"","","","",null,null,null,null,"","",""]
["",null,null,null,null,null,"","","","","",{"$error":"#NAME?"},"",null,null,null,"",null,null,null,null,"","","",null,null,null,null,null,null,null,null,null,null,null,null,null,null,null,null,null,null,null,null,null,null,"","","","",null,null,null,null,"","",""]
["",null,null,null,null,null,"","","","","",{"$error":"#NAME?"},"",null,null,null,"",null,null,null,null,"","","",null,null,null,null,null,null,null,null,null,null,null,null,null,null,null,null,null,null,null,null,null,null,"","","","",null,null,null,null,"","",""]
["",null,null,null,null,null,"","","","","",{"$error":"#NAME?"},"",null,null,null,"",null,null,null,null,"","","",null,null,null,null,null,null,null,null,null,null,null,null,null,null,null,null,null,null,null,null,null,null,"","","","",null,null,null,null,"","",""]
["",null,null,null,null,null,"","","","","",{"$error":"#NAME?"},"",null,null,null,"",null,null,null,null,"","","",null,null,null,null,null,null,null,null,null,null,null,null,null,null,null,null,null,null,null,null,null,null,"","","","",null,null,null,null,"","",""]
["",null,null,null,null,null,"","","","","",{"$error":"#NAME?"},"",null,null,null,"",null,null,null,null,"","","",null,null,null,null,null,null,null,null,null,null,null,null,null,null,null,null,null,null,null,null,null,null,"","","","",null,null,null,null,"","",""]
["",null,null,null,null,null,"","","","","",{"$error":"#NAME?"},"",null,null,null,"",null,null,null,null,"","","",null,null,null,null,null,null,null,null,null,null,null,null,null,null,null,null,null,null,null,null,null,null,"","","","",null,null,null,null,"","",""]
["",null,null,null,null,null,"","","","","",{"$error":"#NAME?"},"",null,null,null,"",null,null,null,null,"","","",null,null,null,null,null,null,null,null,null,null,null,null,null,null,null,null,null,null,null,null,null,null,"","","","",null,null,null,null,"","",""]
["",null,null,null,null,null,"","","","","",{"$error":"#NAME?"},"",null,null,null,"",null,null,null,null,"","","",null,null,null,null,null,null,null,null,null,null,null,null,null,null,null,null,null,null,null,null,null,null,"","","","",null,null,null,null,"","",""]
["",null,null,null,null,null,"","","","","",{"$error":"#NAME?"},"",null,null,null,"",null,null,null,null,"","","",null,null,null,null,null,null,null,null,null,null,null,null,null,null,null,null,null,null,null,null,null,null,"","","","",null,null,null,null,"","",""]
["",null,null,null,null,null,"","","","","",{"$error":"#NAME?"},"",null,null,null,"",null,null,null,null,"","","",null,null,null,null,null,null,null,null,null,null,null,null,null,null,null,null,null,null,null,null,null,null,"","","","",null,null,null,null,"","",""]
["",null,null,null,null,null,"","","","","",{"$error":"#NAME?"},"",null,null,null,"",null,null,null,null,"","","",null,null,null,null,null,null,null,null,null,null,null,null,null,null,null,null,null,null,null,null,null,null,"","","","",null,null,null,null,"","",""]
["",null,null,null,null,null,"","","","","",{"$error":"#NAME?"},"",null,null,null,"",null,null,null,null,"","","",null,null,null,null,null,null,null,null,null,null,null,null,null,null,null,null,null,null,null,null,null,null,"","","","",null,null,null,null,"","",""]
["",null,null,null,null,null,"","","","","",{"$error":"#NAME?"},"",null,null,null,"",null,null,null,null,"","","",null,null,null,null,null,null,null,null,null,null,null,null,null,null,null,null,null,null,null,null,null,null,"","","","",null,null,null,null,"","",""]
["",null,null,null,null,null,"","","","","",{"$error":"#NAME?"},"",null,null,null,"",null,null,null,null,"","","",null,null,null,null,null,null,null,null,null,null,null,null,null,null,null,null,null,null,null,null,null,null,"","","","",null,null,null,null,"","",""]
["",null,null,null,null,null,"","","","","",{"$error":"#NAME?"},"",null,null,null,"",null,null,null,null,"","","",null,null,null,null,null,null,null,null,null,null,null,null,null,null,null,null,null,null,null,null,null,null,"","","","",null,null,null,null,"","",""]
["",null,null,null,null,null,"","","","","",{"$error":"#NAME?"},"",null,null,null,"",null,null,null,null,"","","",null,null,null,null,null,null,null,null,null,null,null,null,null,null,null,null,null,null,null,null,null,null,"","","","",null,null,null,null,"","",""]
["",null,null,null,null,null,"","","","","",{"$error":"#NAME?"},"",null,null,null,"",null,null,null,null,"","","",null,null,null,null,null,null,null,null,null,null,null,null,null,null,null,null,null,null,null,null,null,null,"","","","",null,null,null,null,"","",""]
["",null,null,null,null,null,"","","","","",{"$error":"#NAME?"},"",null,null,null,"",null,null,null,null,"","","",null,null,null,null,null,null,null,null,null,null,null,null,null,null,null,null,null,null,null,null,null,null,"","","","",null,null,null,null,"","",""]
["",null,null,null,null,null,"","","","","",{"$error":"#NAME?"},"",null,null,null,"",null,null,null,null,"","","",null,null,null,null,null,null,null,null,null,null,null,null,null,null,null,null,null,null,null,null,null,null,"","","","",null,null,null,null,"","",""]
["",null,null,null,null,null,"","","","","",{"$error":"#NAME?"},"",null,null,null,"",null,null,null,null,"","","",null,null,null,null,null,null,null,null,null,null,null,null,null,null,null,null,null,null,null,null,null,null,"","","","",null,null,null,null,"","",""]
["",null,null,null,null,null,"","","","","",{"$error":"#NAME?"},"",null,null,null,"",null,null,null,null,"","","",null,null,null,null,null,null,null,null,null,null,null,null,null,null,null,null,null,null,null,null,null,null,"","","","",null,null,null,null,"","",""]
["",null,null,null,null,null,"","","","","",{"$error":"#NAME?"},"",null,null,null,"",null,null,null,null,"","","",null,null,null,null,null,null,null,null,null,null,null,null,null,null,null,null,null,null,null,null,null,null,"","","","",null,null,null,null,"","",""]
["",null,null,null,null,null,"","","","","",{"$error":"#NAME?"},"",null,null,null,"",null,null,null,null,"","","",null,null,null,null,null,null,null,null,null,null,null,null,null,null,null,null,null,null,null,null,null,null,"","","","",null,null,null,null,"","",""]
["",null,null,null,null,null,"","","","","",{"$error":"#NAME?"},"",null,null,null,"",null,null,null,null,"","","",null,null,null,null,null,null,null,null,null,null,null,null,null,null,null,null,null,null,null,null,null,null,"","","","",null,null,null,null,"","",""]
["",null,null,null,null,null,"","","","","",{"$error":"#NAME?"},"",null,null,null,"",null,null,null,null,"","","",null,null,null,null,null,null,null,null,null,null,null,null,null,null,null,null,null,null,null,null,null,null,"","","","",null,null,null,null,"","",""]
["",null,null,null,null,null,"","","","","",{"$error":"#NAME?"},"",null,null,null,"",null,null,null,null,"","","",null,null,null,null,null,null,null,null,null,null,null,null,null,null,null,null,null,null,null,null,null,null,"","","","",null,null,null,null,"","",""]
["",null,null,null,null,null,"","","","","",{"$error":"#NAME?"},"",null,null,null,"",null,null,null,null,"","","",null,null,null,null,null,null,null,null,null,null,null,null,null,null,null,null,null,null,null,null,null,null,"","","","",null,null,null,null,"","",""]
["",null,null,null,null,null,"","","","","",{"$error":"#NAME?"},"",null,null,null,"",null,null,null,null,"","","",null,null,null,null,null,null,null,null,null,null,null,null,null,null,null,null,null,null,null,null,null,null,"","","","",null,null,null,null,"","",""]
["",null,null,null,null,null,"","","","","",{"$error":"#NAME?"},"",null,null,null,"",null,null,null,null,"","","",null,null,null,null,null,null,null,null,null,null,null,null,null,null,null,null,null,null,null,null,null,null,"","","","",null,null,null,null,"","",""]
["",null,null,null,null,null,"","","","","",{"$error":"#NAME?"},"",null,null,null,"",null,null,null,null,"","","",null,null,null,null,null,null,null,null,null,null,null,null,null,null,null,null,null,null,null,null,null,null,"","","","",null,null,null,null,"","",""]
["",null,null,null,null,null,"","","",{"$f":"IF(E775=\"\",\"\",DATE(I775,H775,G775))","v":""},"",{"$f":"Kh_Date_Sex_Province($E775,3)","v":{"$error":"#NAME?"}},{"$f":"IF(E775=\"\",\"\",IF(ISODD(MID(E775,13,1)),\"ذكر\",\"أنثى\"))","v":""},null,null,null,"",null,null,null,null,"","","",null,null,null,null,null,null,null,null,null,null,null,null,null,null,null,null,null,null,null,null,null,null,"","","","",null,null,null,null,"","",""]
[{"$f":"IF(F776=\"\",\"\",A775+1)","v":""},null,null,null,null,null,{"$f":"RIGHT(LEFT(E776,7),2)","v":""},{"$f":"RIGHT(LEFT(E776,5),2)","v":""},{"$f":"IF(E776=\"\",\"\",IF(ISODD(MID(E776,1,1)),MID(E776,2,2)+2000,MID(E776,2,2)+1900))","v":""},"",{"$f":"IF(J776=\"\",\"\",$K$4+J776-1)","v":""},{"$error":"#NAME?"},"",null,null,null,{"$f":"IF(F776=\"\",\"\",\"الغربية\")","v":""},null,null,null,null,{"$f":"IF(U776=\"\",\"\",DATEDIF(U776,$V$3,\"md\"))","v":""},{"$f":"IF(U776=\"\",\"\",DATEDIF(U776,$V$3,\"ym\"))","v":""},{"$f":"IF(U776=\"\",\"\",DATEDIF(U776,$V$3,\"y\"))","v":""},null,null,null,null,null,null,null,null,null,null,null,null,null,null,null,null,null,null,null,null,null,null,{"$f":"IF(U776=\"\",\"\",DATEDIF(U776,$AU$3,\"md\"))","v":""},{"$f":"IF(U776=\"\",\"\",DATEDIF(U776,$AU$3,\"ym\"))","v":""},{"$f":"IF(U776=\"\",\"\",DATEDIF(U776,$AU$3,\"y\"))","v":""},"",null,null,null,null,{"$f":"IF(A776=\"\",\"\",A776)","v":""},{"$f":"IF(D776=\"\",\"\",D776)","v":""},{"$f":"IF(F776=\"\",\"\",F776)","v":""}]
["",null,null,null,null,null,"","","","","",{"$error":"#NAME?"},"",null,null,null,"",null,null,null,null,"","","",null,null,null,null,null,null,null,null,null,null,null,null,null,null,null,null,null,null,null,null,null,null,"","","",{"$f":"IF(J777=\"\",\"\",$AX$3+J777-1)","v":""},null,null,null,null,"","",""]
["",null,null,null,null,null,"","","","","",{"$error":"#NAME?"},"",null,null,null,"",null,null,null,null,"","","",null,null,null,null,null,null,null,null,null,null,null,null,null,null,null,null,null,null,null,null,null,null,"","","","",null,null,null,null,"","",""]
["",null,null,null,null,null,"","","","","",{"$error":"#NAME?"},"",null,null,null,"",null,null,null,null,"","","",null,null,null,null,null,null,null,null,null,null,null,null,null,null,null,null,null,null,null,null,null,null,"","","","",null,null,null,null,"","",""]
["",null,null,null,null,null,"","","","","",{"$error":"#NAME?"},"",null,null,null,"",null,null,null,null,"","","",null,null,null,null,null,null,null,null,null,null,null,null,null,null,null,null,null,null,null,null,null,null,"","","","",null,null,null,null,"","",""]
["",null,null,null,null,null,"","","","","",{"$error":"#NAME?"},"",null,null,null,"",null,null,null,null,"","","",null,null,null,null,null,null,null,null,null,null,null,null,null,null,null,null,null,null,null,null,null,null,"","","","",null,null,null,null,"","",""]
["",null,null,null,null,null,"","","","","",{"$error":"#NAME?"},"",null,null,null,"",null,null,null,null,"","","",null,null,null,null,null,null,null,null,null,null,null,null,null,null,null,null,null,null,null,null,null,null,"","","","",null,null,null,null,"","",""]
["",null,null,null,null,null,"","","","","",{"$error":"#NAME?"},"",null,null,null,"",null,null,null,null,"","","",null,null,null,null,null,null,null,null,null,null,null,null,null,null,null,null,null,null,null,null,null,null,"","","","",null,null,null,null,"","",""]
["",null,null,null,null,null,"","","","","",{"$error":"#NAME?"},"",null,null,null,"",null,null,null,null,"","","",null,null,null,null,null,null,null,null,null,null,null,null,null,null,null,null,null,null,null,null,null,null,"","","","",null,null,null,null,"","",""]
["",null,null,null,null,null,"","","","","",{"$error":"#NAME?"},"",null,null,null,"",null,null,null,null,"","","",null,null,null,null,null,null,null,null,null,null,null,null,null,null,null,null,null,null,null,null,null,null,"","","","",null,null,null,null,"","",""]
["",null,null,null,null,null,"","","","","",{"$error":"#NAME?"},"",null,null,null,"",null,null,null,null,"","","",null,null,null,null,null,null,null,null,null,null,null,null,null,null,null,null,null,null,null,null,null,null,"","","","",null,null,null,null,"","",""]
["",null,null,null,null,null,"","","","","",{"$error":"#NAME?"},"",null,null,null,"",null,null,null,null,"","","",null,null,null,null,null,null,null,null,null,null,null,null,null,null,null,null,null,null,null,null,null,null,"","","","",null,null,null,null,"","",""]
["",null,null,null,null,null,"","","","","",{"$error":"#NAME?"},"",null,null,null,"",null,null,null,null,"","","",null,null,null,null,null,null,null,null,null,null,null,null,null,null,null,null,null,null,null,null,null,null,"","","","",null,null,null,null,"","",""]
["",null,null,null,null,null,"","","","","",{"$error":"#NAME?"},"",null,null,null,"",null,null,null,null,"","","",null,null,null,null,null,null,null,null,null,null,null,null,null,null,null,null,null,null,null,null,null,null,"","","","",null,null,null,null,"","",""]
["",null,null,null,null,null,"","","","","",{"$error":"#NAME?"},"",null,null,null,"",null,null,null,null,"","","",null,null,null,null,null,null,null,null,null,null,null,null,null,null,null,null,null,null,null,null,null,null,"","","","",null,null,null,null,"","",""]
["",null,null,null,null,null,"","","","","",{"$error":"#NAME?"},"",null,null,null,"",null,null,null,null,"","","",null,null,null,null,null,null,null,null,null,null,null,null,null,null,null,null,null,null,null,null,null,null,"","","","",null,null,null,null,"","",""]
["",null,null,null,null,null,"","","","","",{"$error":"#NAME?"},"",null,null,null,"",null,null,null,null,"","","",null,null,null,null,null,null,null,null,null,null,null,null,null,null,null,null,null,null,null,null,null,null,"","","","",null,null,null,null,"","",""]
["",null,null,null,null,null,"","","","","",{"$error":"#NAME?"},"",null,null,null,"",null,null,null,null,"","","",null,null,null,null,null,null,null,null,null,null,null,null,null,null,null,null,null,null,null,null,null,null,"","","","",null,null,null,null,"","",""]
["",null,null,null,null,null,"","","","","",{"$error":"#NAME?"},"",null,null,null,"",null,null,null,null,"","","",null,null,null,null,null,null,null,null,null,null,null,null,null,null,null,null,null,null,null,null,null,null,"","","","",null,null,null,null,"","",""]
["",null,null,null,null,null,"","","","","",{"$error":"#NAME?"},"",null,null,null,"",null,null,null,null,"","","",null,null,null,null,null,null,null,null,null,null,null,null,null,null,null,null,null,null,null,null,null,null,"","","","",null,null,null,null,"","",""]
["",null,null,null,null,null,"","","","","",{"$error":"#NAME?"},"",null,null,null,"",null,null,null,null,"","","",null,null,null,null,null,null,null,null,null,null,null,null,null,null,null,null,null,null,null,null,null,null,"","","","",null,null,null,null,"","",""]
["",null,null,null,null,null,"","","","","",{"$error":"#NAME?"},"",null,null,null,"",null,null,null,null,"","","",null,null,null,null,null,null,null,null,null,null,null,null,null,null,null,null,null,null,null,null,null,null,"","","","",null,null,null,null,"","",""]
["",null,null,null,null,null,"","","","","",{"$error":"#NAME?"},"",null,null,null,"",null,null,null,null,"","","",null,null,null,null,null,null,null,null,null,null,null,null,null,null,null,null,null,null,null,null,null,null,"","","","",null,null,null,null,"","",""]
["",null,null,null,null,null,"","","","","",{"$error":"#NAME?"},"",null,null,null,"",null,null,null,null,"","","",null,null,null,null,null,null,null,null,null,null,null,null,null,null,null,null,null,null,null,null,null,null,"","","","",null,null,null,null,"","",""]
["",null,null,null,null,null,"","","","","",{"$error":"#NAME?"},"",null,null,null,"",null,null,null,null,"","","",null,null,null,null,null,null,null,null,null,null,null,null,null,null,null,null,null,null,null,null,null,null,"","","","",null,null,null,null,"","",""]
["",null,null,null,null,null,"","","","","",{"$error":"#NAME?"},"",null,null,null,"",null,null,null,null,"","","",null,null,null,null,null,null,null,null,null,null,null,null,null,null,null,null,null,null,null,null,null,null,"","","","",null,null,null,null,"","",""]
["",null,null,null,null,null,"","","","","",{"$error":"#NAME?"},"",null,null,null,"",null,null,null,null,"","","",null,null,null,null,null,null,null,null,null,null,null,null,null,null,null,null,null,null,null,null,null,null,"","","","",null,null,null,null,"","",""]
["",null,null,null,null,null,"","","","","",{"$error":"#NAME?"},"",null,null,null,"",null,null,null,null,"","","",null,null,null,null,null,null,null,null,null,null,null,null,null,null,null,null,null,null,null,null,null,null,"","","","",null,null,null,null,"","",""]
["",null,null,null,null,null,"","","","","",{"$error":"#NAME?"},"",null,null,null,"",null,null,null,null,"","","",null,null,null,null,null,null,null,null,null,null,null,null,null,null,null,null,null,null,null,null,null,null,"","","","",null,null,null,null,"","",""]
["",null,null,null,null,null,"","","","","",{"$error":"#NAME?"},"",null,null,null,"",null,null,null,null,"","","",null,null,null,null,null,null,null,null,null,null,null,null,null,null,null,null,null,null,null,null,null,null,"","","","",null,null,null,null,"","",""]
["",null,null,null,null,null,"","","","","",{"$error":"#NAME?"},"",null,null,null,"",null,null,null,null,"","","",null,null,null,null,null,null,null,null,null,null,null,null,null,null,null,null,null,null,null,null,null,null,"","","","",null,null,null,null,"","",""]
["",null,null,null,null,null,"","","","","",{"$error":"#NAME?"},"",null,null,null,"",null,null,null,null,"","","",null,null,null,null,null,null,null,null,null,null,null,null,null,null,null,null,null,null,null,null,null,null,"","","","",null,null,null,null,"","",""]
["",null,null,null,null,null,"","","","","",{"$error":"#NAME?"},"",null,null,null,"",null,null,null,null,"","","",null,null,null,null,null,null,null,null,null,null,null,null,null,null,null,null,null,null,null,null,null,null,"","","","",null,null,null,null,"","",""]
["",null,null,null,null,null,"","","","","",{"$error":"#NAME?"},"",null,null,null,"",null,null,null,null,"","","",null,null,null,null,null,null,null,null,null,null,null,null,null,null,null,null,null,null,null,null,null,null,"","","","",null,null,null,null,"","",""]
["",null,null,null,null,null,"","","","","",{"$error":"#NAME?"},"",null,null,null,"",null,null,null,null,"","","",null,null,null,null,null,null,null,null,null,null,null,null,null,null,null,null,null,null,null,null,null,null,"","","","",null,null,null,null,"","",""]
["",null,null,null,null,null,"","","","","",{"$error":"#NAME?"},"",null,null,null,"",null,null,null,null,"","","",null,null,null,null,null,null,null,null,null,null,null,null,null,null,null,null,null,null,null,null,null,null,"","","","",null,null,null,null,"","",""]
["",null,null,null,null,null,"","","","","",{"$error":"#NAME?"},"",null,null,null,"",null,null,null,null,"","","",null,null,null,null,null,null,null,null,null,null,null,null,null,null,null,null,null,null,null,null,null,null,"","","","",null,null,null,null,"","",""]
["",null,null,null,null,null,"","","","","",{"$error":"#NAME?"},"",null,null,null,"",null,null,null,null,"","","",null,null,null,null,null,null,null,null,null,null,null,null,null,null,null,null,null,null,null,null,null,null,"","","","",null,null,null,null,"","",""]
["",null,null,null,null,null,"","","","","",{"$error":"#NAME?"},"",null,null,null,"",null,null,null,null,"","","",null,null,null,null,null,null,null,null,null,null,null,null,null,null,null,null,null,null,null,null,null,null,"","","","",null,null,null,null,"","",""]
["",null,null,null,null,null,"","","","","",{"$error":"#NAME?"},"",null,null,null,"",null,null,null,null,"","","",null,null,null,null,null,null,null,null,null,null,null,null,null,null,null,null,null,null,null,null,null,null,"","","","",null,null,null,null,"","",""]
["",null,null,null,null,null,"","","","","",{"$error":"#NAME?"},"",null,null,null,"",null,null,null,null,"","","",null,null,null,null,null,null,null,null,null,null,null,null,null,null,null,null,null,null,null,null,null,null,"","","","",null,null,null,null,"","",""]
["",null,null,null,null,null,"","","","","",{"$error":"#NAME?"},"",null,null,null,"",null,null,null,null,"","","",null,null,null,null,null,null,null,null,null,null,null,null,null,null,null,null,null,null,null,null,null,null,"","","","",null,null,null,null,"","",""]
["",null,null,null,null,null,"","","","","",{"$error":"#NAME?"},"",null,null,null,"",null,null,null,null,"","","",null,null,null,null,null,null,null,null,null,null,null,null,null,null,null,null,null,null,null,null,null,null,"","","","",null,null,null,null,"","",""]
["",null,null,null,null,null,"","","","","",{"$error":"#NAME?"},"",null,null,null,"",null,null,null,null,"","","",null,null,null,null,null,null,null,null,null,null,null,null,null,null,null,null,null,null,null,null,null,null,"","","","",null,null,null,null,"","",""]
["",null,null,null,null,null,"","","","","",{"$error":"#NAME?"},"",null,null,null,"",null,null,null,null,"","","",null,null,null,null,null,null,null,null,null,null,null,null,null,null,null,null,null,null,null,null,null,null,"","","","",null,null,null,null,"","",""]
["",null,null,null,null,null,"","","","","",{"$error":"#NAME?"},"",null,null,null,"",null,null,null,null,"","","",null,null,null,null,null,null,null,null,null,null,null,null,null,null,null,null,null,null,null,null,null,null,"","","","",null,null,null,null,"","",""]
["",null,null,null,null,null,"","","","","",{"$error":"#NAME?"},"",null,null,null,"",null,null,null,null,"","","",null,null,null,null,null,null,null,null,null,null,null,null,null,null,null,null,null,null,null,null,null,null,"","","","",null,null,null,null,"","",""]
["",null,null,null,null,null,"","","","","",{"$error":"#NAME?"},"",null,null,null,"",null,null,null,null,"","","",null,null,null,null,null,null,null,null,null,null,null,null,null,null,null,null,null,null,null,null,null,null,"","","","",null,null,null,null,"","",""]
["",null,null,null,null,null,"","","","","",{"$error":"#NAME?"},"",null,null,null,"",null,null,null,null,"","","",null,null,null,null,null,null,null,null,null,null,null,null,null,null,null,null,null,null,null,null,null,null,"","","","",null,null,null,null,"","",""]
["",null,null,null,null,null,"","","","","",{"$error":"#NAME?"},"",null,null,null,"",null,null,null,null,"","","",null,null,null,null,null,null,null,null,null,null,null,null,null,null,null,null,null,null,null,null,null,null,"","","","",null,null,null,null,"","",""]
["",null,null,null,null,null,"","","","","",{"$error":"#NAME?"},"",null,null,null,"",null,null,null,null,"","","",null,null,null,null,null,null,null,null,null,null,null,null,null,null,null,null,null,null,null,null,null,null,"","","","",null,null,null,null,"","",""]
["",null,null,null,null,null,"","","","","",{"$error":"#NAME?"},"",null,null,null,"",null,null,null,null,"","","",null,null,null,null,null,null,null,null,null,null,null,null,null,null,null,null,null,null,null,null,null,null,"","","","",null,null,null,null,"","",""]
["",null,null,null,null,null,"","","","","",{"$error":"#NAME?"},"",null,null,null,"",null,null,null,null,"","","",null,null,null,null,null,null,null,null,null,null,null,null,null,null,null,null,null,null,null,null,null,null,"","","","",null,null,null,null,"","",""]
["",null,null,null,null,null,"","","","","",{"$error":"#NAME?"},"",null,null,null,"",null,null,null,null,"","","",null,null,null,null,null,null,null,null,null,null,null,null,null,null,null,null,null,null,null,null,null,null,"","","","",null,null,null,null,"","",""]
["",null,null,null,null,null,"","","","","",{"$error":"#NAME?"},"",null,null,null,"",null,null,null,null,"","","",null,null,null,null,null,null,null,null,null,null,null,null,null,null,null,null,null,null,null,null,null,null,"","","","",null,null,null,null,"","",""]
["",null,null,null,null,null,"","","","","",{"$error":"#NAME?"},"",null,null,null,"",null,null,null,null,"","","",null,null,null,null,null,null,null,null,null,null,null,null,null,null,null,null,null,null,null,null,null,null,"","","","",null,null,null,null,"","",""]
["",null,null,null,null,null,"","","","","",{"$error":"#NAME?"},"",null,null,null,"",null,null,null,null,"","","",null,null,null,null,null,null,null,null,null,null,null,null,null,null,null,null,null,null,null,null,null,null,"","","","",null,null,null,null,"","",""]
["",null,null,null,null,null,"","","","","",{"$error":"#NAME?"},"",null,null,null,"",null,null,null,null,"","","",null,null,null,null,null,null,null,null,null,null,null,null,null,null,null,null,null,null,null,null,null,null,"","","","",null,null,null,null,"","",""]
["",null,null,null,null,null,"","","","","",{"$error":"#NAME?"},"",null,null,null,"",null,null,null,null,"","","",null,null,null,null,null,null,null,null,null,null,null,null,null,null,null,null,null,null,null,null,null,null,"","","","",null,null,null,null,"","",""]
["",null,null,null,null,null,"","","","","",{"$error":"#NAME?"},"",null,null,null,"",null,null,null,null,"","","",null,null,null,null,null,null,null,null,null,null,null,null,null,null,null,null,null,null,null,null,null,null,"","","","",null,null,null,null,"","",""]
["",null,null,null,null,null,"","","","","",{"$error":"#NAME?"},"",null,null,null,"",null,null,null,null,"","","",null,null,null,null,null,null,null,null,null,null,null,null,null,null,null,null,null,null,null,null,null,null,"","","","",null,null,null,null,"","",""]
["",null,null,null,null,null,"","","","","",{"$error":"#NAME?"},"",null,null,null,"",null,null,null,null,"","","",null,null,null,null,null,null,null,null,null,null,null,null,null,null,null,null,null,null,null,null,null,null,"","","","",null,null,null,null,"","",""]
["",null,null,null,null,null,"","","","","",{"$error":"#NAME?"},"",null,null,null,"",null,null,null,null,"","","",null,null,null,null,null,null,null,null,null,null,null,null,null,null,null,null,null,null,null,null,null,null,"","","","",null,null,null,null,"","",""]
["",null,null,null,null,null,"","","",{"$f":"IF(E839=\"\",\"\",DATE(I839,H839,G839))","v":""},"",{"$f":"Kh_Date_Sex_Province($E839,3)","v":{"$error":"#NAME?"}},{"$f":"IF(E839=\"\",\"\",IF(ISODD(MID(E839,13,1)),\"ذكر\",\"أنثى\"))","v":""},null,null,null,"",null,null,null,null,"","","",null,null,null,null,null,null,null,null,null,null,null,null,null,null,null,null,null,null,null,null,null,null,"","","","",null,null,null,null,"","",""]
[{"$f":"IF(F840=\"\",\"\",A839+1)","v":""},null,null,null,null,null,{"$f":"RIGHT(LEFT(E840,7),2)","v":""},{"$f":"RIGHT(LEFT(E840,5),2)","v":""},{"$f":"IF(E840=\"\",\"\",IF(ISODD(MID(E840,1,1)),MID(E840,2,2)+2000,MID(E840,2,2)+1900))","v":""},"",{"$f":"IF(J840=\"\",\"\",$K$4+J840-1)","v":""},{"$error":"#NAME?"},"",null,null,null,{"$f":"IF(F840=\"\",\"\",\"الغربية\")","v":""},null,null,null,null,{"$f":"IF(U840=\"\",\"\",DATEDIF(U840,$V$3,\"md\"))","v":""},{"$f":"IF(U840=\"\",\"\",DATEDIF(U840,$V$3,\"ym\"))","v":""},{"$f":"IF(U840=\"\",\"\",DATEDIF(U840,$V$3,\"y\"))","v":""},null,null,null,null,null,null,null,null,null,null,null,null,null,null,null,null,null,null,null,null,null,null,{"$f":"IF(U840=\"\",\"\",DATEDIF(U840,$AU$3,\"md\"))","v":""},{"$f":"IF(U840=\"\",\"\",DATEDIF(U840,$AU$3,\"ym\"))","v":""},{"$f":"IF(U840=\"\",\"\",DATEDIF(U840,$AU$3,\"y\"))","v":""},"",null,null,null,null,{"$f":"IF(A840=\"\",\"\",A840)","v":""},{"$f":"IF(D840=\"\",\"\",D840)","v":""},{"$f":"IF(F840=\"\",\"\",F840)","v":""}]
["",null,null,null,null,null,"","","","","",{"$error":"#NAME?"},"",null,null,null,"",null,null,null,null,"","","",null,null,null,null,null,null,null,null,null,null,null,null,null,null,null,null,null,null,null,null,null,null,"","","",{"$f":"IF(J841=\"\",\"\",$AX$3+J841-1)","v":""},null,null,null,null,"","",""]
["",null,null,null,null,null,"","","","","",{"$error":"#NAME?"},"",null,null,null,"",null,null,null,null,"","","",null,null,null,null,null,null,null,null,null,null,null,null,null,null,null,null,null,null,null,null,null,null,"","","","",null,null,null,null,"","",""]
["",null,null,null,null,null,"","","","","",{"$error":"#NAME?"},"",null,null,null,"",null,null,null,null,"","","",null,null,null,null,null,null,null,null,null,null,null,null,null,null,null,null,null,null,null,null,null,null,"","","","",null,null,null,null,"","",""]
["",null,null,null,null,null,"","","","","",{"$error":"#NAME?"},"",null,null,null,"",null,null,null,null,"","","",null,null,null,null,null,null,null,null,null,null,null,null,null,null,null,null,null,null,null,null,null,null,"","","","",null,null,null,null,"","",""]
["",null,null,null,null,null,"","","","","",{"$error":"#NAME?"},"",null,null,null,"",null,null,null,null,"","","",null,null,null,null,null,null,null,null,null,null,null,null,null,null,null,null,null,null,null,null,null,null,"","","","",null,null,null,null,"","",""]
["",null,null,null,null,null,"","","","","",{"$error":"#NAME?"},"",null,null,null,"",null,null,null,null,"","","",null,null,null,null,null,null,null,null,null,null,null,null,null,null,null,null,null,null,null,null,null,null,"","","","",null,null,null,null,"","",""]
["",null,null,null,null,null,"","","","","",{"$error":"#NAME?"},"",null,null,null,"",null,null,null,null,"","","",null,null,null,null,null,null,null,null,null,null,null,null,null,null,null,null,null,null,null,null,null,null,"","","","",null,null,null,null,"","",""]
["",null,null,null,null,null,"","","","","",{"$error":"#NAME?"},"",null,null,null,"",null,null,null,null,"","","",null,null,null,null,null,null,null,null,null,null,null,null,null,null,null,null,null,null,null,null,null,null,"","","","",null,null,null,null,"","",""]
["",null,null,null,null,null,"","","","","",{"$error":"#NAME?"},"",null,null,null,"",null,null,null,null,"","","",null,null,null,null,null,null,null,null,null,null,null,null,null,null,null,null,null,null,null,null,null,null,"","","","",null,null,null,null,"","",""]
["",null,null,null,null,null,"","","","","",{"$error":"#NAME?"},"",null,null,null,"",null,null,null,null,"","","",null,null,null,null,null,null,null,null,null,null,null,null,null,null,null,null,null,null,null,null,null,null,"","","","",null,null,null,null,"","",""]
["",null,null,null,null,null,"","","","","",{"$error":"#NAME?"},"",null,null,null,"",null,null,null,null,"","","",null,null,null,null,null,null,null,null,null,null,null,null,null,null,null,null,null,null,null,null,null,null,"","","","",null,null,null,null,"","",""]
["",null,null,null,null,null,"","","","","",{"$error":"#NAME?"},"",null,null,null,"",null,null,null,null,"","","",null,null,null,null,null,null,null,null,null,null,null,null,null,null,null,null,null,null,null,null,null,null,"","","","",null,null,null,null,"","",""]
["",null,null,null,null,null,"","","","","",{"$error":"#NAME?"},"",null,null,null,"",null,null,null,null,"","","",null,null,null,null,null,null,null,null,null,null,null,null,null,null,null,null,null,null,null,null,null,null,"","","","",null,null,null,null,"","",""]
["",null,null,null,null,null,"","","","","",{"$error":"#NAME?"},"",null,null,null,"",null,null,null,null,"","","",null,null,null,null,null,null,null,null,null,null,null,null,null,null,null,null,null,null,null,null,null,null,"","","","",null,null,null,null,"","",""]
["",null,null,null,null,null,"","","","","",{"$error":"#NAME?"},"",null,null,null,"",null,null,null,null,"","","",null,null,null,null,null,null,null,null,null,null,null,null,null,null,null,null,null,null,null,null,null,null,"","","","",null,null,null,null,"","",""]
["",null,null,null,null,null,"","","","","",{"$error":"#NAME?"},"",null,null,null,"",null,null,null,null,"","","",null,null,null,null,null,null,null,null,null,null,null,null,null,null,null,null,null,null,null,null,null,null,"","","","",null,null,null,null,"","",""]
["",null,null,null,null,null,"","","","","",{"$error":"#NAME?"},"",null,null,null,"",null,null,null,null,"","","",null,null,null,null,null,null,null,null,null,null,null,null,null,null,null,null,null,null,null,null,null,null,"","","","",null,null,null,null,"","",""]
["",null,null,null,null,null,"","","","","",{"$error":"#NAME?"},"",null,null,null,"",null,null,null,null,"","","",null,null,null,null,null,null,null,null,null,null,null,null,null,null,null,null,null,null,null,null,null,null,"","","","",null,null,null,null,"","",""]
["",null,null,null,null,null,"","","","","",{"$error":"#NAME?"},"",null,null,null,"",null,null,null,null,"","","",null,null,null,null,null,null,null,null,null,null,null,null,null,null,null,null,null,null,null,null,null,null,"","","","",null,null,null,null,"","",""]
["",null,null,null,null,null,"","","","","",{"$error":"#NAME?"},"",null,null,null,"",null,null,null,null,"","","",null,null,null,null,null,null,null,null,null,null,null,null,null,null,null,null,null,null,null,null,null,null,"","","","",null,null,null,null,"","",""]
["",null,null,null,null,null,"","","","","",{"$error":"#NAME?"},"",null,null,null,"",null,null,null,null,"","","",null,null,null,null,null,null,null,null,null,null,null,null,null,null,null,null,null,null,null,null,null,null,"","","","",null,null,null,null,"","",""]
["",null,null,null,null,null,"","","","","",{"$error":"#NAME?"},"",null,null,null,"",null,null,null,null,"","","",null,null,null,null,null,null,null,null,null,null,null,null,null,null,null,null,null,null,null,null,null,null,"","","","",null,null,null,null,"","",""]
["",null,null,null,null,null,"","","","","",{"$error":"#NAME?"},"",null,null,null,"",null,null,null,null,"","","",null,null,null,null,null,null,null,null,null,null,null,null,null,null,null,null,null,null,null,null,null,null,"","","","",null,null,null,null,"","",""]
["",null,null,null,null,null,"","","","","",{"$error":"#NAME?"},"",null,null,null,"",null,null,null,null,"","","",null,null,null,null,null,null,null,null,null,null,null,null,null,null,null,null,null,null,null,null,null,null,"","","","",null,null,null,null,"","",""]
["",null,null,null,null,null,"","","","","",{"$error":"#NAME?"},"",null,null,null,"",null,null,null,null,"","","",null,null,null,null,null,null,null,null,null,null,null,null,null,null,null,null,null,null,null,null,null,null,"","","","",null,null,null,null,"","",""]
["",null,null,null,null,null,"","","","","",{"$error":"#NAME?"},"",null,null,null,"",null,null,null,null,"","","",null,null,null,null,null,null,null,null,null,null,null,null,null,null,null,null,null,null,null,null,null,null,"","","","",null,null,null,null,"","",""]
["",null,null,null,null,null,"","","","","",{"$error":"#NAME?"},"",null,null,null,"",null,null,null,null,"","","",null,null,null,null,null,null,null,null,null,null,null,null,null,null,null,null,null,null,null,null,null,null,"","","","",null,null,null,null,"","",""]
["",null,null,null,null,null,"","","","","",{"$error":"#NAME?"},"",null,null,null,"",null,null,null,null,"","","",null,null,null,null,null,null,null,null,null,null,null,null,null,null,null,null,null,null,null,null,null,null,"","","","",null,null,null,null,"","",""]
["",null,null,null,null,null,"","","","","",{"$error":"#NAME?"},"",null,null,null,"",null,null,null,null,"","","",null,null,null,null,null,null,null,null,null,null,null,null,null,null,null,null,null,null,null,null,null,null,"","","","",null,null,null,null,"","",""]
["",null,null,null,null,null,"","","","","",{"$error":"#NAME?"},"",null,null,null,"",null,null,null,null,"","","",null,null,null,null,null,null,null,null,null,null,null,null,null,null,null,null,null,null,null,null,null,null,"","","","",null,null,null,null,"","",""]
["",null,null,null,null,null,"","","","","",{"$error":"#NAME?"},"",null,null,null,"",null,null,null,null,"","","",null,null,null,null,null,null,null,null,null,null,null,null,null,null,null,null,null,null,null,null,null,null,"","","","",null,null,null,null,"","",""]
["",null,null,null,null,null,"","","","","",{"$error":"#NAME?"},"",null,null,null,"",null,null,null,null,"","","",null,null,null,null,null,null,null,null,null,null,null,null,null,null,null,null,null,null,null,null,null,null,"","","","",null,null,null,null,"","",""]
["",null,null,null,null,null,"","","","","",{"$error":"#NAME?"},"",null,null,null,"",null,null,null,null,"","","",null,null,null,null,null,null,null,null,null,null,null,null,null,null,null,null,null,null,null,null,null,null,"","","","",null,null,null,null,"","",""]
["",null,null,null,null,null,"","","","","",{"$error":"#NAME?"},"",null,null,null,"",null,null,null,null,"","","",null,null,null,null,null,null,null,null,null,null,null,null,null,null,null,null,null,null,null,null,null,null,"","","","",null,null,null,null,"","",""]
["",null,null,null,null,null,"","","","","",{"$error":"#NAME?"},"",null,null,null,"",null,null,null,null,"","","",null,null,null,null,null,null,null,null,null,null,null,null,null,null,null,null,null,null,null,null,null,null,"","","","",null,null,null,null,"","",""]
["",null,null,null,null,null,"","","","","",{"$error":"#NAME?"},"",null,null,null,"",null,null,null,null,"","","",null,null,null,null,null,null,null,null,null,null,null,null,null,null,null,null,null,null,null,null,null,null,"","","","",null,null,null,null,"","",""]
["",null,null,null,null,null,"","","","","",{"$error":"#NAME?"},"",null,null,null,"",null,null,null,null,"","","",null,null,null,null,null,null,null,null,null,null,null,null,null,null,null,null,null,null,null,null,null,null,"","","","",null,null,null,null,"","",""]
["",null,null,null,null,null,"","","","","",{"$error":"#NAME?"},"",null,null,null,"",null,null,null,null,"","","",null,null,null,null,null,null,null,null,null,null,null,null,null,null,null,null,null,null,null,null,null,null,"","","","",null,null,null,null,"","",""]
["",null,null,null,null,null,"","","","","",{"$error":"#NAME?"},"",null,null,null,"",null,null,null,null,"","","",null,null,null,null,null,null,null,null,null,null,null,null,null,null,null,null,null,null,null,null,null,null,"","","","",null,null,null,null,"","",""]
["",null,null,null,null,null,"","","","","",{"$error":"#NAME?"},"",null,null,null,"",null,null,null,null,"","","",null,null,null,null,null,null,null,null,null,null,null,null,null,null,null,null,null,null,null,null,null,null,"","","","",null,null,null,null,"","",""]
["",null,null,null,null,null,"","","","","",{"$error":"#NAME?"},"",null,null,null,"",null,null,null,null,"","","",null,null,null,null,null,null,null,null,null,null,null,null,null,null,null,null,null,null,null,null,null,null,"","","","",null,null,null,null,"","",""]
["",null,null,null,null,null,"","","","","",{"$error":"#NAME?"},"",null,null,null,"",null,null,null,null,"","","",null,null,null,null,null,null,null,null,null,null,null,null,null,null,null,null,null,null,null,null,null,null,"","","","",null,null,null,null,"","",""]
["",null,null,null,null,null,"","","","","",{"$error":"#NAME?"},"",null,null,null,"",null,null,null,null,"","","",null,null,null,null,null,null,null,null,null,null,null,null,null,null,null,null,null,null,null,null,null,null,"","","","",null,null,null,null,"","",""]
["",null,null,null,null,null,"","","","","",{"$error":"#NAME?"},"",null,null,null,"",null,null,null,null,"","","",null,null,null,null,null,null,null,null,null,null,null,null,null,null,null,null,null,null,null,null,null,null,"","","","",null,null,null,null,"","",""]
["",null,null,null,null,null,"","","","","",{"$error":"#NAME?"},"",null,null,null,"",null,null,null,null,"","","",null,null,null,null,null,null,null,null,null,null,null,null,null,null,null,null,null,null,null,null,null,null,"","","","",null,null,null,null,"","",""]
["",null,null,null,null,null,"","","","","",{"$error":"#NAME?"},"",null,null,null,"",null,null,null,null,"","","",null,null,null,null,null,null,null,null,null,null,null,null,null,null,null,null,null,null,null,null,null,null,"","","","",null,null,null,null,"","",""]
["",null,null,null,null,null,"","","","","",{"$error":"#NAME?"},"",null,null,null,"",null,null,null,null,"","","",null,null,null,null,null,null,null,null,null,null,null,null,null,null,null,null,null,null,null,null,null,null,"","","","",null,null,null,null,"","",""]
["",null,null,null,null,null,"","","","","",{"$error":"#NAME?"},"",null,null,null,"",null,null,null,null,"","","",null,null,null,null,null,null,null,null,null,null,null,null,null,null,null,null,null,null,null,null,null,null,"","","","",null,null,null,null,"","",""]
["",null,null,null,null,null,"","","","","",{"$error":"#NAME?"},"",null,null,null,"",null,null,null,null,"","","",null,null,null,null,null,null,null,null,null,null,null,null,null,null,null,null,null,null,null,null,null,null,"","","","",null,null,null,null,"","",""]
["",null,null,null,null,null,"","","","","",{"$error":"#NAME?"},"",null,null,null,"",null,null,null,null,"","","",null,null,null,null,null,null,null,null,null,null,null,null,null,null,null,null,null,null,null,null,null,null,"","","","",null,null,null,null,"","",""]
["",null,null,null,null,null,"","","","","",{"$error":"#NAME?"},"",null,null,null,"",null,null,null,null,"","","",null,null,null,null,null,null,null,null,null,null,null,null,null,null,null,null,null,null,null,null,null,null,"","","","",null,null,null,null,"","",""]
["",null,null,null,null,null,"","","","","",{"$error":"#NAME?"},"",null,null,null,"",null,null,null,null,"","","",null,null,null,null,null,null,null,null,null,null,null,null,null,null,null,null,null,null,null,null,null,null,"","","","",null,null,null,null,"","",""]
["",null,null,null,null,null,"","","","","",{"$error":"#NAME?"},"",null,null,null,"",null,null,null,null,"","","",null,null,null,null,null,null,null,null,null,null,null,null,null,null,null,null,null,null,null,null,null,null,"","","","",null,null,null,null,"","",""]
["",null,null,null,null,null,"","","","","",{"$error":"#NAME?"},"",null,null,null,"",null,null,null,null,"","","",null,null,null,null,null,null,null,null,null,null,null,null,null,null,null,null,null,null,null,null,null,null,"","","","",null,null,null,null,"","",""]
["",null,null,null,null,null,"","","","","",{"$error":"#NAME?"},"",null,null,null,"",null,null,null,null,"","","",null,null,null,null,null,null,null,null,null,null,null,null,null,null,null,null,null,null,null,null,null,null,"","","","",null,null,null,null,"","",""]
["",null,null,null,null,null,"","","","","",{"$error":"#NAME?"},"",null,null,null,"",null,null,null,null,"","","",null,null,null,null,null,null,null,null,null,null,null,null,null,null,null,null,null,null,null,null,null,null,"","","","",null,null,null,null,"","",""]
["",null,null,null,null,null,"","","","","",{"$error":"#NAME?"},"",null,null,null,"",null,null,null,null,"","","",null,null,null,null,null,null,null,null,null,null,null,null,null,null,null,null,null,null,null,null,null,null,"","","","",null,null,null,null,"","",""]
["",null,null,null,null,null,"","","","","",{"$error":"#NAME?"},"",null,null,null,"",null,null,null,null,"","","",null,null,null,null,null,null,null,null,null,null,null,null,null,null,null,null,null,null,null,null,null,null,"","","","",null,null,null,null,"","",""]
["",null,null,null,null,null,"","","","","",{"$error":"#NAME?"},"",null,null,null,"",null,null,null,null,"","","",null,null,null,null,null,null,null,null,null,null,null,null,null,null,null,null,null,null,null,null,null,null,"","","","",null,null,null,null,"","",""]
["",null,null,null,null,null,"","","","","",{"$error":"#NAME?"},"",null,null,null,"",null,null,null,null,"","","",null,null,null,null,null,null,null,null,null,null,null,null,null,null,null,null,null,null,null,null,null,null,"","","","",null,null,null,null,"","",""]
["",null,null,null,null,null,"","","","","",{"$error":"#NAME?"},"",null,null,null,"",null,null,null,null,"","","",null,null,null,null,null,null,null,null,null,null,null,null,null,null,null,null,null,null,null,null,null,null,"","","","",null,null,null,null,"","",""]
["",null,null,null,null,null,"","","","","",{"$error":"#NAME?"},"",null,null,null,"",null,null,null,null,"","","",null,null,null,null,null,null,null,null,null,null,null,null,null,null,null,null,null,null,null,null,null,null,"","","","",null,null,null,null,"","",""]
["",null,null,null,null,null,"","","",{"$f":"IF(E903=\"\",\"\",DATE(I903,H903,G903))","v":""},"",{"$f":"Kh_Date_Sex_Province($E903,3)","v":{"$error":"#NAME?"}},{"$f":"IF(E903=\"\",\"\",IF(ISODD(MID(E903,13,1)),\"ذكر\",\"أنثى\"))","v":""},null,null,null,"",null,null,null,null,"","","",null,null,null,null,null,null,null,null,null,null,null,null,null,null,null,null,null,null,null,null,null,null,"","","","",null,null,null,null,"","",""]
[{"$f":"IF(F904=\"\",\"\",A903+1)","v":""},null,null,null,null,null,{"$f":"RIGHT(LEFT(E904,7),2)","v":""},{"$f":"RIGHT(LEFT(E904,5),2)","v":""},{"$f":"IF(E904=\"\",\"\",IF(ISODD(MID(E904,1,1)),MID(E904,2,2)+2000,MID(E904,2,2)+1900))","v":""},"",{"$f":"IF(J904=\"\",\"\",$K$4+J904-1)","v":""},{"$error":"#NAME?"},"",null,null,null,{"$f":"IF(F904=\"\",\"\",\"الغربية\")","v":""},null,null,null,null,{"$f":"IF(U904=\"\",\"\",DATEDIF(U904,$V$3,\"md\"))","v":""},{"$f":"IF(U904=\"\",\"\",DATEDIF(U904,$V$3,\"ym\"))","v":""},{"$f":"IF(U904=\"\",\"\",DATEDIF(U904,$V$3,\"y\"))","v":""},null,null,null,null,null,null,null,null,null,null,null,null,null,null,null,null,null,null,null,null,null,null,{"$f":"IF(U904=\"\",\"\",DATEDIF(U904,$AU$3,\"md\"))","v":""},{"$f":"IF(U904=\"\",\"\",DATEDIF(U904,$AU$3,\"ym\"))","v":""},{"$f":"IF(U904=\"\",\"\",DATEDIF(U904,$AU$3,\"y\"))","v":""},"",null,null,null,null,{"$f":"IF(A904=\"\",\"\",A904)","v":""},{"$f":"IF(D904=\"\",\"\",D904)","v":""},{"$f":"IF(F904=\"\",\"\",F904)","v":""}]
["",null,null,null,null,null,"","","","","",{"$error":"#NAME?"},"",null,null,null,"",null,null,null,null,"","","",null,null,null,null,null,null,null,null,null,null,null,null,null,null,null,null,null,null,null,null,null,null,"","","",{"$f":"IF(J905=\"\",\"\",$AX$3+J905-1)","v":""},null,null,null,null,"","",""]
["",null,null,null,null,null,"","","","","",{"$error":"#NAME?"},"",null,null,null,"",null,null,null,null,"","","",null,null,null,null,null,null,null,null,null,null,null,null,null,null,null,null,null,null,null,null,null,null,"","","","",null,null,null,null,"","",""]
["",null,null,null,null,null,"","","","","",{"$error":"#NAME?"},"",null,null,null,"",null,null,null,null,"","","",null,null,null,null,null,null,null,null,null,null,null,null,null,null,null,null,null,null,null,null,null,null,"","","","",null,null,null,null,"","",""]
["",null,null,null,null,null,"","","","","",{"$error":"#NAME?"},"",null,null,null,"",null,null,null,null,"","","",null,null,null,null,null,null,null,null,null,null,null,null,null,null,null,null,null,null,null,null,null,null,"","","","",null,null,null,null,"","",""]
["",null,null,null,null,null,"","","","","",{"$error":"#NAME?"},"",null,null,null,"",null,null,null,null,"","","",null,null,null,null,null,null,null,null,null,null,null,null,null,null,null,null,null,null,null,null,null,null,"","","","",null,null,null,null,"","",""]
["",null,null,null,null,null,"","","","","",{"$error":"#NAME?"},"",null,null,null,"",null,null,null,null,"","","",null,null,null,null,null,null,null,null,null,null,null,null,null,null,null,null,null,null,null,null,null,null,"","","","",null,null,null,null,"","",""]
["",null,null,null,null,null,"","","","","",{"$error":"#NAME?"},"",null,null,null,"",null,null,null,null,"","","",null,null,null,null,null,null,null,null,null,null,null,null,null,null,null,null,null,null,null,null,null,null,"","","","",null,null,null,null,"","",""]
["",null,null,null,null,null,"","","","","",{"$error":"#NAME?"},"",null,null,null,"",null,null,null,null,"","","",null,null,null,null,null,null,null,null,null,null,null,null,null,null,null,null,null,null,null,null,null,null,"","","","",null,null,null,null,"","",""]
["",null,null,null,null,null,"","","","","",{"$error":"#NAME?"},"",null,null,null,"",null,null,null,null,"","","",null,null,null,null,null,null,null,null,null,null,null,null,null,null,null,null,null,null,null,null,null,null,"","","","",null,null,null,null,"","",""]
["",null,null,null,null,null,"","","","","",{"$error":"#NAME?"},"",null,null,null,"",null,null,null,null,"","","",null,null,null,null,null,null,null,null,null,null,null,null,null,null,null,null,null,null,null,null,null,null,"","","","",null,null,null,null,"","",""]
["",null,null,null,null,null,"","","","","",{"$error":"#NAME?"},"",null,null,null,"",null,null,null,null,"","","",null,null,null,null,null,null,null,null,null,null,null,null,null,null,null,null,null,null,null,null,null,null,"","","","",null,null,null,null,"","",""]
["",null,null,null,null,null,"","","","","",{"$error":"#NAME?"},"",null,null,null,"",null,null,null,null,"","","",null,null,null,null,null,null,null,null,null,null,null,null,null,null,null,null,null,null,null,null,null,null,"","","","",null,null,null,null,"","",""]
["",null,null,null,null,null,"","","","","",{"$error":"#NAME?"},"",null,null,null,"",null,null,null,null,"","","",null,null,null,null,null,null,null,null,null,null,null,null,null,null,null,null,null,null,null,null,null,null,"","","","",null,null,null,null,"","",""]
["",null,null,null,null,null,"","","","","",{"$error":"#NAME?"},"",null,null,null,"",null,null,null,null,"","","",null,null,null,null,null,null,null,null,null,null,null,null,null,null,null,null,null,null,null,null,null,null,"","","","",null,null,null,null,"","",""]
["",null,null,null,null,null,"","","","","",{"$error":"#NAME?"},"",null,null,null,"",null,null,null,null,"","","",null,null,null,null,null,null,null,null,null,null,null,null,null,null,null,null,null,null,null,null,null,null,"","","","",null,null,null,null,"","",""]
["",null,null,null,null,null,"","","","","",{"$error":"#NAME?"},"",null,null,null,"",null,null,null,null,"","","",null,null,null,null,null,null,null,null,null,null,null,null,null,null,null,null,null,null,null,null,null,null,"","","","",null,null,null,null,"","",""]
["",null,null,null,null,null,"","","","","",{"$error":"#NAME?"},"",null,null,null,"",null,null,null,null,"","","",null,null,null,null,null,null,null,null,null,null,null,null,null,null,null,null,null,null,null,null,null,null,"","","","",null,null,null,null,"","",""]
["",null,null,null,null,null,"","","","","",{"$error":"#NAME?"},"",null,null,null,"",null,null,null,null,"","","",null,null,null,null,null,null,null,null,null,null,null,null,null,null,null,null,null,null,null,null,null,null,"","","","",null,null,null,null,"","",""]
["",null,null,null,null,null,"","","","","",{"$error":"#NAME?"},"",null,null,null,"",null,null,null,null,"","","",null,null,null,null,null,null,null,null,null,null,null,null,null,null,null,null,null,null,null,null,null,null,"","","","",null,null,null,null,"","",""]
["",null,null,null,null,null,"","","","","",{"$error":"#NAME?"},"",null,null,null,"",null,null,null,null,"","","",null,null,null,null,null,null,null,null,null,null,null,null,null,null,null,null,null,null,null,null,null,null,"","","","",null,null,null,null,"","",""]
["",null,null,null,null,null,"","","","","",{"$error":"#NAME?"},"",null,null,null,"",null,null,null,null,"","","",null,null,null,null,null,null,null,null,null,null,null,null,null,null,null,null,null,null,null,null,null,null,"","","","",null,null,null,null,"","",""]
["",null,null,null,null,null,"","","","","",{"$error":"#NAME?"},"",null,null,null,"",null,null,null,null,"","","",null,null,null,null,null,null,null,null,null,null,null,null,null,null,null,null,null,null,null,null,null,null,"","","","",null,null,null,null,"","",""]
["",null,null,null,null,null,"","","","","",{"$error":"#NAME?"},"",null,null,null,"",null,null,null,null,"","","",null,null,null,null,null,null,null,null,null,null,null,null,null,null,null,null,null,null,null,null,null,null,"","","","",null,null,null,null,"","",""]
["",null,null,null,null,null,"","","","","",{"$error":"#NAME?"},"",null,null,null,"",null,null,null,null,"","","",null,null,null,null,null,null,null,null,null,null,null,null,null,null,null,null,null,null,null,null,null,null,"","","","",null,null,null,null,"","",""]
["",null,null,null,null,null,"","","","","",{"$error":"#NAME?"},"",null,null,null,"",null,null,null,null,"","","",null,null,null,null,null,null,null,null,null,null,null,null,null,null,null,null,null,null,null,null,null,null,"","","","",null,null,null,null,"","",""]
["",null,null,null,null,null,"","","","","",{"$error":"#NAME?"},"",null,null,null,"",null,null,null,null,"","","",null,null,null,null,null,null,null,null,null,null,null,null,null,null,null,null,null,null,null,null,null,null,"","","","",null,null,null,null,"","",""]
["",null,null,null,null,null,"","","","","",{"$error":"#NAME?"},"",null,null,null,"",null,null,null,null,"","","",null,null,null,null,null,null,null,null,null,null,null,null,null,null,null,null,null,null,null,null,null,null,"","","","",null,null,null,null,"","",""]
["",null,null,null,null,null,"","","","","",{"$error":"#NAME?"},"",null,null,null,"",null,null,null,null,"","","",null,null,null,null,null,null,null,null,null,null,null,null,null,null,null,null,null,null,null,null,null,null,"","","","",null,null,null,null,"","",""]
["",null,null,null,null,null,"","","","","",{"$error":"#NAME?"},"",null,null,null,"",null,null,null,null,"","","",null,null,null,null,null,null,null,null,null,null,null,null,null,null,null,null,null,null,null,null,null,null,"","","","",null,null,null,null,"","",""]
["",null,null,null,null,null,"","","","","",{"$error":"#NAME?"},"",null,null,null,"",null,null,null,null,"","","",null,null,null,null,null,null,null,null,null,null,null,null,null,null,null,null,null,null,null,null,null,null,"","","","",null,null,null,null,"","",""]
["",null,null,null,null,null,"","","","","",{"$error":"#NAME?"},"",null,null,null,"",null,null,null,null,"","","",null,null,null,null,null,null,null,null,null,null,null,null,null,null,null,null,null,null,null,null,null,null,"","","","",null,null,null,null,"","",""]
["",null,null,null,null,null,"","","","","",{"$error":"#NAME?"},"",null,null,null,"",null,null,null,null,"","","",null,null,null,null,null,null,null,null,null,null,null,null,null,null,null,null,null,null,null,null,null,null,"","","","",null,null,null,null,"","",""]
["",null,null,null,null,null,"","","","","",{"$error":"#NAME?"},"",null,null,null,"",null,null,null,null,"","","",null,null,null,null,null,null,null,null,null,null,null,null,null,null,null,null,null,null,null,null,null,null,"","","","",null,null,null,null,"","",""]
["",null,null,null,null,null,"","","","","",{"$error":"#NAME?"},"",null,null,null,"",null,null,null,null,"","","",null,null,null,null,null,null,null,null,null,null,null,null,null,null,null,null,null,null,null,null,null,null,"","","","",null,null,null,null,"","",""]
["",null,null,null,null,null,"","","","","",{"$error":"#NAME?"},"",null,null,null,"",null,null,null,null,"","","",null,null,null,null,null,null,null,null,null,null,null,null,null,null,null,null,null,null,null,null,null,null,"","","","",null,null,null,null,"","",""]
["",null,null,null,null,null,"","","","","",{"$error":"#NAME?"},"",null,null,null,"",null,null,null,null,"","","",null,null,null,null,null,null,null,null,null,null,null,null,null,null,null,null,null,null,null,null,null,null,"","","","",null,null,null,null,"","",""]
["",null,null,null,null,null,"","","","","",{"$error":"#NAME?"},"",null,null,null,"",null,null,null,null,"","","",null,null,null,null,null,null,null,null,null,null,null,null,null,null,null,null,null,null,null,null,null,null,"","","","",null,null,null,null,"","",""]
["",null,null,null,null,null,"","","","","",{"$error":"#NAME?"},"",null,null,null,"",null,null,null,null,"","","",null,null,null,null,null,null,null,null,null,null,null,null,null,null,null,null,null,null,null,null,null,null,"","","","",null,null,null,null,"","",""]
["",null,null,null,null,null,"","","","","",{"$error":"#NAME?"},"",null,null,null,"",null,null,null,null,"","","",null,null,null,null,null,null,null,null,null,null,null,null,null,null,null,null,null,null,null,null,null,null,"","","","",null,null,null,null,"","",""]
["",null,null,null,null,null,"","","","","",{"$error":"#NAME?"},"",null,null,null,"",null,null,null,null,"","","",null,null,null,null,null,null,null,null,null,null,null,null,null,null,null,null,null,null,null,null,null,null,"","","","",null,null,null,null,"","",""]
["",null,null,null,null,null,"","","","","",{"$error":"#NAME?"},"",null,null,null,"",null,null,null,null,"","","",null,null,null,null,null,null,null,null,null,null,null,null,null,null,null,null,null,null,null,null,null,null,"","","","",null,null,null,null,"","",""]
["",null,null,null,null,null,"","","","","",{"$error":"#NAME?"},"",null,null,null,"",null,null,null,null,"","","",null,null,null,null,null,null,null,null,null,null,null,null,null,null,null,null,null,null,null,null,null,null,"","","","",null,null,null,null,"","",""]
["",null,null,null,null,null,"","","","","",{"$error":"#NAME?"},"",null,null,null,"",null,null,null,null,"","","",null,null,null,null,null,null,null,null,null,null,null,null,null,null,null,null,null,null,null,null,null,null,"","","","",null,null,null,null,"","",""]
["",null,null,null,null,null,"","","","","",{"$error":"#NAME?"},"",null,null,null,"",null,null,null,null,"","","",null,null,null,null,null,null,null,null,null,null,null,null,null,null,null,null,null,null,null,null,null,null,"","","","",null,null,null,null,"","",""]
["",null,null,null,null,null,"","","","","",{"$error":"#NAME?"},"",null,null,null,"",null,null,null,null,"","","",null,null,null,null,null,null,null,null,null,null,null,null,null,null,null,null,null,null,null,null,null,null,"","","","",null,null,null,null,"","",""]
["",null,null,null,null,null,"","","","","",{"$error":"#NAME?"},"",null,null,null,"",null,null,null,null,"","","",null,null,null,null,null,null,null,null,null,null,null,null,null,null,null,null,null,null,null,null,null,null,"","","","",null,null,null,null,"","",""]
["",null,null,null,null,null,"","","","","",{"$error":"#NAME?"},"",null,null,null,"",null,null,null,null,"","","",null,null,null,null,null,null,null,null,null,null,null,null,null,null,null,null,null,null,null,null,null,null,"","","","",null,null,null,null,"","",""]
["",null,null,null,null,null,"","","","","",{"$error":"#NAME?"},"",null,null,null,"",null,null,null,null,"","","",null,null,null,null,null,null,null,null,null,null,null,null,null,null,null,null,null,null,null,null,null,null,"","","","",null,null,null,null,"","",""]
["",null,null,null,null,null,"","","","","",{"$error":"#NAME?"},"",null,null,null,"",null,null,null,null,"","","",null,null,null,null,null,null,null,null,null,null,null,null,null,null,null,null,null,null,null,null,null,null,"","","","",null,null,null,null,"","",""]
["",null,null,null,null,null,"","","","","",{"$error":"#NAME?"},"",null,null,null,"",null,null,null,null,"","","",null,null,null,null,null,null,null,null,null,null,null,null,null,null,null,null,null,null,null,null,null,null,"","","","",null,null,null,null,"","",""]
["",null,null,null,null,null,"","","","","",{"$error":"#NAME?"},"",null,null,null,"",null,null,null,null,"","","",null,null,null,null,null,null,null,null,null,null,null,null,null,null,null,null,null,null,null,null,null,null,"","","","",null,null,null,null,"","",""]
["",null,null,null,null,null,"","","","","",{"$error":"#NAME?"},"",null,null,null,"",null,null,null,null,"","","",null,null,null,null,null,null,null,null,null,null,null,null,null,null,null,null,null,null,null,null,null,null,"","","","",null,null,null,null,"","",""]
["",null,null,null,null,null,"","","","","",{"$error":"#NAME?"},"",null,null,null,"",null,null,null,null,"","","",null,null,null,null,null,null,null,null,null,null,null,null,null,null,null,null,null,null,null,null,null,null,"","","","",null,null,null,null,"","",""]
["",null,null,null,null,null,"","","","","",{"$error":"#NAME?"},"",null,null,null,"",null,null,null,null,"","","",null,null,null,null,null,null,null,null,null,null,null,null,null,null,null,null,null,null,null,null,null,null,"","","","",null,null,null,null,"","",""]
["",null,null,null,null,null,"","","","","",{"$error":"#NAME?"},"",null,null,null,"",null,null,null,null,"","","",null,null,null,null,null,null,null,null,null,null,null,null,null,null,null,null,null,null,null,null,null,null,"","","","",null,null,null,null,"","",""]
["",null,null,null,null,null,"","","","","",{"$error":"#NAME?"},"",null,null,null,"",null,null,null,null,"","","",null,null,null,null,null,null,null,null,null,null,null,null,null,null,null,null,null,null,null,null,null,null,"","","","",null,null,null,null,"","",""]
["",null,null,null,null,null,"","","","","",{"$error":"#NAME?"},"",null,null,null,"",null,null,null,null,"","","",null,null,null,null,null,null,null,null,null,null,null,null,null,null,null,null,null,null,null,null,null,null,"","","","",null,null,null,null,"","",""]
["",null,null,null,null,null,"","","","","",{"$error":"#NAME?"},"",null,null,null,"",null,null,null,null,"","","",null,null,null,null,null,null,null,null,null,null,null,null,null,null,null,null,null,null,null,null,null,null,"","","","",null,null,null,null,"","",""]
["",null,null,null,null,null,"","","","","",{"$error":"#NAME?"},"",null,null,null,"",null,null,null,null,"","","",null,null,null,null,null,null,null,null,null,null,null,null,null,null,null,null,null,null,null,null,null,null,"","","","",null,null,null,null,"","",""]
["",null,null,null,null,null,"","","","","",{"$error":"#NAME?"},"",null,null,null,"",null,null,null,null,"","","",null,null,null,null,null,null,null,null,null,null,null,null,null,null,null,null,null,null,null,null,null,null,"","","","",null,null,null,null,"","",""]
["",null,null,null,null,null,"","","","","",{"$error":"#NAME?"},"",null,null,null,"",null,null,null,null,"","","",null,null,null,null,null,null,null,null,null,null,null,null,null,null,null,null,null,null,null,null,null,null,"","","","",null,null,null,null,"","",""]
["",null,null,null,null,null,"","","","","",{"$error":"#NAME?"},"",null,null,null,"",null,null,null,null,"","","",null,null,null,null,null,null,null,null,null,null,null,null,null,null,null,null,null,null,null,null,null,null,"","","","",null,null,null,null,"","",""]
["",null,null,null,null,null,"","","",{"$f":"IF(E967=\"\",\"\",DATE(I967,H967,G967))","v":""},"",{"$f":"Kh_Date_Sex_Province($E967,3)","v":{"$error":"#NAME?"}},{"$f":"IF(E967=\"\",\"\",IF(ISODD(MID(E967,13,1)),\"ذكر\",\"أنثى\"))","v":""},null,null,null,"",null,null,null,null,"","","",null,null,null,null,null,null,null,null,null,null,null,null,null,null,null,null,null,null,null,null,null,null,"","","","",null,null,null,null,"","",""]
[{"$f":"IF(F968=\"\",\"\",A967+1)","v":""},null,null,null,null,null,{"$f":"RIGHT(LEFT(E968,7),2)","v":""},{"$f":"RIGHT(LEFT(E968,5),2)","v":""},{"$f":"IF(E968=\"\",\"\",IF(ISODD(MID(E968,1,1)),MID(E968,2,2)+2000,MID(E968,2,2)+1900))","v":""},"",{"$f":"IF(J968=\"\",\"\",$K$4+J968-1)","v":""},{"$error":"#NAME?"},"",null,null,null,{"$f":"IF(F968=\"\",\"\",\"الغربية\")","v":""},null,null,null,null,{"$f":"IF(U968=\"\",\"\",DATEDIF(U968,$V$3,\"md\"))","v":""},{"$f":"IF(U968=\"\",\"\",DATEDIF(U968,$V$3,\"ym\"))","v":""},{"$f":"IF(U968=\"\",\"\",DATEDIF(U968,$V$3,\"y\"))","v":""},null,null,null,null,null,null,null,null,null,null,null,null,null,null,null,null,null,null,null,null,null,null,{"$f":"IF(U968=\"\",\"\",DATEDIF(U968,$AU$3,\"md\"))","v":""},{"$f":"IF(U968=\"\",\"\",DATEDIF(U968,$AU$3,\"ym\"))","v":""},{"$f":"IF(U968=\"\",\"\",DATEDIF(U968,$AU$3,\"y\"))","v":""},"",null,null,null,null,{"$f":"IF(A968=\"\",\"\",A968)","v":""},{"$f":"IF(D968=\"\",\"\",D968)","v":""},{"$f":"IF(F968=\"\",\"\",F968)","v":""}]
["",null,null,null,null,null,"","","","","",{"$error":"#NAME?"},"",null,null,null,"",null,null,null,null,"","","",null,null,null,null,null,null,null,null,null,null,null,null,null,null,null,null,null,null,null,null,null,null,"","","",{"$f":"IF(J969=\"\",\"\",$AX$3+J969-1)","v":""},null,null,null,null,"","",""]
["",null,null,null,null,null,"","","","","",{"$error":"#NAME?"},"",null,null,null,"",null,null,null,null,"","","",null,null,null,null,null,null,null,null,null,null,null,null,null,null,null,null,null,null,null,null,null,null,"","","","",null,null,null,null,"","",""]
["",null,null,null,null,null,"","","","","",{"$error":"#NAME?"},"",null,null,null,"",null,null,null,null,"","","",null,null,null,null,null,null,null,null,null,null,null,null,null,null,null,null,null,null,null,null,null,null,"","","","",null,null,null,null,"","",""]
["",null,null,null,null,null,"","","","","",{"$error":"#NAME?"},"",null,null,null,"",null,null,null,null,"","","",null,null,null,null,null,null,null,null,null,null,null,null,null,null,null,null,null,null,null,null,null,null,"","","","",null,null,null,null,"","",""]
["",null,null,null,null,null,"","","","","",{"$error":"#NAME?"},"",null,null,null,"",null,null,null,null,"","","",null,null,null,null,null,null,null,null,null,null,null,null,null,null,null,null,null,null,null,null,null,null,"","","","",null,null,null,null,"","",""]
["",null,null,null,null,null,"","","","","",{"$error":"#NAME?"},"",null,null,null,"",null,null,null,null,"","","",null,null,null,null,null,null,null,null,null,null,null,null,null,null,null,null,null,null,null,null,null,null,"","","","",null,null,null,null,"","",""]
["",null,null,null,null,null,"","","","","",{"$error":"#NAME?"},"",null,null,null,"",null,null,null,null,"","","",null,null,null,null,null,null,null,null,null,null,null,null,null,null,null,null,null,null,null,null,null,null,"","","","",null,null,null,null,"","",""]
["",null,null,null,null,null,"","","","","",{"$error":"#NAME?"},"",null,null,null,"",null,null,null,null,"","","",null,null,null,null,null,null,null,null,null,null,null,null,null,null,null,null,null,null,null,null,null,null,"","","","",null,null,null,null,"","",""]
["",null,null,null,null,null,"","","","","",{"$error":"#NAME?"},"",null,null,null,"",null,null,null,null,"","","",null,null,null,null,null,null,null,null,null,null,null,null,null,null,null,null,null,null,null,null,null,null,"","","","",null,null,null,null,"","",""]
["",null,null,null,null,null,"","","","","",{"$error":"#NAME?"},"",null,null,null,"",null,null,null,null,"","","",null,null,null,null,null,null,null,null,null,null,null,null,null,null,null,null,null,null,null,null,null,null,"","","","",null,null,null,null,"","",""]
["",null,null,null,null,null,"","","","","",{"$error":"#NAME?"},"",null,null,null,"",null,null,null,null,"","","",null,null,null,null,null,null,null,null,null,null,null,null,null,null,null,null,null,null,null,null,null,null,"","","","",null,null,null,null,"","",""]
["",null,null,null,null,null,"","","","","",{"$error":"#NAME?"},"",null,null,null,"",null,null,null,null,"","","",null,null,null,null,null,null,null,null,null,null,null,null,null,null,null,null,null,null,null,null,null,null,"","","","",null,null,null,null,"","",""]
["",null,null,null,null,null,"","","","","",{"$error":"#NAME?"},"",null,null,null,"",null,null,null,null,"","","",null,null,null,null,null,null,null,null,null,null,null,null,null,null,null,null,null,null,null,null,null,null,"","","","",null,null,null,null,"","",""]
["",null,null,null,null,null,"","","","","",{"$error":"#NAME?"},"",null,null,null,"",null,null,null,null,"","","",null,null,null,null,null,null,null,null,null,null,null,null,null,null,null,null,null,null,null,null,null,null,"","","","",null,null,null,null,"","",""]
["",null,null,null,null,null,"","","","","",{"$error":"#NAME?"},"",null,null,null,"",null,null,null,null,"","","",null,null,null,null,null,null,null,null,null,null,null,null,null,null,null,null,null,null,null,null,null,null,"","","","",null,null,null,null,"","",""]
["",null,null,null,null,null,"","","","","",{"$error":"#NAME?"},"",null,null,null,"",null,null,null,null,"","","",null,null,null,null,null,null,null,null,null,null,null,null,null,null,null,null,null,null,null,null,null,null,"","","","",null,null,null,null,"","",""]
["",null,null,null,null,null,"","","","","",{"$error":"#NAME?"},"",null,null,null,"",null,null,null,null,"","","",null,null,null,null,null,null,null,null,null,null,null,null,null,null,null,null,null,null,null,null,null,null,"","","","",null,null,null,null,"","",""]
["",null,null,null,null,null,"","","","","",{"$error":"#NAME?"},"",null,null,null,"",null,null,null,null,"","","",null,null,null,null,null,null,null,null,null,null,null,null,null,null,null,null,null,null,null,null,null,null,"","","","",null,null,null,null,"","",""]
["",null,null,null,null,null,"","","","","",{"$error":"#NAME?"},"",null,null,null,"",null,null,null,null,"","","",null,null,null,null,null,null,null,null,null,null,null,null,null,null,null,null,null,null,null,null,null,null,"","","","",null,null,null,null,"","",""]
["",null,null,null,null,null,"","","","","",{"$error":"#NAME?"},"",null,null,null,"",null,null,null,null,"","","",null,null,null,null,null,null,null,null,null,null,null,null,null,null,null,null,null,null,null,null,null,null,"","","","",null,null,null,null,"","",""]
["",null,null,null,null,null,"","","","","",{"$error":"#NAME?"},"",null,null,null,"",null,null,null,null,"","","",null,null,null,null,null,null,null,null,null,null,null,null,null,null,null,null,null,null,null,null,null,null,"","","","",null,null,null,null,"","",""]
["",null,null,null,null,null,"","","","","",{"$error":"#NAME?"},"",null,null,null,"",null,null,null,null,"","","",null,null,null,null,null,null,null,null,null,null,null,null,null,null,null,null,null,null,null,null,null,null,"","","","",null,null,null,null,"","",""]
["",null,null,null,null,null,"","","","","",{"$error":"#NAME?"},"",null,null,null,"",null,null,null,null,"","","",null,null,null,null,null,null,null,null,null,null,null,null,null,null,null,null,null,null,null,null,null,null,"","","","",null,null,null,null,"","",""]
["",null,null,null,null,null,"","","","","",{"$error":"#NAME?"},"",null,null,null,"",null,null,null,null,"","","",null,null,null,null,null,null,null,null,null,null,null,null,null,null,null,null,null,null,null,null,null,null,"","","","",null,null,null,null,"","",""]
["",null,null,null,null,null,"","","","","",{"$error":"#NAME?"},"",null,null,null,"",null,null,null,null,"","","",null,null,null,null,null,null,null,null,null,null,null,null,null,null,null,null,null,null,null,null,null,null,"","","","",null,null,null,null,"","",""]
["",null,null,null,null,null,"","","","","",{"$error":"#NAME?"},"",null,null,null,"",null,null,null,null,"","","",null,null,null,null,null,null,null,null,null,null,null,null,null,null,null,null,null,null,null,null,null,null,"","","","",null,null,null,null,"","",""]
["",null,null,null,null,null,"","","","","",{"$error":"#NAME?"},"",null,null,null,"",null,null,null,null,"","","",null,null,null,null,null,null,null,null,null,null,null,null,null,null,null,null,null,null,null,null,null,null,"","","","",null,null,null,null,"","",""]
["",null,null,null,null,null,"","","","","",{"$error":"#NAME?"},"",null,null,null,"",null,null,null,null,"","","",null,null,null,null,null,null,null,null,null,null,null,null,null,null,null,null,null,null,null,null,null,null,"","","","",null,null,null,null,"","",""]
["",null,null,null,null,null,"","","","","",{"$error":"#NAME?"},"",null,null,null,"",null,null,null,null,"","","",null,null,null,null,null,null,null,null,null,null,null,null,null,null,null,null,null,null,null,null,null,null,"","","","",null,null,null,null,"","",""]
["",null,null,null,null,null,"","","","","",{"$error":"#NAME?"},"",null,null,null,"",null,null,null,null,"","","",null,null,null,null,null,null,null,null,null,null,null,null,null,null,null,null,null,null,null,null,null,null,"","","","",null,null,null,null,"","",""]
["",null,null,null,null,null,"","","","","",{"$error":"#NAME?"},"",null,null,null,"",null,null,null,null,"","","",null,null,null,null,null,null,null,null,null,null,null,null,null,null,null,null,null,null,null,null,null,null,"","","","",null,null,null,null,"","",""]
["",null,null,null,null,null,"","","","","",{"$error":"#NAME?"},"",null,null,null,"",null,null,null,null,"","","",null,null,null,null,null,null,null,null,null,null,null,null,null,null,null,null,null,null,null,null,null,null,"","","","",null,null,null,null,"","",""]
["",null,null,null,null,null,"","","","","",{"$error":"#NAME?"},"",null,null,null,"",null,null,null,null,"","","",null,null,null,null,null,null,null,null,null,null,null,null,null,null,null,null,null,null,null,null,null,null,"","","","",null,null,null,null,"","",""]
["",null,null,null,null,null,"","","","","",{"$error":"#NAME?"},"",null,null,null,"",null,null,null,null,"","","",null,null,null,null,null,null,null,null,null,null,null,null,null,null,null,null,null,null,null,null,null,null,"","","","",null,null,null,null,"","",""]
["",null,null,null,null,null,"","","","","",{"$error":"#NAME?"},"",null,null,null,"",null,null,null,null,"","","",null,null,null,null,null,null,null,null,null,null,null,null,null,null,null,null,null,null,null,null,null,null,"","","","",null,null,null,null,"","",""]
["",null,null,null,null,null,"","","","","",{"$error":"#NAME?"},"",null,null,null,"",null,null,null,null,"","","",null,null,null,null,null,null,null,null,null,null,null,null,null,null,null,null,null,null,null,null,null,null,"","","","",null,null,null,null,"","",""]
["",null,null,null,null,null,"","","","","",{"$error":"#NAME?"},"",null,null,null,"",null,null,null,null,"","","",null,null,null,null,null,null,null,null,null,null,null,null,null,null,null,null,null,null,null,null,null,null,"","","","",null,null,null,null,"","",""]
["",null,null,null,null,null,"","","","","",{"$error":"#NAME?"},"",null,null,null,"",null,null,null,null,"","","",null,null,null,null,null,null,null,null,null,null,null,null,null,null,null,null,null,null,null,null,null,null,"","","","",null,null,null,null,"","",""]
["",null,null,null,null,null,"","","","","",{"$error":"#NAME?"},"",null,null,null,"",null,null,null,null,"","","",null,null,null,null,null,null,null,null,null,null,null,null,null,null,null,null,null,null,null,null,null,null,"","","","",null,null,null,null,"","",""]
["",null,null,null,null,null,"","","","","",{"$error":"#NAME?"},"",null,null,null,"",null,null,null,null,"","","",null,null,null,null,null,null,null,null,null,null,null,null,null,null,null,null,null,null,null,null,null,null,"","","","",null,null,null,null,"","",""]
["",null,null,null,null,null,"","","","","",{"$error":"#NAME?"},"",null,null,null,"",null,null,null,null,"","","",null,null,null,null,null,null,null,null,null,null,null,null,null,null,null,null,null,null,null,null,null,null,"","","","",null,null,null,null,"","",""]
["",null,null,null,null,null,"","","","","",{"$error":"#NAME?"},"",null,null,null,"",null,null,null,null,"","","",null,null,null,null,null,null,null,null,null,null,null,null,null,null,null,null,null,null,null,null,null,null,"","","","",null,null,null,null,"","",""]
["",null,null,null,null,null,"","","","","",{"$error":"#NAME?"},"",null,null,null,"",null,null,null,null,"","","",null,null,null,null,null,null,null,null,null,null,null,null,null,null,null,null,null,null,null,null,null,null,"","","","",null,null,null,null,"","",""]
["",null,null,null,null,null,"","","","","",{"$error":"#NAME?"},"",null,null,null,"",null,null,null,null,"","","",null,null,null,null,null,null,null,null,null,null,null,null,null,null,null,null,null,null,null,null,null,null,"","","","",null,null,null,null,"","",""]
["",null,null,null,null,null,"","","","","",{"$error":"#NAME?"},"",null,null,null,"",null,null,null,null,"","","",null,null,null,null,null,null,null,null,null,null,null,null,null,null,null,null,null,null,null,null,null,null,"","","","",null,null,null,null,"","",""]
["",null,null,null,null,null,"","","","","",{"$error":"#NAME?"},"",null,null,null,"",null,null,null,null,"","","",null,null,null,null,null,null,null,null,null,null,null,null,null,null,null,null,null,null,null,null,null,null,"","","","",null,null,null,null,"","",""]
["",null,null,null,null,null,"","","","","",{"$error":"#NAME?"},"",null,null,null,"",null,null,null,null,"","","",null,null,null,null,null,null,null,null,null,null,null,null,null,null,null,null,null,null,null,null,null,null,"","","","",null,null,null,null,"","",""]
["",null,null,null,null,null,"","","","","",{"$error":"#NAME?"},"",null,null,null,"",null,null,null,null,"","","",null,null,null,null,null,null,null,null,null,null,null,null,null,null,null,null,null,null,null,null,null,null,"","","","",null,null,null,null,"","",""]
["",null,null,null,null,null,"","","","","",{"$error":"#NAME?"},"",null,null,null,"",null,null,null,null,"","","",null,null,null,null,null,null,null,null,null,null,null,null,null,null,null,null,null,null,null,null,null,null,"","","","",null,null,null,null,"","",""]
["",null,null,null,null,null,"","","","","",{"$error":"#NAME?"},"",null,null,null,"",null,null,null,null,"","","",null,null,null,null,null,null,null,null,null,null,null,null,null,null,null,null,null,null,null,null,null,null,"","","","",null,null,null,null,"","",""]
["",null,null,null,null,null,"","","","","",{"$error":"#NAME?"},"",null,null,null,"",null,null,null,null,"","","",null,null,null,null,null,null,null,null,null,null,null,null,null,null,null,null,null,null,null,null,null,null,"","","","",null,null,null,null,"","",""]
["",null,null,null,null,null,"","","","","",{"$error":"#NAME?"},"",null,null,null,"",null,null,null,null,"","","",null,null,null,null,null,null,null,null,null,null,null,null,null,null,null,null,null,null,null,null,null,null,"","","","",null,null,null,null,"","",""]
["",null,null,null,null,null,"","","","","",{"$error":"#NAME?"},"",null,null,null,"",null,null,null,null,"","","",null,null,null,null,null,null,null,null,null,null,null,null,null,null,null,null,null,null,null,null,null,null,"","","","",null,null,null,null,"","",""]
["",null,null,null,null,null,"","","","","",{"$error":"#NAME?"},"",null,null,null,"",null,null,null,null,"","","",null,null,null,null,null,null,null,null,null,null,null,null,null,null,null,null,null,null,null,null,null,null,"","","","",null,null,null,null,"","",""]
["",null,null,null,null,null,"","","","","",{"$error":"#NAME?"},"",null,null,null,"",null,null,null,null,"","","",null,null,null,null,null,null,null,null,null,null,null,null,null,null,null,null,null,null,null,null,null,null,"","","","",null,null,null,null,"","",""]
["",null,null,null,null,null,"","","","","",{"$error":"#NAME?"},"",null,null,null,"",null,null,null,null,"","","",null,null,null,null,null,null,null,null,null,null,null,null,null,null,null,null,null,null,null,null,null,null,"","","","",null,null,null,null,"","",""]
["",null,null,null,null,null,"","","","","",{"$error":"#NAME?"},"",null,null,null,"",null,null,null,null,"","","",null,null,null,null,null,null,null,null,null,null,null,null,null,null,null,null,null,null,null,null,null,null,"","","","",null,null,null,null,"","",""]
["",null,null,null,null,null,"","","","","",{"$error":"#NAME?"},"",null,null,null,"",null,null,null,null,"","","",null,null,null,null,null,null,null,null,null,null,null,null,null,null,null,null,null,null,null,null,null,null,"","","","",null,null,null,null,"","",""]
["",null,null,null,null,null,"","","","","",{"$error":"#NAME?"},"",null,null,null,"",null,null,null,null,"","","",null,null,null,null,null,null,null,null,null,null,null,null,null,null,null,null,null,null,null,null,null,null,"","","","",null,null,null,null,"","",""]
["",null,null,null,null,null,"","","","","",{"$error":"#NAME?"},"",null,null,null,"",null,null,null,null,"","","",null,null,null,null,null,null,null,null,null,null,null,null,null,null,null,null,null,null,null,null,null,null,"","","","",null,null,null,null,"","",""]
["",null,null,null,null,null,"","","","","",{"$error":"#NAME?"},"",null,null,null,"",null,null,null,null,"","","",null,null,null,null,null,null,null,null,null,null,null,null,null,null,null,null,null,null,null,null,null,null,"","","","",null,null,null,null,"","",""]
["",null,null,null,null,null,"","","","","",{"$error":"#NAME?"},"",null,null,null,"",null,null,null,null,"","","",null,null,null,null,null,null,null,null,null,null,null,null,null,null,null,null,null,null,null,null,null,null,"","","","",null,null,null,null,"","",""]
["",null,null,null,null,null,"","","",{"$f":"IF(E1031=\"\",\"\",DATE(I1031,H1031,G1031))","v":""},"",{"$f":"Kh_Date_Sex_Province($E1031,3)","v":{"$error":"#NAME?"}},{"$f":"IF(E1031=\"\",\"\",IF(ISODD(MID(E1031,13,1)),\"ذكر\",\"أنثى\"))","v":""},null,null,null,"",null,null,null,null,"","","",null,null,null,null,null,null,null,null,null,null,null,null,null,null,null,null,null,null,null,null,null,null,"","","","",null,null,null,null,"","",""]
[{"$f":"IF(F1032=\"\",\"\",A1031+1)","v":""},null,null,null,null,null,{"$f":"RIGHT(LEFT(E1032,7),2)","v":""},{"$f":"RIGHT(LEFT(E1032,5),2)","v":""},{"$f":"IF(E1032=\"\",\"\",IF(ISODD(MID(E1032,1,1)),MID(E1032,2,2)+2000,MID(E1032,2,2)+1900))","v":""},"",{"$f":"IF(J1032=\"\",\"\",$K$4+J1032-1)","v":""},{"$error":"#NAME?"},"",null,null,null,{"$f":"IF(F1032=\"\",\"\",\"الغربية\")","v":""},null,null,null,null,{"$f":"IF(U1032=\"\",\"\",DATEDIF(U1032,$V$3,\"md\"))","v":""},{"$f":"IF(U1032=\"\",\"\",DATEDIF(U1032,$V$3,\"ym\"))","v":""},{"$f":"IF(U1032=\"\",\"\",DATEDIF(U1032,$V$3,\"y\"))","v":""},null,null,null,null,null,null,null,null,null,null,null,null,null,null,null,null,null,null,null,null,null,null,{"$f":"IF(U1032=\"\",\"\",DATEDIF(U1032,$AU$3,\"md\"))","v":""},{"$f":"IF(U1032=\"\",\"\",DATEDIF(U1032,$AU$3,\"ym\"))","v":""},{"$f":"IF(U1032=\"\",\"\",DATEDIF(U1032,$AU$3,\"y\"))","v":""},"",null,null,null,null,{"$f":"IF(A1032=\"\",\"\",A1032)","v":""},{"$f":"IF(D1032=\"\",\"\",D1032)","v":""},{"$f":"IF(F1032=\"\",\"\",F1032)","v":""}]
["",null,null,null,null,null,"","","","","",{"$error":"#NAME?"},"",null,null,null,"",null,null,null,null,"","","",null,null,null,null,null,null,null,null,null,null,null,null,null,null,null,null,null,null,null,null,null,null,"","","",{"$f":"IF(J1033=\"\",\"\",$AX$3+J1033-1)","v":""},null,null,null,null,"","",""]
["",null,null,null,null,null,"","","","","",{"$error":"#NAME?"},"",null,null,null,"",null,null,null,null,"","","",null,null,null,null,null,null,null,null,null,null,null,null,null,null,null,null,null,null,null,null,null,null,"","","","",null,null,null,null,"","",""]
["",null,null,null,null,null,"","","","","",{"$error":"#NAME?"},"",null,null,null,"",null,null,null,null,"","","",null,null,null,null,null,null,null,null,null,null,null,null,null,null,null,null,null,null,null,null,null,null,"","","","",null,null,null,null,"","",""]
["",null,null,null,null,null,"","","","","",{"$error":"#NAME?"},"",null,null,null,"",null,null,null,null,"","","",null,null,null,null,null,null,null,null,null,null,null,null,null,null,null,null,null,null,null,null,null,null,"","","","",null,null,null,null,"","",""]
["",null,null,null,null,null,"","","","","",{"$error":"#NAME?"},"",null,null,null,"",null,null,null,null,"","","",null,null,null,null,null,null,null,null,null,null,null,null,null,null,null,null,null,null,null,null,null,null,"","","","",null,null,null,null,"","",""]
["",null,null,null,null,null,"","","","","",{"$error":"#NAME?"},"",null,null,null,"",null,null,null,null,"","","",null,null,null,null,null,null,null,null,null,null,null,null,null,null,null,null,null,null,null,null,null,null,"","","","",null,null,null,null,"","",""]
["",null,null,null,null,null,"","","","","",{"$error":"#NAME?"},"",null,null,null,"",null,null,null,null,"","","",null,null,null,null,null,null,null,null,null,null,null,null,null,null,null,null,null,null,null,null,null,null,"","","","",null,null,null,null,"","",""]
["",null,null,null,null,null,"","","","","",{"$error":"#NAME?"},"",null,null,null,"",null,null,null,null,"","","",null,null,null,null,null,null,null,null,null,null,null,null,null,null,null,null,null,null,null,null,null,null,"","","","",null,null,null,null,"","",""]
["",null,null,null,null,null,"","","","","",{"$error":"#NAME?"},"",null,null,null,"",null,null,null,null,"","","",null,null,null,null,null,null,null,null,null,null,null,null,null,null,null,null,null,null,null,null,null,null,"","","","",null,null,null,null,"","",""]
["",null,null,null,null,null,"","","","","",{"$error":"#NAME?"},"",null,null,null,"",null,null,null,null,"","","",null,null,null,null,null,null,null,null,null,null,null,null,null,null,null,null,null,null,null,null,null,null,"","","","",null,null,null,null,"","",""]
["",null,null,null,null,null,"","","","","",{"$error":"#NAME?"},"",null,null,null,"",null,null,null,null,"","","",null,null,null,null,null,null,null,null,null,null,null,null,null,null,null,null,null,null,null,null,null,null,"","","","",null,null,null,null,"","",""]
["",null,null,null,null,null,"","","","","",{"$error":"#NAME?"},"",null,null,null,"",null,null,null,null,"","","",null,null,null,null,null,null,null,null,null,null,null,null,null,null,null,null,null,null,null,null,null,null,"","","","",null,null,null,null,"","",""]
["",null,null,null,null,null,"","","","","",{"$error":"#NAME?"},"",null,null,null,"",null,null,null,null,"","","",null,null,null,null,null,null,null,null,null,null,null,null,null,null,null,null,null,null,null,null,null,null,"","","","",null,null,null,null,"","",""]
["",null,null,null,null,null,"","","","","",{"$error":"#NAME?"},"",null,null,null,"",null,null,null,null,"","","",null,null,null,null,null,null,null,null,null,null,null,null,null,null,null,null,null,null,null,null,null,null,"","","","",null,null,null,null,"","",""]
["",null,null,null,null,null,"","","","","",{"$error":"#NAME?"},"",null,null,null,"",null,null,null,null,"","","",null,null,null,null,null,null,null,null,null,null,null,null,null,null,null,null,null,null,null,null,null,null,"","","","",null,null,null,null,"","",""]
["",null,null,null,null,null,"","","","","",{"$error":"#NAME?"},"",null,null,null,"",null,null,null,null,"","","",null,null,null,null,null,null,null,null,null,null,null,null,null,null,null,null,null,null,null,null,null,null,"","","","",null,null,null,null,"","",""]
["",null,null,null,null,null,"","","","","",{"$error":"#NAME?"},"",null,null,null,"",null,null,null,null,"","","",null,null,null,null,null,null,null,null,null,null,null,null,null,null,null,null,null,null,null,null,null,null,"","","","",null,null,null,null,"","",""]
["",null,null,null,null,null,"","","","","",{"$error":"#NAME?"},"",null,null,null,"",null,null,null,null,"","","",null,null,null,null,null,null,null,null,null,null,null,null,null,null,null,null,null,null,null,null,null,null,"","","","",null,null,null,null,"","",""]
["",null,null,null,null,null,"","","","","",{"$error":"#NAME?"},"",null,null,null,"",null,null,null,null,"","","",null,null,null,null,null,null,null,null,null,null,null,null,null,null,null,null,null,null,null,null,null,null,"","","","",null,null,null,null,"","",""]
["",null,null,null,null,null,"","","","","",{"$error":"#NAME?"},"",null,null,null,"",null,null,null,null,"","","",null,null,null,null,null,null,null,null,null,null,null,null,null,null,null,null,null,null,null,null,null,null,"","","","",null,null,null,null,"","",""]
["",null,null,null,null,null,"","","","","",{"$error":"#NAME?"},"",null,null,null,"",null,null,null,null,"","","",null,null,null,null,null,null,null,null,null,null,null,null,null,null,null,null,null,null,null,null,null,null,"","","","",null,null,null,null,"","",""]
["",null,null,null,null,null,"","","","","",{"$error":"#NAME?"},"",null,null,null,"",null,null,null,null,"","","",null,null,null,null,null,null,null,null,null,null,null,null,null,null,null,null,null,null,null,null,null,null,"","","","",null,null,null,null,"","",""]
["",null,null,null,null,null,"","","","","",{"$error":"#NAME?"},"",null,null,null,"",null,null,null,null,"","","",null,null,null,null,null,null,null,null,null,null,null,null,null,null,null,null,null,null,null,null,null,null,"","","","",null,null,null,null,"","",""]
["",null,null,null,null,null,"","","","","",{"$error":"#NAME?"},"",null,null,null,"",null,null,null,null,"","","",null,null,null,null,null,null,null,null,null,null,null,null,null,null,null,null,null,null,null,null,null,null,"","","","",null,null,null,null,"","",""]
["",null,null,null,null,null,"","","","","",{"$error":"#NAME?"},"",null,null,null,"",null,null,null,null,"","","",null,null,null,null,null,null,null,null,null,null,null,null,null,null,null,null,null,null,null,null,null,null,"","","","",null,null,null,null,"","",""]
["",null,null,null,null,null,"","","","","",{"$error":"#NAME?"},"",null,null,null,"",null,null,null,null,"","","",null,null,null,null,null,null,null,null,null,null,null,null,null,null,null,null,null,null,null,null,null,null,"","","","",null,null,null,null,"","",""]
["",null,null,null,null,null,"","","","","",{"$error":"#NAME?"},"",null,null,null,"",null,null,null,null,"","","",null,null,null,null,null,null,null,null,null,null,null,null,null,null,null,null,null,null,null,null,null,null,"","","","",null,null,null,null,"","",""]
["",null,null,null,null,null,"","","","","",{"$error":"#NAME?"},"",null,null,null,"",null,null,null,null,"","","",null,null,null,null,null,null,null,null,null,null,null,null,null,null,null,null,null,null,null,null,null,null,"","","","",null,null,null,null,"","",""]
["",null,null,null,null,null,"","","","","",{"$error":"#NAME?"},"",null,null,null,"",null,null,null,null,"","","",null,null,null,null,null,null,null,null,null,null,null,null,null,null,null,null,null,null,null,null,null,null,"","","","",null,null,null,null,"","",""]
["",null,null,null,null,null,"","","","","",{"$error":"#NAME?"},"",null,null,null,"",null,null,null,null,"","","",null,null,null,null,null,null,null,null,null,null,null,null,null,null,null,null,null,null,null,null,null,null,"","","","",null,null,null,null,"","",""]
["",null,null,null,null,null,"","","","","",{"$error":"#NAME?"},"",null,null,null,"",null,null,null,null,"","","",null,null,null,null,null,null,null,null,null,null,null,null,null,null,null,null,null,null,null,null,null,null,"","","","",null,null,null,null,"","",""]
["",null,null,null,null,null,"","","","","",{"$error":"#NAME?"},"",null,null,null,"",null,null,null,null,"","","",null,null,null,null,null,null,null,null,null,null,null,null,null,null,null,null,null,null,null,null,null,null,"","","","",null,null,null,null,"","",""]
["",null,null,null,null,null,"","","","","",{"$error":"#NAME?"},"",null,null,null,"",null,null,null,null,"","","",null,null,null,null,null,null,null,null,null,null,null,null,null,null,null,null,null,null,null,null,null,null,"","","","",null,null,null,null,"","",""]
["",null,null,null,null,null,"","","","","",{"$error":"#NAME?"},"",null,null,null,"",null,null,null,null,"","","",null,null,null,null,null,null,null,null,null,null,null,null,null,null,null,null,null,null,null,null,null,null,"","","","",null,null,null,null,"","",""]
["",null,null,null,null,null,"","","","","",{"$error":"#NAME?"},"",null,null,null,"",null,null,null,null,"","","",null,null,null,null,null,null,null,null,null,null,null,null,null,null,null,null,null,null,null,null,null,null,"","","","",null,null,null,null,"","",""]
["",null,null,null,null,null,"","","","","",{"$error":"#NAME?"},"",null,null,null,"",null,null,null,null,"","","",null,null,null,null,null,null,null,null,null,null,null,null,null,null,null,null,null,null,null,null,null,null,"","","","",null,null,null,null,"","",""]
["",null,null,null,null,null,"","","","","",{"$error":"#NAME?"},"",null,null,null,"",null,null,null,null,"","","",null,null,null,null,null,null,null,null,null,null,null,null,null,null,null,null,null,null,null,null,null,null,"","","","",null,null,null,null,"","",""]
["",null,null,null,null,null,"","","","","",{"$error":"#NAME?"},"",null,null,null,"",null,null,null,null,"","","",null,null,null,null,null,null,null,null,null,null,null,null,null,null,null,null,null,null,null,null,null,null,"","","","",null,null,null,null,"","",""]
["",null,null,null,null,null,"","","","","",{"$error":"#NAME?"},"",null,null,null,"",null,null,null,null,"","","",null,null,null,null,null,null,null,null,null,null,null,null,null,null,null,null,null,null,null,null,null,null,"","","","",null,null,null,null,"","",""]
["",null,null,null,null,null,"","","","","",{"$error":"#NAME?"},"",null,null,null,"",null,null,null,null,"","","",null,null,null,null,null,null,null,null,null,null,null,null,null,null,null,null,null,null,null,null,null,null,"","","","",null,null,null,null,"","",""]
["",null,null,null,null,null,"","","","","",{"$error":"#NAME?"},"",null,null,null,"",null,null,null,null,"","","",null,null,null,null,null,null,null,null,null,null,null,null,null,null,null,null,null,null,null,null,null,null,"","","","",null,null,null,null,"","",""]
["",null,null,null,null,null,"","","","","",{"$error":"#NAME?"},"",null,null,null,"",null,null,null,null,"","","",null,null,null,null,null,null,null,null,null,null,null,null,null,null,null,null,null,null,null,null,null,null,"","","","",null,null,null,null,"","",""]
["",null,null,null,null,null,"","","","","",{"$error":"#NAME?"},"",null,null,null,"",null,null,null,null,"","","",null,null,null,null,null,null,null,null,null,null,null,null,null,null,null,null,null,null,null,null,null,null,"","","","",null,null,null,null,"","",""]
["",null,null,null,null,null,"","","","","",{"$error":"#NAME?"},"",null,null,null,"",null,null,null,null,"","","",null,null,null,null,null,null,null,null,null,null,null,null,null,null,null,null,null,null,null,null,null,null,"","","","",null,null,null,null,"","",""]
["",null,null,null,null,null,"","","","","",{"$error":"#NAME?"},"",null,null,null,"",null,null,null,null,"","","",null,null,null,null,null,null,null,null,null,null,null,null,null,null,null,null,null,null,null,null,null,null,"","","","",null,null,null,null,"","",""]
["",null,null,null,null,null,"","","","","",{"$error":"#NAME?"},"",null,null,null,"",null,null,null,null,"","","",null,null,null,null,null,null,null,null,null,null,null,null,null,null,null,null,null,null,null,null,null,null,"","","","",null,null,null,null,"","",""]
["",null,null,null,null,null,"","","","","",{"$error":"#NAME?"},"",null,null,null,"",null,null,null,null,"","","",null,null,null,null,null,null,null,null,null,null,null,null,null,null,null,null,null,null,null,null,null,null,"","","","",null,null,null,null,"","",""]
["",null,null,null,null,null,"","","","","",{"$error":"#NAME?"},"",null,null,null,"",null,null,null,null,"","","",null,null,null,null,null,null,null,null,null,null,null,null,null,null,null,null,null,null,null,null,null,null,"","","","",null,null,null,null,"","",""]
["",null,null,null,null,null,"","","","","",{"$error":"#NAME?"},"",null,null,null,"",null,null,null,null,"","","",null,null,null,null,null,null,null,null,null,null,null,null,null,null,null,null,null,null,null,null,null,null,"","","","",null,null,null,null,"","",""]
["",null,null,null,null,null,"","","","","",{"$error":"#NAME?"},"",null,null,null,"",null,null,null,null,"","","",null,null,null,null,null,null,null,null,null,null,null,null,null,null,null,null,null,null,null,null,null,null,"","","","",null,null,null,null,"","",""]
["",null,null,null,null,null,"","","","","",{"$error":"#NAME?"},"",null,null,null,"",null,null,null,null,"","","",null,null,null,null,null,null,null,null,null,null,null,null,null,null,null,null,null,null,null,null,null,null,"","","","",null,null,null,null,"","",""]
["",null,null,null,null,null,"","","","","",{"$error":"#NAME?"},"",null,null,null,"",null,null,null,null,"","","",null,null,null,null,null,null,null,null,null,null,null,null,null,null,null,null,null,null,null,null,null,null,"","","","",null,null,null,null,"","",""]
["",null,null,null,null,null,"","","","","",{"$error":"#NAME?"},"",null,null,null,"",null,null,null,null,"","","",null,null,null,null,null,null,null,null,null,null,null,null,null,null,null,null,null,null,null,null,null,null,"","","","",null,null,null,null,"","",""]
["",null,null,null,null,null,"","","","","",{"$error":"#NAME?"},"",null,null,null,"",null,null,null,null,"","","",null,null,null,null,null,null,null,null,null,null,null,null,null,null,null,null,null,null,null,null,null,null,"","","","",null,null,null,null,"","",""]
["",null,null,null,null,null,"","","","","",{"$error":"#NAME?"},"",null,null,null,"",null,null,null,null,"","","",null,null,null,null,null,null,null,null,null,null,null,null,null,null,null,null,null,null,null,null,null,null,"","","","",null,null,null,null,"","",""]
["",null,null,null,null,null,"","","","","",{"$error":"#NAME?"},"",null,null,null,"",null,null,null,null,"","","",null,null,null,null,null,null,null,null,null,null,null,null,null,null,null,null,null,null,null,null,null,null,"","","","",null,null,null,null,"","",""]
["",null,null,null,null,null,"","","","","",{"$error":"#NAME?"},"",null,null,null,"",null,null,null,null,"","","",null,null,null,null,null,null,null,null,null,null,null,null,null,null,null,null,null,null,null,null,null,null,"","","","",null,null,null,null,"","",""]
["",null,null,null,null,null,"","","","","",{"$error":"#NAME?"},"",null,null,null,"",null,null,null,null,"","","",null,null,null,null,null,null,null,null,null,null,null,null,null,null,null,null,null,null,null,null,null,null,"","","","",null,null,null,null,"","",""]
["",null,null,null,null,null,"","","","","",{"$error":"#NAME?"},"",null,null,null,"",null,null,null,null,"","","",null,null,null,null,null,null,null,null,null,null,null,null,null,null,null,null,null,null,null,null,null,null,"","","","",null,null,null,null,"","",""]
["",null,null,null,null,null,"","","","","",{"$error":"#NAME?"},"",null,null,null,"",null,null,null,null,"","","",null,null,null,null,null,null,null,null,null,null,null,null,null,null,null,null,null,null,null,null,null,null,"","","","",null,null,null,null,"","",""]
["",null,null,null,null,null,"","","","","",{"$error":"#NAME?"},"",null,null,null,"",null,null,null,null,"","","",null,null,null,null,null,null,null,null,null,null,null,null,null,null,null,null,null,null,null,null,null,null,"","","","",null,null,null,null,"","",""]
["",null,null,null,null,null,"","","","","",{"$error":"#NAME?"},"",null,null,null,"",null,null,null,null,"","","",null,null,null,null,null,null,null,null,null,null,null,null,null,null,null,null,null,null,null,null,null,null,"","","","",null,null,null,null,"","",""]
["",null,null,null,null,null,"","","",{"$f":"IF(E1095=\"\",\"\",DATE(I1095,H1095,G1095))","v":""},"",{"$f":"Kh_Date_Sex_Province($E1095,3)","v":{"$error":"#NAME?"}},{"$f":"IF(E1095=\"\",\"\",IF(ISODD(MID(E1095,13,1)),\"ذكر\",\"أنثى\"))","v":""},null,null,null,"",null,null,null,null,"","","",null,null,null,null,null,null,null,null,null,null,null,null,null,null,null,null,null,null,null,null,null,null,"","","","",null,null,null,null,"","",""]
[{"$f":"IF(F1096=\"\",\"\",A1095+1)","v":""},null,null,null,null,null,{"$f":"RIGHT(LEFT(E1096,7),2)","v":""},{"$f":"RIGHT(LEFT(E1096,5),2)","v":""},{"$f":"IF(E1096=\"\",\"\",IF(ISODD(MID(E1096,1,1)),MID(E1096,2,2)+2000,MID(E1096,2,2)+1900))","v":""},{"$f":"IF(E1096=\"\",\"\",DATE(I1096,H1096,G1096))","v":""},{"$f":"IF(J1096=\"\",\"\",$K$4+J1096-1)","v":""},{"$f":"Kh_Date_Sex_Province($E1096,3)","v":{"$error":"#NAME?"}},{"$f":"IF(E1096=\"\",\"\",IF(ISODD(MID(E1096,13,1)),\"ذكر\",\"أنثى\"))","v":""},null,null,null,{"$f":"IF(F1096=\"\",\"\",\"الغربية\")","v":""},null,null,null,null,{"$f":"IF(U1096=\"\",\"\",DATEDIF(U1096,$V$3,\"md\"))","v":""},{"$f":"IF(U1096=\"\",\"\",DATEDIF(U1096,$V$3,\"ym\"))","v":""},{"$f":"IF(U1096=\"\",\"\",DATEDIF(U1096,$V$3,\"y\"))","v":""},null,null,null,null,null,null,null,null,null,null,null,null,null,null,null,null,null,null,null,null,null,null,{"$f":"IF(U1096=\"\",\"\",DATEDIF(U1096,$AU$3,\"md\"))","v":""},{"$f":"IF(U1096=\"\",\"\",DATEDIF(U1096,$AU$3,\"ym\"))","v":""},{"$f":"IF(U1096=\"\",\"\",DATEDIF(U1096,$AU$3,\"y\"))","v":""},"",null,null,null,null,{"$f":"IF(A1096=\"\",\"\",A1096)","v":""},{"$f":"IF(D1096=\"\",\"\",D1096)","v":""},{"$f":"IF(F1096=\"\",\"\",F1096)","v":""}]
[null,null,null,null,null,null,null,null,null,null,null,null,null,null,null,null,null,null,null,null,null,null,null,null,null,null,null,null,null,null,null,null,null,null,null,null,null,null,null,null,null,null,null,null,null,null,null,null,null,null,null,null,null,null,{"$f":"IF(A1097=\"\",\"\",A1097)","v":""},{"$f":"IF(D1097=\"\",\"\",D1097)","v":""},{"$f":"IF(F1097=\"\",\"\",F1097)","v":""}]
[null,null,null,null,null,null,null,null,null,null,null,null,null,null,null,null,null,null,null,null,null,null,null,null,null,null,null,null,null,null,null,null,null,null,null,null,null,null,null,null,null,null,null,null,null,null,null,null,null,null,null,null,null,null,{"$f":"IF(A1098=\"\",\"\",A1098)","v":""},{"$f":"IF(D1098=\"\",\"\",D1098)","v":""},{"$f":"IF(F1098=\"\",\"\",F1098)","v":""}]
[null,null,null,null,null,null,null,null,null,null,null,null,null,null,null,null,null,null,null,null,null,null,null,null,null,null,null,null,null,null,null,null,null,null,null,null,null,null,null,null,null,null,null,null,null,null,null,null,null,null,null,null,null,null,{"$f":"IF(A1099=\"\",\"\",A1099)","v":""},{"$f":"IF(D1099=\"\",\"\",D1099)","v":""},{"$f":"IF(F1099=\"\",\"\",F1099)","v":""}]
[null,null,null,null,null,null,null,null,null,null,null,null,null,null,null,null,null,null,null,null,null,null,null,null,null,null,null,null,null,null,null,null,null,null,null,null,null,null,null,null,null,null,null,null,null,null,null,null,null,null,null,null,null,null,{"$f":"IF(A1100=\"\",\"\",A1100)","v":""},{"$f":"IF(D1100=\"\",\"\",D1100)","v":""},{"$f":"IF(F1100=\"\",\"\",F1100)","v":""}]

{"sheet":"التغذية","index":1,"n_rows":8,"n_cols":44,"rows_kept":8,"cut":false,"hidden":false,"merged":[]}
[]
[]
[]
[]
["التغذية"]
["مسلسل","جهة العمل","المرحلة المقيد عليها","كود المعلم","الرقم القومي","الاسم","تاريخ الميلاد - يوم","تاريخ الميلاد - شهر","تاريخ الميلاد - سنة","تاريخ الميلاد","تاريخ المعاش","محافظة الميلاد","النوع","الديانة","الجنسية","الحالة الاجتماعية","محافظة العنوان","العنوان","رقم الهاتف","المجموعة النوعية","تاريخ التعيين","سنوات الخبرة - يوم","سنوات الخبرة - شهر","سنوات الخبرة - سنة","الموقف من العمل","تاريخ استلام العمل","الوظيفة الحالية","رقم القرار","تاريخ الوظيفة","الدرجة المالية","رقم القرار","تاريخ القرار","مادة التدريس","التخصص على الكادر","نوع المؤهل","اسم المؤهل","جهة الحصول","تقدير المؤهل","تاريخ المؤهل","مؤهلات أعلى - نوع المؤهل","مؤهلات أعلى - اسم المؤهل","مؤهلات أعلى - جهة الحصول","مؤهلات أعلى - تاريخ الحصول","مؤهلات أعلى - تقدير المؤهل"]
[24,"التغذية","ابتدائي",123479,28509181600510,"حاتم 24","18","09",1985,"1985-09-18","2045-09-17",{"$error":"#NAME?"},"ذكر","مسلم","مصري","متزوج + أكثر من 3","الغربية","طنطا - محافظة الغربية","012345678910","المجموعة النوعية لوظائف كادر المعلم","1995-12-04",21,0,25,"منتدب داخل الوزارة","2001-02-04","معلم خبير","5109","2018-10-18","------","------","------","لغة عربية ودين","معلم لغة عربية ابتدائي","عليا","ليسانس آداب وتربية","جامعة طنطا","جيد جدا","1996-06-03","بدون","بدون","بدون","بدون","بدون"]
[25,"التغذية","------",123480,28509181600510,"حاتم 25","18","09",1985,"1985-09-18","2045-09-17",{"$error":"#NAME?"},"ذكر","مسلم","مصري","متزوج + 2","الغربية","طنطا - محافظة الغربية","012345678910","المجموعة النوعية لوظائف الهندسة","2012-07-22",3,5,8,"على رأس العمل","2012-08-27","امين معمل - مرافق زراعية رابع","3886","2012-08-09","الثالثة",5038,43767,"------","------","متوسطة","دبلوم زراعة متوسطة","وزارة التربية والتعليم","------","2009-05-01","------","------","------","------","------"]

{"sheet":"تنسيق التعليم الإعدادي","index":2,"n_rows":8,"n_cols":44,"rows_kept":8,"cut":false,"hidden":false,"merged":[]}
[]
[]
[]
[]
["تنسيق التعليم الإعدادي"]
["مسلسل","جهة العمل","المرحلة المقيد عليها","كود المعلم","الرقم القومي","الاسم","تاريخ الميلاد - يوم","تاريخ الميلاد - شهر","تاريخ الميلاد - سنة","تاريخ الميلاد","تاريخ المعاش","محافظة الميلاد","النوع","الديانة","الجنسية","الحالة الاجتماعية","محافظة العنوان","العنوان","رقم الهاتف","المجموعة النوعية","تاريخ التعيين","سنوات الخبرة - يوم","سنوات الخبرة - شهر","سنوات الخبرة - سنة","الموقف من العمل","تاريخ استلام العمل","الوظيفة الحالية","رقم القرار","تاريخ الوظيفة","الدرجة المالية","رقم القرار","تاريخ القرار","مادة التدريس","التخصص على الكادر","نوع المؤهل","اسم المؤهل","جهة الحصول","تقدير المؤهل","تاريخ المؤهل","مؤهلات أعلى - نوع المؤهل","مؤهلات أعلى - اسم المؤهل","مؤهلات أعلى - جهة الحصول","مؤهلات أعلى - تاريخ الحصول","مؤهلات أعلى - تقدير المؤهل"]
[22,"تنسيق التعليم الإعدادي","إعدادي",123477,28509181600510,"حاتم 22","18","09",1985,"1985-09-18","2045-09-17",{"$error":"#NAME?"},"ذكر","مسلم","مصري","متزوج","الغربية","طنطا - محافظة الغربية","012345678910","المجموعة النوعية لوظائف كادر المعلم","1991-09-01",24,3,29,"منتدب داخل الوزارة","1992-01-16","معلم خبير","6210","2014-10-20","------","------","------","لغة إنجليزية","معلم لغة إنجليزية إعدادي / ثانوي","عليا","ليسانس آداب وتربية","جامعة طنطا","مقبول","1991-05-01","بدون","بدون","بدون","بدون","بدون"]
[23,"تنسيق التعليم الإعدادي","------",123478,28509181600510,"حاتم 23","18","09",1985,"1985-09-18","2045-09-17",{"$error":"#NAME?"},"ذكر","مسلم","مصري","متزوج + أكثر من 3","الغربية","طنطا - محافظة الغربية","012345678910","المجموعة النوعية للوظائف المكتبية","1993-06-06",19,6,27,"على رأس العمل","1993-07-10","رئيس وحدة","6313","2003-12-08","الأولى","6665",41984,"------","------","فوق المتوسطة","شهادة إعداد فنيين تجاريين","وزارة التعليم العالي","------","1983-06-30","بدون","بدون","بدون","بدون","بدون"]

{"sheet":"مكتب المدير العام","index":3,"n_rows":13,"n_cols":44,"rows_kept":13,"cut":false,"hidden":false,"merged":[]}
[]
[]
[]
[]
["مكتب المدير العام"]
["مسلسل","جهة العمل","المرحلة المقيد عليها","كود المعلم","الرقم القومي","الاسم","تاريخ الميلاد - يوم","تاريخ الميلاد - شهر","تاريخ الميلاد - سنة","تاريخ الميلاد","تاريخ المعاش","محافظة الميلاد","النوع","الديانة","الجنسية","الحالة الاجتماعية","محافظة العنوان","العنوان","رقم الهاتف","المجموعة النوعية","تاريخ التعيين","سنوات الخبرة - يوم","سنوات الخبرة - شهر","سنوات الخبرة - سنة","الموقف من العمل","تاريخ استلام العمل","الوظيفة الحالية","رقم القرار","تاريخ الوظيفة","الدرجة المالية","رقم القرار","تاريخ القرار","مادة التدريس","التخصص على الكادر","نوع المؤهل","اسم المؤهل","جهة الحصول","تقدير المؤهل","تاريخ المؤهل","مؤهلات أعلى - نوع المؤهل","مؤهلات أعلى - اسم المؤهل","مؤهلات أعلى - جهة الحصول","مؤهلات أعلى - تاريخ الحصول","مؤهلات أعلى - تقدير المؤهل"]
[3,"مكتب المدير العام","ابتدائي",123458,28509181600510,"حاتم 3","18","09",1985,"1985-09-18","2045-09-17",{"$error":"#NAME?"},"ذكر","مسلم","مصري","متزوج + 3","الغربية","طنطا - محافظة الغربية","012345678910","المجموعة النوعية لوظائف كادر المعلم","2000-03-20",5,9,20,"منتدب داخل الوزارة","2005-04-19","معلم أول أ","6210","2014-10-20","ــــــــــ","ــــــــــ","ــــــــــ","اللغة العربية والتربية الاسلامية","مدرس ابتدائي","عليا","ليسانس آداب وتربية","جامعة طنطا","جيد جدا","2002-07-01","بدون","بدون","بدون","بدون","بدون"]
[15,"مكتب المدير العام","------",123470,28509181600510,"حاتم 15","18","09",1985,"1985-09-18","2045-09-17",{"$error":"#NAME?"},"ذكر","مسلم","مصري","أعزب","الغربية","طنطا - محافظة الغربية","012345678910","المجموعة النوعية للوظائف المكتبية","2015-07-28",27,4,5,"على رأس العمل","2017-05-28","كاتب رابع - سكرتير رابع","911","2017-05-17","الرابعة","911",42213,"------","------","متوسطة","ثانوية تجارية","وزارة التربية و التعليم","------","1994-05-01","بدون","بدون","بدون","بدون","بدون"]
[16,"مكتب المدير العام","------",123471,28509181600510,"حاتم 16","18","09",1985,"1985-09-18","2045-09-17",{"$error":"#NAME?"},"ذكر","مسلم","مصري","متزوج","الغربية","طنطا - محافظة الغربية","012345678910","المجموعة النوعية للوظائف المكتبية","2015-08-27",28,3,5,"على رأس العمل","2017-05-28","كاتب رابع - سكرتير رابع","911","2017-05-17","الرابعة","911",42243,"------","------","متوسطة","ثانوية تجارية","وزارة التربية و التعليم","------","1989-05-01","بدون","بدون","بدون","بدون","بدون"]
[17,"مكتب المدير العام","------",123472,28509181600510,"حاتم 17","18","09",1985,"1985-09-18","2045-09-17",{"$error":"#NAME?"},"ذكر","مسلم","مصري","متزوج","الغربية","طنطا - محافظة الغربية","012345678910","المجموعة النوعية للوظائف المكتبية","1994-03-26",29,8,26,"على رأس العمل","1994-05-15","رئيس وحدة","6468","2005-11-25","الأولى","5646",42717,"------","------","متوسطة","ثانوية تجارية","وزارة التربية والتعليم","------","1983-06-30","بدون","بدون","بدون","بدون","بدون"]
[18,"مكتب المدير العام","------",123473,28509181600510,"حاتم 18","18","09",1985,"1985-09-18","2045-09-17",{"$error":"#NAME?"},"ذكر","مسلم","مصري","متزوج","الغربية","طنطا - محافظة الغربية","012345678910","المجموعة النوعية للوظائف المكتبية","1994-11-12",13,1,26,"على رأس العمل","1995-01-18","رئيس وحدة","213","2005-11-17","الأولى","5646",42552,"------","------","متوسطة","ثانوية تجارية","وزارة التربية و التعليم","------","1983-09-01","بدون","بدون","بدون","بدون","بدون"]
[19,"مكتب المدير العام","------",123474,28509181600510,"حاتم 19","18","09",1985,"1985-09-18","2045-09-17",{"$error":"#NAME?"},"ذكر","مسلم","مصري","متزوج + 3","الغربية","طنطا - محافظة الغربية","012345678910","وظائف الخدمات المعاونة","1994-02-12",13,10,26,"على رأس العمل","1994-02-12","عامل خدمات ","80","1994-01-22","الثالثة","1876",40924,"------","------","أقل من متوسطة","الابتدائية","وزارة التربية والتعليم","------","1983-12-01","بدون","بدون","بدون","بدون","بدون"]
[20,"مكتب المدير العام","------",123475,28509181600510,"حاتم 20","18","09",1985,"1985-09-18","2045-09-17",{"$error":"#NAME?"},"ذكر","مسلم","مصري","متزوج + 2","الغربية","طنطا - محافظة الغربية","012345678910","وظائف الخدمات المعاونة","1993-09-16",9,3,27,"على رأس العمل","1993-10-16","عامل خدمات","4336","1993-09-26","الثالثة","5487",40442,"------","------","محو أمية","محو أمية","هيئة محو الأمية","------","1982-07-03","بدون","بدون","بدون","بدون","بدون"]

{"sheet":"شئون الطلبة والامتحانات","index":4,"n_rows":20,"n_cols":44,"rows_kept":20,"cut":false,"hidden":false,"merged":[]}
[]
[]
[]
[]
["شئون الطلبة والامتحانات"]
["مسلسل","جهة العمل","المرحلة المقيد عليها","كود المعلم","الرقم القومي","الاسم","تاريخ الميلاد - يوم","تاريخ الميلاد - شهر","تاريخ الميلاد - سنة","تاريخ الميلاد","تاريخ المعاش","محافظة الميلاد","النوع","الديانة","الجنسية","الحالة الاجتماعية","محافظة العنوان","العنوان","رقم الهاتف","المجموعة النوعية","تاريخ التعيين","سنوات الخبرة - يوم","سنوات الخبرة - شهر","سنوات الخبرة - سنة","الموقف من العمل","تاريخ استلام العمل","الوظيفة الحالية","رقم القرار","تاريخ الوظيفة","الدرجة المالية","رقم القرار","تاريخ القرار","مادة التدريس","التخصص على الكادر","نوع المؤهل","اسم المؤهل","جهة الحصول","تقدير المؤهل","تاريخ المؤهل","مؤهلات أعلى - نوع المؤهل","مؤهلات أعلى - اسم المؤهل","مؤهلات أعلى - جهة الحصول","مؤهلات أعلى - تاريخ الحصول","مؤهلات أعلى - تقدير المؤهل"]
[1,"شئون الطلبة والامتحانات","ابتدائي",123456,28509181600510,"حاتم 1","18","09",1985,"1985-09-18","2045-09-17",{"$error":"#NAME?"},"ذكر","مسلم","مصري","متزوج + 3","الغربية","طنطا - محافظة الغربية","012345678910","المجموعة النوعية لوظائف كادر المعلم","1996-12-28",27,11,23,"منتدب داخل الوزارة",null,"معلم خبير","5109","2018-10-18","-----","ــــــــــ","ــــــــــ","اللغة العربية","معلم فصل ابتدائي","عليا","بكالوريوس تربية","جامعة طنطا","مقبول",null,"بدون","بدون","بدون","بدون","بدون"]
[2,"شئون الطلبة والامتحانات","ابتدائي",123457,28509181600510,"حاتم 2","18","09",1985,"1985-09-18","2045-09-17",{"$error":"#NAME?"},"ذكر","مسلم","مصري","متزوج + 3","الغربية","طنطا - محافظة الغربية","012345678910","المجموعة النوعية لوظائف كادر المعلم","1997-07-03",22,5,23,"منتدب داخل الوزارة","2002-02-07","معلم خبير","5109","2018-10-18","ــــــــــ","ــــــــــ","ــــــــــ","حاسب آلي متفرغ","معلم الحاسب الآلي","عليا","بكالوريوس تربية","جامعة طنطا","مقبول","2000-11-01","بدون","بدون","بدون","بدون","بدون"]
[4,"شئون الطلبة والامتحانات","ثانوي عام",123459,28509181600510,"حاتم 4","18","09",1985,"1985-09-18","2045-09-17",{"$error":"#NAME?"},"ذكر","مسلم","مصري","متزوج + 3","الغربية","طنطا - محافظة الغربية","012345678910","المجموعة النوعية للوظائف المكتبية","1984-12-01",24,0,36,"منتدب داخل الوزارة","1985-03-23","رئيس وحدة","6311","2003-12-08","الأولى","6665",41913,"ــــــــــ","ــــــــــ","متوسطة","ثانوية تجارية","وزارة التربية والتعليم","ـــــ","1980-05-01","بدون","بدون","بدون","بدون","بدون"]
[5,"شئون الطلبة والامتحانات","ـــــ",123460,28509181600510,"حاتم 5","18","09",1985,"1985-09-18","2045-09-17",{"$error":"#NAME?"},"ذكر","مسلم","مصري","متزوج ","الغربية","طنطا - محافظة الغربية","012345678910","المجموعة النوعية للوظائف المكتبية","1994-03-26",29,8,26,"على رأس العمل","1994-06-06","رئيس وحدة","6313","2003-12-08","الأولى","5646",41974,"ــــــــــ","ــــــــــ","فوق المتوسطة","شهادة إعداد فنيين تجاريين","وزارة التعليم العالي","ـــــ","1983-09-01","بدون","بدون","بدون","بدون","بدون"]
[6,"شئون الطلبة والامتحانات","ـــــ",123461,28509181600510,"حاتم 6","18","09",1985,"1985-09-18","2045-09-17",{"$error":"#NAME?"},"ذكر","مسلم","مصري","متزوج ","الغربية","طنطا - محافظة الغربية","012345678910","المجموعة النوعية للوظائف المكتبية","1994-11-12",13,1,26,"على رأس العمل","1995-02-11","رئيس وحدة","6486","2005-11-17","الأولى","5646",42552,"ــــــــــ","ــــــــــ","متوسطة","ثانوية تجارية","وزارة التربية والتعليم","ـــــ","1983-06-15","بدون","بدون","بدون","بدون","بدون"]
[7,"شئون الطلبة والامتحانات","ـــــ",123462,28509181600510,"حاتم 7","18","09",1985,"1985-09-18","2045-09-17",{"$error":"#NAME?"},"ذكر","مسلم","مصري","متزوج + 3","الغربية","طنطا - محافظة الغربية","012345678910","المجموعة النوعية للوظائف المكتبية","1989-06-30",25,5,31,"على رأس العمل","1991-06-06","رئيس وحدة","121","2004-03-14","الأولى",6665,41913,"ــــــــــ","ــــــــــ","متوسطة","ثانوية تجارية","وزارة التربية والتعليم","ـــــ","1982-01-07","بدون","بدون","بدون","بدون","بدون"]
[8,"شئون الطلبة والامتحانات","ـــــ",123463,28509181600510,"حاتم 8","18","09",1985,"1985-09-18","2045-09-17",{"$error":"#NAME?"},"ذكر","مسلم","مصري","أرمل","الغربية","طنطا - محافظة الغربية","012345678910","المجموعة النوعية للوظائف المكتبية","1994-11-12",13,1,26,"على رأس العمل","1994-12-05","رئيس وحدة","6486","2005-11-12","الأولى","5646",42552,"ــــــــــ","ــــــــــ","متوسطة","ثانوية تجارية","وزارة التربية والتعليم","ـــــ","1983-07-01","بدون","بدون","بدون","بدون","بدون"]
[9,"شئون الطلبة والامتحانات","ـــــ",123464,28509181600510,"حاتم 9","18","09",1985,"1985-09-18","2045-09-17",{"$error":"#NAME?"},"ذكر","مسلم","مصري","متزوج","الغربية","طنطا - محافظة الغربية","012345678910","المجموعة النوعية للوظائف المكتبية","1994-03-26",29,8,26,"على رأس العمل","1994-04-16","رئيس وحدة","6486","2005-11-17","الأولى","5646",42552,"ــــــــــ","ــــــــــ","متوسطة","ثانوية تجارية","وزارة التربية والتعليم","ـــــ","1983-06-01","بدون","بدون","بدون","بدون","بدون"]
[10,"شئون الطلبة والامتحانات","---------",123465,28509181600510,"حاتم 10","18","09",1985,"1985-09-18","2045-09-17",{"$error":"#NAME?"},"ذكر","مسلم","مصري","متزوج","الغربية","طنطا - محافظة الغربية","012345678910","المجموعة النوعية للوظائف المكتبية","2013-01-30",25,10,7,"على رأس العمل","2013-08-14","كاتب رابع - سكرتير رابع","2391","2013-07-28","الرابعة","2391",41304,"------","-------","متوسطة","دبلوم صناعة ثانوي","وزارة التربية والتعليم","-----","1995-05-01","بدون","بدون","بدون","بدون","بدون"]
[11,"شئون الطلبة والامتحانات","------",123466,28509181600510,"حاتم 11","18","09",1985,"1985-09-18","2045-09-17",{"$error":"#NAME?"},"ذكر","مسلم","مصري","متزوج","الغربية","طنطا - محافظة الغربية","012345678910","المجموعة النوعية للوظائف المكتبية","1994-11-12",13,1,26,"على رأس العمل","1994-12-03","رئيس وحدة","6486","2005-11-12","الأولى","5646",40725,"------","------","متوسطة","ثانوية تجارية","وزارة التربية والتعليم","------","1983-07-01","بدون","بدون","بدون","بدون","بدون"]
[12,"شئون الطلبة والامتحانات","ـــــ",123467,28509181600510,"حاتم 12","18","09",1985,"1985-09-18","2045-09-17",{"$error":"#NAME?"},"ذكر","مسلم","مصري","متزوج","الغربية","طنطا - محافظة الغربية","012345678910","المجموعة النوعية لوظائف الهندسة","2015-08-27",28,3,5,"منتدب داخل الوزارة","2017-07-11","فني رابع","911","2017-05-17","الرابعة","911",42243,"ــــــــــ","ــــــــــ","متوسطة","دبلوم صناعة ثانوي","وزارة التربية والتعليم",null,"1995-05-01","بدون","بدون","بدون","بدون","بدون"]
[13,"شئون الطلبة والامتحانات","ـــــ",123468,28509181600510,"حاتم 13","18","09",1985,"1985-09-18","2045-09-17",{"$error":"#NAME?"},"ذكر","مسلم","مصري","متزوج + 2","الغربية","طنطا - محافظة الغربية","012345678910","المجموعة النوعية لوظائف كادر المعلم","1988-09-01",24,3,32,"منتدب داخل الوزارة","1988-09-21","معلم أول أ","6210","2014-10-20","ــــــــــ","ــــــــــ","ــــــــــ","مدرس فصل","معلم لغة عربية ابتدائي","فوق المتوسطة","دبلوم المعلمين و المعلمات","وزارة التربية والتعليم","------","1988-05-01","بدون","بدون","بدون","بدون","بدون"]
[14,"شئون الطلبة والامتحانات","ـــــ",123469,28509181600510,"حاتم 14","18","09",1985,"1985-09-18","2045-09-17",{"$error":"#NAME?"},"ذكر","مسلم","مصري","متزوج + 1","الغربية","طنطا - محافظة الغربية","012345678910","المجموعة النوعية للوظتئف المكتبية","1987-05-01",24,7,33,"على رأس العمل","1987-10-01","رئيس وحدة","6313","2003-12-08","الأولى","6665",41821,"ــــــــــ","ــــــــــ","متوسطة","ثانوية تجارية","وزارة التربية والتعليم","------","1981-06-01","بدون","بدون","بدون","بدون","بدون"]
[21,"شئون الطلبة والامتحانات","------",123476,28509181600510,"حاتم 21","18","09",1985,"1985-09-18","2045-09-17",{"$error":"#NAME?"},"ذكر","مسلم","مصري","متزوج","الغربية","طنطا - محافظة الغربية","012345678910","المجموعة النوعية للوظائف المكتبية","2013-01-30",25,10,7,"على رأس العمل","2013-08-28","كاتب رابع - سكرتير رابع","2391","2013-07-28","الرابعة","2391",41304,"------","------","متوسطة","دبلوم صناعة ثانوي","وزارة التربية والتعليم","------","1993-05-01","بدون","بدون","بدون","بدون","بدون"]